Workbook

Sheet RAIN-TANK 2017
B2: RAINWATER HARVESTING STORAGE WORKSHEET | H2: WEATHER STATION: | K2: Saltspring Island | S2: Country
B3: Optimize your storage volume | H3: PROJECT NAME: | J3: Test | S3: Abbotsford | T3: =--ISNUMBER(IFERROR(SEARCH($K$2,S3,1),"")) -> 0 | U3: =IF(T3=1,COUNTIF($T$3:T3,1),"") ->  | V3: =IFERROR(INDEX($S$3:$S$281,MATCH(ROWS($U$3:U3),$U$3:$U$281,0)),"") -> Saltspring Island | W3: =IFERROR(INDEX($S$3:$S$281,MATCH(ROWS($U$3:V3),$U$3:$U$281,0)),"") -> Saltspring Island | X3: =IFERROR(INDEX($S$3:$S$281,MATCH(ROWS($U$3:U3),$U$3:$U$281,0)),"") -> Saltspring Island | Z3: =$V$3:INDEX($V$3:$V$281,MAX($U$3:$U$281),1) -> Saltspring Island
H4: DATE: | J4: 2017-07-20 | S4: Alberton | T4: =--ISNUMBER(IFERROR(SEARCH($K$2,S4,1),"")) -> 0 | U4: =IF(T4=1,COUNTIF($T$3:T4,1),"") ->  | V4: =IFERROR(INDEX($S$3:$S$281,MATCH(ROWS($U$3:U4),$U$3:$U$281,0)),"") ->  | W4: =IFERROR(INDEX($S$3:$S$281,MATCH(ROWS($U$3:V4),$U$3:$U$281,0)),"") ->  | X4: =IFERROR(INDEX($S$3:$S$281,MATCH(ROWS($U$3:U4),$U$3:$U$281,0)),"") ->  | Z4: =$V$3:INDEX($V$3:$V$281,MAX($U$3:$U$281),1) -> Saltspring Island
C5: INPUTS | S5: Alliston | T5: 0 | U5: =IF(T5=1,COUNTIF($T$3:T5,1),"") ->  | V5: =IFERROR(INDEX($S$3:$S$281,MATCH(ROWS($U$3:U5),$U$3:$U$281,0)),"") ->  | W5: =IFERROR(INDEX($S$3:$S$281,MATCH(ROWS($U$3:V5),$U$3:$U$281,0)),"") ->  | X5: =IFERROR(INDEX($S$3:$S$281,MATCH(ROWS($U$3:U5),$U$3:$U$281,0)),"") ->  | Z5: =$V$3:INDEX($V$3:$V$281,MAX($U$3:$U$281),1) -> Saltspring Island
S6: Amherst - Nappan | T6: 0 | U6: =IF(T6=1,COUNTIF($T$3:T6,1),"") ->  | V6: =IFERROR(INDEX($S$3:$S$281,MATCH(ROWS($U$3:U6),$U$3:$U$281,0)),"") ->  | W6: =IFERROR(INDEX($S$3:$S$281,MATCH(ROWS($U$3:V6),$U$3:$U$281,0)),"") ->  | X6: =IFERROR(INDEX($S$3:$S$281,MATCH(ROWS($U$3:U6),$U$3:$U$281,0)),"") ->  | Z6: =$V$3:INDEX($V$3:$V$281,MAX($U$3:$U$281),1) -> Saltspring Island
B7: MONTH | C7: JAN | D7: FEB | E7: MAR | F7: APR | G7: MAY | H7: JUN | I7: JUL | J7: AUG | K7: SEPT | L7: OCT | M7: NOV | N7: DEC | O7: TOTAL | P7: Column1 | S7: Amos | T7: 0 | U7: =IF(T7=1,COUNTIF($T$3:T7,1),"") ->  | V7: =IFERROR(INDEX($S$3:$S$281,MATCH(ROWS($U$3:U7),$U$3:$U$281,0)),"") ->  | W7: =IFERROR(INDEX($S$3:$S$281,MATCH(ROWS($U$3:V7),$U$3:$U$281,0)),"") ->  | X7: =IFERROR(INDEX($S$3:$S$281,MATCH(ROWS($U$3:U7),$U$3:$U$281,0)),"") ->  | Z7: =$V$3:INDEX($V$3:$V$281,MAX($U$3:$U$281),1) -> Saltspring Island
B8: Environment Canada Precipitation (mm) | C8: =VLOOKUP($K$2,'Rainfall Data'!$A$4:$O$271,2,FALSE) -> 162 | D8: =VLOOKUP($K$2,'Rainfall Data'!$A$4:$O$271,3,FALSE) -> 99 | E8: =VLOOKUP($K$2,'Rainfall Data'!$A$4:$O$271,4,FALSE) -> 89 | F8: =VLOOKUP($K$2,'Rainfall Data'!$A$4:$O$271,5,FALSE) -> 57 | G8: =VLOOKUP($K$2,'Rainfall Data'!$A$4:$O$271,6,FALSE) -> 43 | H8: =VLOOKUP($K$2,'Rainfall Data'!$A$4:$O$271,7,FALSE) -> 37 | I8: =VLOOKUP($K$2,'Rainfall Data'!$A$4:$O$271,8,FALSE) -> 23 | J8: =VLOOKUP($K$2,'Rainfall Data'!$A$4:$O$271,9,FALSE) -> 28 | K8: =VLOOKUP($K$2,'Rainfall Data'!$A$4:$O$271,10,FALSE) -> 33 | L8: =VLOOKUP($K$2,'Rainfall Data'!$A$4:$O$271,11,FALSE) -> 94 | M8: =VLOOKUP($K$2,'Rainfall Data'!$A$4:$O$271,12,FALSE) -> 168 | N8: =VLOOKUP($K$2,'Rainfall Data'!$A$4:$O$271,13,FALSE) -> 154 | O8: =SUM(CheckList1[[#This Row],[JAN]:[DEC]]) -> 987 | S8: Annapolis Royal | T8: 0 | U8: =IF(T8=1,COUNTIF($T$3:T8,1),"") ->  | V8: =IFERROR(INDEX($S$3:$S$281,MATCH(ROWS($U$3:U8),$U$3:$U$281,0)),"") ->  | W8: =IFERROR(INDEX($S$3:$S$281,MATCH(ROWS($U$3:V8),$U$3:$U$281,0)),"") ->  | X8: =IFERROR(INDEX($S$3:$S$281,MATCH(ROWS($U$3:U8),$U$3:$U$281,0)),"") ->  | Z8: =$V$3:INDEX($V$3:$V$281,MAX($U$3:$U$281),1) -> Saltspring Island
B9: mm to Inches & inches to Gallon | C9: =(C8/25.4)*(6.24/12) -> 3.316535433 | D9: 2.026771654 | E9: 1.822047244 | F9: 1.166929134 | G9: 0.8803149606 | H9: 0.757480315 | I9: 0.4708661417 | J9: 0.5732283465 | K9: 0.6755905512 | L9: 1.924409449 | M9: 3.439370079 | N9: 3.152755906 | O9: =SUM(CheckList1[[#This Row],[JAN]:[DEC]]) -> 20.20629921 | S9: Atikokan | T9: 0 | U9: =IF(T9=1,COUNTIF($T$3:T9,1),"") ->  | V9: =IFERROR(INDEX($S$3:$S$281,MATCH(ROWS($U$3:U9),$U$3:$U$281,0)),"") ->  | W9: =IFERROR(INDEX($S$3:$S$281,MATCH(ROWS($U$3:V9),$U$3:$U$281,0)),"") ->  | X9: =IFERROR(INDEX($S$3:$S$281,MATCH(ROWS($U$3:U9),$U$3:$U$281,0)),"") ->  | Z9: =$V$3:INDEX($V$3:$V$281,MAX($U$3:$U$281),1) -> Saltspring Island
B10: Precipitation Received from Roof (imp gals) | C10: =($C$37*C9)*$C$38 -> 6633.070866 | D10: 4053.543307 | E10: 3644.094488 | F10: 2333.858268 | G10: 1760.629921 | H10: 1514.96063 | I10: 941.7322835 | J10: 1146.456693 | K10: 1351.181102 | L10: 3848.818898 | M10: 6878.740157 | N10: 6305.511811 | O10: =SUM(CheckList1[[#This Row],[JAN]:[DEC]]) -> 40412.59843 | S10: Atlin | T10: 0 | U10: =IF(T10=1,COUNTIF($T$3:T10,1),"") ->  | V10: =IFERROR(INDEX($S$3:$S$281,MATCH(ROWS($U$3:U10),$U$3:$U$281,0)),"") ->  | W10: =IFERROR(INDEX($S$3:$S$281,MATCH(ROWS($U$3:V10),$U$3:$U$281,0)),"") ->  | X10: =IFERROR(INDEX($S$3:$S$281,MATCH(ROWS($U$3:U10),$U$3:$U$281,0)),"") ->  | Z10: =$V$3:INDEX($V$3:$V$281,MAX($U$3:$U$281),1) -> Saltspring Island
B11: Start of Month in Storage (imp gals) (Last Dec.) | D11: =IF(C17>0,(C17),(0)) -> 4133.070866 | E11: =IF(D17>0,(D17),(0)) -> 5686.614173 | F11: 6830.708661 | G11: 6664.566929 | H11: 5925.19685 | I11: 4940.15748 | J11: 1381.889764 | K11: 0 | L11: 0 | M11: 1348.818898 | N11: 5727.559055 | S11: Baddeck | T11: 0 | U11: =IF(T11=1,COUNTIF($T$3:T11,1),"") ->  | V11: =IFERROR(INDEX($S$3:$S$281,MATCH(ROWS($U$3:U11),$U$3:$U$281,0)),"") ->  | W11: =IFERROR(INDEX($S$3:$S$281,MATCH(ROWS($U$3:V11),$U$3:$U$281,0)),"") ->  | X11: =IFERROR(INDEX($S$3:$S$281,MATCH(ROWS($U$3:U11),$U$3:$U$281,0)),"") ->  | Z11: =$V$3:INDEX($V$3:$V$281,MAX($U$3:$U$281),1) -> Saltspring Island
B12: Household Usage (imp gals) | C12: 2500 | D12: 2500 | E12: 2500 | F12: 2500 | G12: 2500 | H12: 2500 | I12: 2500 | J12: 2500 | K12: 2500 | L12: 2500 | M12: 2500 | N12: 2500 | O12: =SUM(CheckList1[[#This Row],[JAN]:[DEC]]) -> 30000 | S12: Baie Verte | T12: 0 | U12: =IF(T12=1,COUNTIF($T$3:T12,1),"") ->  | V12: =IFERROR(INDEX($S$3:$S$281,MATCH(ROWS($U$3:U12),$U$3:$U$281,0)),"") ->  | W12: =IFERROR(INDEX($S$3:$S$281,MATCH(ROWS($U$3:V12),$U$3:$U$281,0)),"") ->  | X12: =IFERROR(INDEX($S$3:$S$281,MATCH(ROWS($U$3:U12),$U$3:$U$281,0)),"") ->  | Z12: =$V$3:INDEX($V$3:$V$281,MAX($U$3:$U$281),1) -> Saltspring Island
B13: Irrigation/Outside Usage (imp gals) (make-up) | I13: 2000 | J13: 2000 | K13: 2000 | O13: =SUM(CheckList1[[#This Row],[JAN]:[DEC]]) -> 6000 | S13: Baie-Comeau | T13: 0 | U13: =IF(T13=1,COUNTIF($T$3:T13,1),"") ->  | V13: =IFERROR(INDEX($S$3:$S$281,MATCH(ROWS($U$3:U13),$U$3:$U$281,0)),"") ->  | W13: =IFERROR(INDEX($S$3:$S$281,MATCH(ROWS($U$3:V13),$U$3:$U$281,0)),"") ->  | X13: =IFERROR(INDEX($S$3:$S$281,MATCH(ROWS($U$3:U13),$U$3:$U$281,0)),"") ->  | Z13: =$V$3:INDEX($V$3:$V$281,MAX($U$3:$U$281),1) -> Saltspring Island
B14: Total Usage (imp gals) | C14: =C13+C12 -> 2500 | D14: =D13+D12 -> 2500 | E14: 2500 | F14: 2500 | G14: 2500 | H14: 2500 | I14: 4500 | J14: 4500 | K14: 4500 | L14: 2500 | M14: 2500 | N14: 2500 | O14: =SUM(CheckList1[[#This Row],[JAN]:[DEC]]) -> 36000 | S14: Baltic | T14: 0 | U14: =IF(T14=1,COUNTIF($T$3:T14,1),"") ->  | V14: =IFERROR(INDEX($S$3:$S$281,MATCH(ROWS($U$3:U14),$U$3:$U$281,0)),"") ->  | W14: =IFERROR(INDEX($S$3:$S$281,MATCH(ROWS($U$3:V14),$U$3:$U$281,0)),"") ->  | X14: =IFERROR(INDEX($S$3:$S$281,MATCH(ROWS($U$3:U14),$U$3:$U$281,0)),"") ->  | Z14: =$V$3:INDEX($V$3:$V$281,MAX($U$3:$U$281),1) -> Saltspring Island
B15: End of Month (no Storage Limit) (imp gals) | C15: =C10+C11-C14 -> 4133.070866 | D15: 5686.614173 | E15: 6830.708661 | F15: 6664.566929 | G15: 5925.19685 | H15: 4940.15748 | I15: 1381.889764 | J15: -1971.653543 | K15: -3148.818898 | L15: 1348.818898 | M15: 5727.559055 | N15: 9533.070866 | P15: =SUM(CheckList1[[#This Row],[JAN]:[DEC]]) -> 47051.1811 | S15: Banff | T15: 0 | U15: =IF(T15=1,COUNTIF($T$3:T15,1),"") ->  | V15: =IFERROR(INDEX($S$3:$S$281,MATCH(ROWS($U$3:U15),$U$3:$U$281,0)),"") ->  | W15: =IFERROR(INDEX($S$3:$S$281,MATCH(ROWS($U$3:V15),$U$3:$U$281,0)),"") ->  | X15: =IFERROR(INDEX($S$3:$S$281,MATCH(ROWS($U$3:U15),$U$3:$U$281,0)),"") ->  | Z15: =$V$3:INDEX($V$3:$V$281,MAX($U$3:$U$281),1) -> Saltspring Island
B16: Overflow Volume - wastage (imp gals) | C16: =C15-C17 -> 0 | D16: =D15-D17 -> 0 | E16: 0 | F16: 0 | G16: 0 | H16: 0 | I16: 0 | J16: 0 | K16: 0 | L16: 0 | M16: 0 | N16: 0 | O16: =SUM(CheckList1[[#This Row],[JAN]:[DEC]]) -> 0
B17: End of Month in Storage (imp gals) (make-up) | C17: =IF(C15>$C$36,($C$36),(C15)) -> 4133.070866 | D17: 5686.614173 | E17: 6830.708661 | F17: 6664.566929 | G17: 5925.19685 | H17: 4940.15748 | I17: 1381.889764 | J17: -1971.653543 | K17: -3148.818898 | L17: 1348.818898 | M17: 5727.559055 | N17: 9533.070866 | P17: =SUM(CheckList1[[#This Row],[JAN]:[DEC]]) -> 47051.1811 | S17: Bangor | T17: 0 | U17: =IF(T17=1,COUNTIF($T$3:T17,1),"") ->  | V17: =IFERROR(INDEX($S$3:$S$281,MATCH(ROWS($U$3:U17),$U$3:$U$281,0)),"") ->  | W17: =IFERROR(INDEX($S$3:$S$281,MATCH(ROWS($U$3:V17),$U$3:$U$281,0)),"") ->  | X17: =IFERROR(INDEX($S$3:$S$281,MATCH(ROWS($U$3:U17),$U$3:$U$281,0)),"") ->  | Z17: =$V$3:INDEX($V$3:$V$281,MAX($U$3:$U$281),1) -> Saltspring Island
B18: ANNUAL OVERFLOW VOLUME (WASTAGE) | C18: =100%-((O10-(P15-P17))/O10) -> 0 | S18: Barkerville | T18: 0 | U18: =IF(T18=1,COUNTIF($T$3:T18,1),"") ->  | V18: =IFERROR(INDEX($S$3:$S$281,MATCH(ROWS($U$3:U18),$U$3:$U$281,0)),"") ->  | W18: =IFERROR(INDEX($S$3:$S$281,MATCH(ROWS($U$3:V18),$U$3:$U$281,0)),"") ->  | X18: =IFERROR(INDEX($S$3:$S$281,MATCH(ROWS($U$3:U18),$U$3:$U$281,0)),"") ->  | Z18: =$V$3:INDEX($V$3:$V$281,MAX($U$3:$U$281),1) -> Saltspring Island
B19: ANNUAL MAKE-UP WATER (SHORTFALL) | C19: =(IF(C15<0,($C15),(0))+IF(D15<0,($D15),(0))+IF(E15<0,($E15),(0))+IF(F15<0,($F15),(0))+IF(G15<0,($G15),(0))+IF(H15<0,($H15),(0))+IF(I15<0,($I15),(0))+IF(J15<0,($J15),(0))+IF(K15<0,($K15),(0))+IF(L15<0,($L15),(0))+IF(M15<0,($M15),(0))+IF(N15<0,($N15),(0)))/O14 -> -0.1422353456 | S19: Barrie | T19: 0 | U19: =IF(T19=1,COUNTIF($T$3:T19,1),"") ->  | V19: =IFERROR(INDEX($S$3:$S$281,MATCH(ROWS($U$3:U19),$U$3:$U$281,0)),"") ->  | W19: =IFERROR(INDEX($S$3:$S$281,MATCH(ROWS($U$3:V19),$U$3:$U$281,0)),"") ->  | X19: =IFERROR(INDEX($S$3:$S$281,MATCH(ROWS($U$3:U19),$U$3:$U$281,0)),"") ->  | Z19: =$V$3:INDEX($V$3:$V$281,MAX($U$3:$U$281),1) -> Saltspring Island
S20: Bathurst | T20: 0 | U20: =IF(T20=1,COUNTIF($T$3:T20,1),"") ->  | V20: =IFERROR(INDEX($S$3:$S$281,MATCH(ROWS($U$3:U20),$U$3:$U$281,0)),"") ->  | W20: =IFERROR(INDEX($S$3:$S$281,MATCH(ROWS($U$3:V20),$U$3:$U$281,0)),"") ->  | X20: =IFERROR(INDEX($S$3:$S$281,MATCH(ROWS($U$3:U20),$U$3:$U$281,0)),"") ->  | Z20: =$V$3:INDEX($V$3:$V$281,MAX($U$3:$U$281),1) -> Saltspring Island
S21: Blanc-Sablon | T21: 0 | U21: =IF(T21=1,COUNTIF($T$3:T21,1),"") ->  | V21: =IFERROR(INDEX($S$3:$S$281,MATCH(ROWS($U$3:U21),$U$3:$U$281,0)),"") ->  | W21: =IFERROR(INDEX($S$3:$S$281,MATCH(ROWS($U$3:V21),$U$3:$U$281,0)),"") ->  | X21: =IFERROR(INDEX($S$3:$S$281,MATCH(ROWS($U$3:U21),$U$3:$U$281,0)),"") ->  | Z21: =$V$3:INDEX($V$3:$V$281,MAX($U$3:$U$281),1) -> Saltspring Island
C22: OUTPUTS | S22: Alliston | T22: =--ISNUMBER(IFERROR(SEARCH($K$2,S22,1),"")) -> 0 | U22: =IF(T22=1,COUNTIF($T$3:T22,1),"") ->  | V22: =IFERROR(INDEX($S$3:$S$281,MATCH(ROWS($U$3:U22),$U$3:$U$281,0)),"") ->  | W22: =IFERROR(INDEX($S$3:$S$281,MATCH(ROWS($U$3:V22),$U$3:$U$281,0)),"") ->  | X22: =IFERROR(INDEX($S$3:$S$281,MATCH(ROWS($U$3:U22),$U$3:$U$281,0)),"") ->  | Z22: =$V$3:INDEX($V$3:$V$281,MAX($U$3:$U$281),1) -> Saltspring Island
S23: Amherst - Nappan | T23: 0 | U23: =IF(T23=1,COUNTIF($T$3:T23,1),"") ->  | V23: =IFERROR(INDEX($S$3:$S$281,MATCH(ROWS($U$3:U23),$U$3:$U$281,0)),"") ->  | W23: =IFERROR(INDEX($S$3:$S$281,MATCH(ROWS($U$3:V23),$U$3:$U$281,0)),"") ->  | X23: =IFERROR(INDEX($S$3:$S$281,MATCH(ROWS($U$3:U23),$U$3:$U$281,0)),"") ->  | Z23: =$V$3:INDEX($V$3:$V$281,MAX($U$3:$U$281),1) -> Saltspring Island
B24: MONTH | C24: JAN | D24: FEB | E24: MAR | F24: APR | G24: MAY | H24: JUN | I24: JUL | J24: AUG | K24: SEPT | L24: OCT | M24: NOV | N24: DEC | O24: TOTAL | P24: Column1 | S24: Amos | T24: 0 | U24: =IF(T24=1,COUNTIF($T$3:T24,1),"") ->  | V24: =IFERROR(INDEX($S$3:$S$281,MATCH(ROWS($U$3:U24),$U$3:$U$281,0)),"") ->  | W24: =IFERROR(INDEX($S$3:$S$281,MATCH(ROWS($U$3:V24),$U$3:$U$281,0)),"") ->  | X24: =IFERROR(INDEX($S$3:$S$281,MATCH(ROWS($U$3:U24),$U$3:$U$281,0)),"") ->  | Z24: =$V$3:INDEX($V$3:$V$281,MAX($U$3:$U$281),1) -> Saltspring Island
B25: Environment Canada Precipitation (mm) | C25: =VLOOKUP($K$2,'Rainfall Data'!$A$4:$O$271,2,FALSE) -> 162 | D25: =VLOOKUP($K$2,'Rainfall Data'!$A$4:$O$271,3,FALSE) -> 99 | E25: =VLOOKUP($K$2,'Rainfall Data'!$A$4:$O$271,4,FALSE) -> 89 | F25: =VLOOKUP($K$2,'Rainfall Data'!$A$4:$O$271,5,FALSE) -> 57 | G25: =VLOOKUP($K$2,'Rainfall Data'!$A$4:$O$271,6,FALSE) -> 43 | H25: =VLOOKUP($K$2,'Rainfall Data'!$A$4:$O$271,7,FALSE) -> 37 | I25: =VLOOKUP($K$2,'Rainfall Data'!$A$4:$O$271,8,FALSE) -> 23 | J25: =VLOOKUP($K$2,'Rainfall Data'!$A$4:$O$271,9,FALSE) -> 28 | K25: =VLOOKUP($K$2,'Rainfall Data'!$A$4:$O$271,10,FALSE) -> 33 | L25: =VLOOKUP($K$2,'Rainfall Data'!$A$4:$O$271,11,FALSE) -> 94 | M25: =VLOOKUP($K$2,'Rainfall Data'!$A$4:$O$271,12,FALSE) -> 168 | N25: =VLOOKUP($K$2,'Rainfall Data'!$A$4:$O$271,13,FALSE) -> 154 | O25: =SUM(#REF!) ->  | S25: Annapolis Royal | T25: 0 | U25: =IF(T25=1,COUNTIF($T$3:T25,1),"") ->  | V25: =IFERROR(INDEX($S$3:$S$281,MATCH(ROWS($U$3:U25),$U$3:$U$281,0)),"") ->  | W25: =IFERROR(INDEX($S$3:$S$281,MATCH(ROWS($U$3:V25),$U$3:$U$281,0)),"") ->  | X25: =IFERROR(INDEX($S$3:$S$281,MATCH(ROWS($U$3:U25),$U$3:$U$281,0)),"") ->  | Z25: =$V$3:INDEX($V$3:$V$281,MAX($U$3:$U$281),1) -> Saltspring Island
B26: mm to Inches & inches to Gallon | C26: =(C25/25.4)*(6.24/12) -> 3.316535433 | D26: 2.026771654 | E26: 1.822047244 | F26: 1.166929134 | G26: 0.8803149606 | H26: 0.757480315 | I26: 0.4708661417 | J26: 0.5732283465 | K26: 0.6755905512 | L26: 1.924409449 | M26: 3.439370079 | N26: 3.152755906 | O26: =SUM(CheckList14[[#This Row],[JAN]:[DEC]]) -> 20.20629921 | S26: Atikokan | T26: 0 | U26: =IF(T26=1,COUNTIF($T$3:T26,1),"") ->  | V26: =IFERROR(INDEX($S$3:$S$281,MATCH(ROWS($U$3:U26),$U$3:$U$281,0)),"") ->  | W26: =IFERROR(INDEX($S$3:$S$281,MATCH(ROWS($U$3:V26),$U$3:$U$281,0)),"") ->  | X26: =IFERROR(INDEX($S$3:$S$281,MATCH(ROWS($U$3:U26),$U$3:$U$281,0)),"") ->  | Z26: =$V$3:INDEX($V$3:$V$281,MAX($U$3:$U$281),1) -> Saltspring Island
B27: Precipitation Received from Roof (imp gals) | C27: =($C$37*C26)*$C$38 -> 6633.070866 | D27: 4053.543307 | E27: 3644.094488 | F27: 2333.858268 | G27: 1760.629921 | H27: 1514.96063 | I27: 941.7322835 | J27: 1146.456693 | K27: 1351.181102 | L27: 3848.818898 | M27: 6878.740157 | N27: 6305.511811 | O27: =SUM(CheckList14[[#This Row],[JAN]:[DEC]]) -> 40412.59843 | S27: Atlin | T27: 0 | U27: =IF(T27=1,COUNTIF($T$3:T27,1),"") ->  | V27: =IFERROR(INDEX($S$3:$S$281,MATCH(ROWS($U$3:U27),$U$3:$U$281,0)),"") ->  | W27: =IFERROR(INDEX($S$3:$S$281,MATCH(ROWS($U$3:V27),$U$3:$U$281,0)),"") ->  | X27: =IFERROR(INDEX($S$3:$S$281,MATCH(ROWS($U$3:U27),$U$3:$U$281,0)),"") ->  | Z27: =$V$3:INDEX($V$3:$V$281,MAX($U$3:$U$281),1) -> Saltspring Island
B28: Start of Month in Storage (imp gals) (Last Dec.) | C28: =N17 -> 9533.070866 | D28: =IF(C34>0,(C34),(0)) -> 10000 | E28: =IF(D34>0,(D34),(0)) -> 10000 | F28: =IF(E34>0,(E34),(0)) -> 10000 | G28: =IF(F34>0,(F34),(0)) -> 9833.858268 | H28: =IF(G34>0,(G34),(0)) -> 9094.488189 | I28: =IF(H34>0,(H34),(0)) -> 8109.448819 | J28: =IF(I34>0,(I34),(0)) -> 4551.181102 | K28: =IF(J34>0,(J34),(0)) -> 1197.637795 | L28: =IF(K34>0,(K34),(0)) -> 0 | M28: =IF(L34>0,(L34),(0)) -> 1348.818898 | N28: =IF(M34>0,(M34),(0)) -> 5727.559055 | S28: Baddeck | T28: 0 | U28: =IF(T28=1,COUNTIF($T$3:T28,1),"") ->  | V28: =IFERROR(INDEX($S$3:$S$281,MATCH(ROWS($U$3:U28),$U$3:$U$281,0)),"") ->  | W28: =IFERROR(INDEX($S$3:$S$281,MATCH(ROWS($U$3:V28),$U$3:$U$281,0)),"") ->  | X28: =IFERROR(INDEX($S$3:$S$281,MATCH(ROWS($U$3:U28),$U$3:$U$281,0)),"") ->  | Z28: =$V$3:INDEX($V$3:$V$281,MAX($U$3:$U$281),1) -> Saltspring Island
B29: Household Usage (imp gals) | C29: 2500 | D29: 2500 | E29: 2500 | F29: 2500 | G29: 2500 | H29: 2500 | I29: 2500 | J29: 2500 | K29: 2500 | L29: 2500 | M29: 2500 | N29: 2500 | O29: =SUM(CheckList14[[#This Row],[JAN]:[DEC]]) -> 30000 | S29: Baie Verte | T29: 0 | U29: =IF(T29=1,COUNTIF($T$3:T29,1),"") ->  | V29: =IFERROR(INDEX($S$3:$S$281,MATCH(ROWS($U$3:U29),$U$3:$U$281,0)),"") ->  | W29: =IFERROR(INDEX($S$3:$S$281,MATCH(ROWS($U$3:V29),$U$3:$U$281,0)),"") ->  | X29: =IFERROR(INDEX($S$3:$S$281,MATCH(ROWS($U$3:U29),$U$3:$U$281,0)),"") ->  | Z29: =$V$3:INDEX($V$3:$V$281,MAX($U$3:$U$281),1) -> Saltspring Island
B30: Irrigation/Outside Usage (imp gals) (make-up) | I30: 2000 | J30: 2000 | K30: 2000 | O30: =SUM(CheckList14[[#This Row],[JAN]:[DEC]]) -> 6000 | S30: Baie-Comeau | T30: 0 | U30: =IF(T30=1,COUNTIF($T$3:T30,1),"") ->  | V30: =IFERROR(INDEX($S$3:$S$281,MATCH(ROWS($U$3:U30),$U$3:$U$281,0)),"") ->  | W30: =IFERROR(INDEX($S$3:$S$281,MATCH(ROWS($U$3:V30),$U$3:$U$281,0)),"") ->  | X30: =IFERROR(INDEX($S$3:$S$281,MATCH(ROWS($U$3:U30),$U$3:$U$281,0)),"") ->  | Z30: =$V$3:INDEX($V$3:$V$281,MAX($U$3:$U$281),1) -> Saltspring Island
B31: Total Usage (imp gals) | C31: =C30+C29 -> 2500 | D31: =D30+D29 -> 2500 | E31: 2500 | F31: 2500 | G31: 2500 | H31: 2500 | I31: 4500 | J31: 4500 | K31: 4500 | L31: 2500 | M31: 2500 | N31: 2500 | O31: =SUM(CheckList14[[#This Row],[JAN]:[DEC]]) -> 36000 | S31: Baltic | T31: 0 | U31: =IF(T31=1,COUNTIF($T$3:T31,1),"") ->  | V31: =IFERROR(INDEX($S$3:$S$281,MATCH(ROWS($U$3:U31),$U$3:$U$281,0)),"") ->  | W31: =IFERROR(INDEX($S$3:$S$281,MATCH(ROWS($U$3:V31),$U$3:$U$281,0)),"") ->  | X31: =IFERROR(INDEX($S$3:$S$281,MATCH(ROWS($U$3:U31),$U$3:$U$281,0)),"") ->  | Z31: =$V$3:INDEX($V$3:$V$281,MAX($U$3:$U$281),1) -> Saltspring Island
B32: End of Month (no Storage Limit) (imp gals) | C32: =C27+C28-C31 -> 13666.14173 | D32: 11553.54331 | E32: 11144.09449 | F32: 9833.858268 | G32: 9094.488189 | H32: 8109.448819 | I32: 4551.181102 | J32: 1197.637795 | K32: -1951.181102 | L32: 1348.818898 | M32: 5727.559055 | N32: 9533.070866 | P32: =SUM(CheckList14[[#This Row],[JAN]:[DEC]]) -> 83808.66142 | S32: Banff | T32: 0 | U32: =IF(T32=1,COUNTIF($T$3:T32,1),"") ->  | V32: =IFERROR(INDEX($S$3:$S$281,MATCH(ROWS($U$3:U32),$U$3:$U$281,0)),"") ->  | W32: =IFERROR(INDEX($S$3:$S$281,MATCH(ROWS($U$3:V32),$U$3:$U$281,0)),"") ->  | X32: =IFERROR(INDEX($S$3:$S$281,MATCH(ROWS($U$3:U32),$U$3:$U$281,0)),"") ->  | Z32: =$V$3:INDEX($V$3:$V$281,MAX($U$3:$U$281),1) -> Saltspring Island
B33: Overflow Volume - wastage (imp gals) | C33: =C32-C34 -> 3666.141732 | D33: =D32-D34 -> 1553.543307 | E33: 1144.094488 | F33: 0 | G33: 0 | H33: 0 | I33: 0 | J33: 0 | K33: 0 | L33: 0 | M33: 0 | N33: 0 | O33: =SUM(CheckList14[[#This Row],[JAN]:[DEC]]) -> 6363.779528
B34: End of Month in Storage (imp gals) (make-up) | C34: =IF(C32>$C$36,($C$36),(C32)) -> 10000 | D34: 10000 | E34: 10000 | F34: 9833.858268 | G34: 9094.488189 | H34: 8109.448819 | I34: 4551.181102 | J34: 1197.637795 | K34: -1951.181102 | L34: 1348.818898 | M34: 5727.559055 | N34: 9533.070866 | P34: =SUM(CheckList14[[#This Row],[JAN]:[DEC]]) -> 77444.88189 | S34: Bangor | T34: =--ISNUMBER(IFERROR(SEARCH($K$2,S34,1),"")) -> 0 | U34: =IF(T34=1,COUNTIF($T$3:T34,1),"") ->  | V34: =IFERROR(INDEX($S$3:$S$281,MATCH(ROWS($U$3:U34),$U$3:$U$281,0)),"") ->  | W34: =IFERROR(INDEX($S$3:$S$281,MATCH(ROWS($U$3:V34),$U$3:$U$281,0)),"") ->  | X34: =IFERROR(INDEX($S$3:$S$281,MATCH(ROWS($U$3:U34),$U$3:$U$281,0)),"") ->  | Z34: =$V$3:INDEX($V$3:$V$281,MAX($U$3:$U$281),1) -> Saltspring Island
S35: Bathurst | T35: =--ISNUMBER(IFERROR(SEARCH($K$2,S35,1),"")) -> 0 | U35: =IF(T35=1,COUNTIF($T$3:T35,1),"") ->  | V35: =IFERROR(INDEX($S$3:$S$281,MATCH(ROWS($U$3:U35),$U$3:$U$281,0)),"") ->  | W35: =IFERROR(INDEX($S$3:$S$281,MATCH(ROWS($U$3:V35),$U$3:$U$281,0)),"") ->  | X35: =IFERROR(INDEX($S$3:$S$281,MATCH(ROWS($U$3:U35),$U$3:$U$281,0)),"") ->  | Z35: =$V$3:INDEX($V$3:$V$281,MAX($U$3:$U$281),1) -> Saltspring Island
B36: SELECTED TANK CAPACITY (IMP GALS) | C36: 10000 | S36: Bella Coola | T36: =--ISNUMBER(IFERROR(SEARCH($K$2,S36,1),"")) -> 0 | U36: =IF(T36=1,COUNTIF($T$3:T36,1),"") ->  | V36: =IFERROR(INDEX($S$3:$S$281,MATCH(ROWS($U$3:U36),$U$3:$U$281,0)),"") ->  | W36: =IFERROR(INDEX($S$3:$S$281,MATCH(ROWS($U$3:V36),$U$3:$U$281,0)),"") ->  | X36: =IFERROR(INDEX($S$3:$S$281,MATCH(ROWS($U$3:U36),$U$3:$U$281,0)),"") ->  | Z36: =$V$3:INDEX($V$3:$V$281,MAX($U$3:$U$281),1) -> Saltspring Island
B37: ROOF AREA (SQFT) | C37: 2500 | S37: Belleville | T37: 0 | U37: =IF(T37=1,COUNTIF($T$3:T37,1),"") ->  | V37: =IFERROR(INDEX($S$3:$S$281,MATCH(ROWS($U$3:U37),$U$3:$U$281,0)),"") ->  | W37: =IFERROR(INDEX($S$3:$S$281,MATCH(ROWS($U$3:V37),$U$3:$U$281,0)),"") ->  | X37: =IFERROR(INDEX($S$3:$S$281,MATCH(ROWS($U$3:U37),$U$3:$U$281,0)),"") ->  | Z37: =$V$3:INDEX($V$3:$V$281,MAX($U$3:$U$281),1) -> Saltspring Island
B38: ROOF EFFICIENCY | C38: 0.8 | S38: Big Trout Lake | T38: 0 | U38: =IF(T38=1,COUNTIF($T$3:T38,1),"") ->  | V38: =IFERROR(INDEX($S$3:$S$281,MATCH(ROWS($U$3:U38),$U$3:$U$281,0)),"") ->  | W38: =IFERROR(INDEX($S$3:$S$281,MATCH(ROWS($U$3:V38),$U$3:$U$281,0)),"") ->  | X38: =IFERROR(INDEX($S$3:$S$281,MATCH(ROWS($U$3:U38),$U$3:$U$281,0)),"") ->  | Z38: =$V$3:INDEX($V$3:$V$281,MAX($U$3:$U$281),1) -> Saltspring Island
B39: SELECTED TANK CAPACITY (IMP GALS) | C39: 5000 | S39: Bella Coola | T39: 0 | U39: =IF(T39=1,COUNTIF($T$3:T39,1),"") ->  | V39: =IFERROR(INDEX($S$3:$S$281,MATCH(ROWS($U$3:U39),$U$3:$U$281,0)),"") ->  | W39: =IFERROR(INDEX($S$3:$S$281,MATCH(ROWS($U$3:V39),$U$3:$U$281,0)),"") ->  | X39: =IFERROR(INDEX($S$3:$S$281,MATCH(ROWS($U$3:U39),$U$3:$U$281,0)),"") ->  | Z39: =$V$3:INDEX($V$3:$V$281,MAX($U$3:$U$281),1) -> Saltspring Island
B40: ROOF AREA (SQFT) | C40: 2500 | S40: Belleville | T40: 0 | U40: =IF(T40=1,COUNTIF($T$3:T40,1),"") ->  | V40: =IFERROR(INDEX($S$3:$S$281,MATCH(ROWS($U$3:U40),$U$3:$U$281,0)),"") ->  | W40: =IFERROR(INDEX($S$3:$S$281,MATCH(ROWS($U$3:V40),$U$3:$U$281,0)),"") ->  | X40: =IFERROR(INDEX($S$3:$S$281,MATCH(ROWS($U$3:U40),$U$3:$U$281,0)),"") ->  | Z40: =$V$3:INDEX($V$3:$V$281,MAX($U$3:$U$281),1) -> Saltspring Island
B41: ROOF EFFICIENCY | C41: 0.9 | S41: Big Trout Lake | T41: 0 | U41: =IF(T41=1,COUNTIF($T$3:T45,1),"") ->  | V41: =IFERROR(INDEX($S$3:$S$281,MATCH(ROWS($U$3:U45),$U$3:$U$281,0)),"") ->  | W41: =IFERROR(INDEX($S$3:$S$281,MATCH(ROWS($U$3:V45),$U$3:$U$281,0)),"") ->  | X41: =IFERROR(INDEX($S$3:$S$281,MATCH(ROWS($U$3:U45),$U$3:$U$281,0)),"") ->  | Z41: =$V$3:INDEX($V$3:$V$281,MAX($U$3:$U$281),1) -> Saltspring Island
B43: ANNUAL OVERFLOW VOLUME (WASTAGE) | C43: =100%-((O27-(P32-P34))/O27) -> 0.1574701894 | S43: Barkerville | T43: 0 | U43: =IF(T43=1,COUNTIF($T$3:T43,1),"") ->  | V43: =IFERROR(INDEX($S$3:$S$281,MATCH(ROWS($U$3:U43),$U$3:$U$281,0)),"") ->  | W43: =IFERROR(INDEX($S$3:$S$281,MATCH(ROWS($U$3:V43),$U$3:$U$281,0)),"") ->  | X43: =IFERROR(INDEX($S$3:$S$281,MATCH(ROWS($U$3:U43),$U$3:$U$281,0)),"") ->  | Z43: =$V$3:INDEX($V$3:$V$281,MAX($U$3:$U$281),1) -> Saltspring Island
B44: ANNUAL MAKE-UP WATER (SHORTFALL) | C44: =(IF(C32<0,($C32),(0))+IF(D32<0,($D32),(0))+IF(E32<0,($E32),(0))+IF(F32<0,($F32),(0))+IF(G32<0,($G32),(0))+IF(H32<0,($H32),(0))+IF(I32<0,($I32),(0))+IF(J32<0,($J32),(0))+IF(K32<0,($K32),(0))+IF(L32<0,($L32),(0))+IF(M32<0,($M32),(0))+IF(N32<0,($N32),(0)))/O31 -> -0.05419947507 | S44: Barrie | T44: 0 | U44: =IF(T44=1,COUNTIF($T$3:T44,1),"") ->  | V44: =IFERROR(INDEX($S$3:$S$281,MATCH(ROWS($U$3:U44),$U$3:$U$281,0)),"") ->  | W44: =IFERROR(INDEX($S$3:$S$281,MATCH(ROWS($U$3:V44),$U$3:$U$281,0)),"") ->  | X44: =IFERROR(INDEX($S$3:$S$281,MATCH(ROWS($U$3:U44),$U$3:$U$281,0)),"") ->  | Z44: =$V$3:INDEX($V$3:$V$281,MAX($U$3:$U$281),1) -> Saltspring Island
S45: Bathurst | T45: 0 | U45: =IF(T45=1,COUNTIF($T$3:T45,1),"") ->  | V45: =IFERROR(INDEX($S$3:$S$281,MATCH(ROWS($U$3:U45),$U$3:$U$281,0)),"") ->  | W45: =IFERROR(INDEX($S$3:$S$281,MATCH(ROWS($U$3:V45),$U$3:$U$281,0)),"") ->  | X45: =IFERROR(INDEX($S$3:$S$281,MATCH(ROWS($U$3:U45),$U$3:$U$281,0)),"") ->  | Z45: =$V$3:INDEX($V$3:$V$281,MAX($U$3:$U$281),1) -> Saltspring Island
B46: Notes: | S46: Caplan | T46: 0 | U46: =IF(T46=1,COUNTIF($T$3:T46,1),"") ->  | V46: =IFERROR(INDEX($S$3:$S$281,MATCH(ROWS($U$3:U46),$U$3:$U$281,0)),"") ->  | W46: =IFERROR(INDEX($S$3:$S$281,MATCH(ROWS($U$3:V46),$U$3:$U$281,0)),"") ->  | X46: =IFERROR(INDEX($S$3:$S$281,MATCH(ROWS($U$3:U46),$U$3:$U$281,0)),"") ->  | Z46: =$V$3:INDEX($V$3:$V$281,MAX($U$3:$U$281),1) -> Saltspring Island
B47: - Performance based on monthly averages. | S47: Cardston | T47: 0 | U47: =IF(T47=1,COUNTIF($T$3:T47,1),"") ->  | V47: =IFERROR(INDEX($S$3:$S$281,MATCH(ROWS($U$3:U47),$U$3:$U$281,0)),"") ->  | W47: =IFERROR(INDEX($S$3:$S$281,MATCH(ROWS($U$3:V47),$U$3:$U$281,0)),"") ->  | X47: =IFERROR(INDEX($S$3:$S$281,MATCH(ROWS($U$3:U47),$U$3:$U$281,0)),"") ->  | Z47: =$V$3:INDEX($V$3:$V$281,MAX($U$3:$U$281),1) -> Saltspring Island
B48: - Bracketed numbers indicate rainwater shortfall | S48: Cartwright | T48: 0 | U48: =IF(T48=1,COUNTIF($T$3:T48,1),"") ->  | V48: =IFERROR(INDEX($S$3:$S$281,MATCH(ROWS($U$3:U48),$U$3:$U$281,0)),"") ->  | W48: =IFERROR(INDEX($S$3:$S$281,MATCH(ROWS($U$3:V48),$U$3:$U$281,0)),"") ->  | X48: =IFERROR(INDEX($S$3:$S$281,MATCH(ROWS($U$3:U48),$U$3:$U$281,0)),"") ->  | Z48: =$V$3:INDEX($V$3:$V$281,MAX($U$3:$U$281),1) -> Saltspring Island
B49: - Precipitation includes snowfall | S49: Castlegar | T49: 0 | U49: =IF(T49=1,COUNTIF($T$3:T49,1),"") ->  | V49: =IFERROR(INDEX($S$3:$S$281,MATCH(ROWS($U$3:U49),$U$3:$U$281,0)),"") ->  | W49: =IFERROR(INDEX($S$3:$S$281,MATCH(ROWS($U$3:V49),$U$3:$U$281,0)),"") ->  | X49: =IFERROR(INDEX($S$3:$S$281,MATCH(ROWS($U$3:U49),$U$3:$U$281,0)),"") ->  | Z49: =$V$3:INDEX($V$3:$V$281,MAX($U$3:$U$281),1) -> Saltspring Island
B50: - Useful links: | S50: Channel-Port-Aux-Basques | T50: 0 | U50: =IF(T50=1,COUNTIF($T$3:T50,1),"") ->  | V50: =IFERROR(INDEX($S$3:$S$281,MATCH(ROWS($U$3:U50),$U$3:$U$281,0)),"") ->  | W50: =IFERROR(INDEX($S$3:$S$281,MATCH(ROWS($U$3:V50),$U$3:$U$281,0)),"") ->  | X50: =IFERROR(INDEX($S$3:$S$281,MATCH(ROWS($U$3:U50),$U$3:$U$281,0)),"") ->  | Z50: =$V$3:INDEX($V$3:$V$281,MAX($U$3:$U$281),1) -> Saltspring Island
B51: *Rainwater Guide for Homeowners - CMHC | S51: Chapleau | T51: 0 | U51: =IF(T51=1,COUNTIF($T$3:T51,1),"") ->  | V51: =IFERROR(INDEX($S$3:$S$281,MATCH(ROWS($U$3:U51),$U$3:$U$281,0)),"") ->  | W51: =IFERROR(INDEX($S$3:$S$281,MATCH(ROWS($U$3:V51),$U$3:$U$281,0)),"") ->  | X51: =IFERROR(INDEX($S$3:$S$281,MATCH(ROWS($U$3:U51),$U$3:$U$281,0)),"") ->  | Z51: =$V$3:INDEX($V$3:$V$281,MAX($U$3:$U$281),1) -> Saltspring Island
B52: *Irrigation Discussion | S52: Charlottetown | T52: 0 | U52: =IF(T52=1,COUNTIF($T$3:T52,1),"") ->  | V52: =IFERROR(INDEX($S$3:$S$281,MATCH(ROWS($U$3:U52),$U$3:$U$281,0)),"") ->  | W52: =IFERROR(INDEX($S$3:$S$281,MATCH(ROWS($U$3:V52),$U$3:$U$281,0)),"") ->  | X52: =IFERROR(INDEX($S$3:$S$281,MATCH(ROWS($U$3:U52),$U$3:$U$281,0)),"") ->  | Z52: =$V$3:INDEX($V$3:$V$281,MAX($U$3:$U$281),1) -> Saltspring Island
B53: *Irrigation Calculator | S53: Chatham-Kent | T53: 0 | U53: =IF(T53=1,COUNTIF($T$3:T53,1),"") ->  | V53: =IFERROR(INDEX($S$3:$S$281,MATCH(ROWS($U$3:U53),$U$3:$U$281,0)),"") ->  | W53: =IFERROR(INDEX($S$3:$S$281,MATCH(ROWS($U$3:V53),$U$3:$U$281,0)),"") ->  | X53: =IFERROR(INDEX($S$3:$S$281,MATCH(ROWS($U$3:U53),$U$3:$U$281,0)),"") ->  | Z53: =$V$3:INDEX($V$3:$V$281,MAX($U$3:$U$281),1) -> Saltspring Island
B54: *Premierplastics.com | S54: Cheticamp | T54: 0 | U54: =IF(T54=1,COUNTIF($T$3:T54,1),"") ->  | V54: =IFERROR(INDEX($S$3:$S$281,MATCH(ROWS($U$3:U54),$U$3:$U$281,0)),"") ->  | W54: =IFERROR(INDEX($S$3:$S$281,MATCH(ROWS($U$3:V54),$U$3:$U$281,0)),"") ->  | X54: =IFERROR(INDEX($S$3:$S$281,MATCH(ROWS($U$3:U54),$U$3:$U$281,0)),"") ->  | Z54: =$V$3:INDEX($V$3:$V$281,MAX($U$3:$U$281),1) -> Saltspring Island
S55: Chilliwack | T55: 0 | U55: =IF(T55=1,COUNTIF($T$3:T55,1),"") ->  | V55: =IFERROR(INDEX($S$3:$S$281,MATCH(ROWS($U$3:U55),$U$3:$U$281,0)),"") ->  | W55: =IFERROR(INDEX($S$3:$S$281,MATCH(ROWS($U$3:V55),$U$3:$U$281,0)),"") ->  | X55: =IFERROR(INDEX($S$3:$S$281,MATCH(ROWS($U$3:U55),$U$3:$U$281,0)),"") ->  | Z55: =$V$3:INDEX($V$3:$V$281,MAX($U$3:$U$281),1) -> Saltspring Island
S56: Churchill | T56: 0 | U56: =IF(T56=1,COUNTIF($T$3:T56,1),"") ->  | V56: =IFERROR(INDEX($S$3:$S$281,MATCH(ROWS($U$3:U56),$U$3:$U$281,0)),"") ->  | W56: =IFERROR(INDEX($S$3:$S$281,MATCH(ROWS($U$3:V56),$U$3:$U$281,0)),"") ->  | X56: =IFERROR(INDEX($S$3:$S$281,MATCH(ROWS($U$3:U56),$U$3:$U$281,0)),"") ->  | Z56: =$V$3:INDEX($V$3:$V$281,MAX($U$3:$U$281),1) -> Saltspring Island
S57: Churchill Falls | T57: 0 | U57: =IF(T57=1,COUNTIF($T$3:T57,1),"") ->  | V57: =IFERROR(INDEX($S$3:$S$281,MATCH(ROWS($U$3:U57),$U$3:$U$281,0)),"") ->  | W57: =IFERROR(INDEX($S$3:$S$281,MATCH(ROWS($U$3:V57),$U$3:$U$281,0)),"") ->  | X57: =IFERROR(INDEX($S$3:$S$281,MATCH(ROWS($U$3:U57),$U$3:$U$281,0)),"") ->  | Z57: =$V$3:INDEX($V$3:$V$281,MAX($U$3:$U$281),1) -> Saltspring Island
S58: Cold Lake | T58: 0 | U58: =IF(T58=1,COUNTIF($T$3:T58,1),"") ->  | V58: =IFERROR(INDEX($S$3:$S$281,MATCH(ROWS($U$3:U58),$U$3:$U$281,0)),"") ->  | W58: =IFERROR(INDEX($S$3:$S$281,MATCH(ROWS($U$3:V58),$U$3:$U$281,0)),"") ->  | X58: =IFERROR(INDEX($S$3:$S$281,MATCH(ROWS($U$3:U58),$U$3:$U$281,0)),"") ->  | Z58: =$V$3:INDEX($V$3:$V$281,MAX($U$3:$U$281),1) -> Saltspring Island
S59: Collins Bay | T59: 0 | U59: =IF(T59=1,COUNTIF($T$3:T59,1),"") ->  | V59: =IFERROR(INDEX($S$3:$S$281,MATCH(ROWS($U$3:U59),$U$3:$U$281,0)),"") ->  | W59: =IFERROR(INDEX($S$3:$S$281,MATCH(ROWS($U$3:V59),$U$3:$U$281,0)),"") ->  | X59: =IFERROR(INDEX($S$3:$S$281,MATCH(ROWS($U$3:U59),$U$3:$U$281,0)),"") ->  | Z59: =$V$3:INDEX($V$3:$V$281,MAX($U$3:$U$281),1) -> Saltspring Island
S60: Come By Chance | T60: 0 | U60: =IF(T60=1,COUNTIF($T$3:T60,1),"") ->  | V60: =IFERROR(INDEX($S$3:$S$281,MATCH(ROWS($U$3:U60),$U$3:$U$281,0)),"") ->  | W60: =IFERROR(INDEX($S$3:$S$281,MATCH(ROWS($U$3:V60),$U$3:$U$281,0)),"") ->  | X60: =IFERROR(INDEX($S$3:$S$281,MATCH(ROWS($U$3:U60),$U$3:$U$281,0)),"") ->  | Z60: =$V$3:INDEX($V$3:$V$281,MAX($U$3:$U$281),1) -> Saltspring Island
S61: Corner Brook | T61: 0 | U61: =IF(T61=1,COUNTIF($T$3:T61,1),"") ->  | V61: =IFERROR(INDEX($S$3:$S$281,MATCH(ROWS($U$3:U61),$U$3:$U$281,0)),"") ->  | W61: =IFERROR(INDEX($S$3:$S$281,MATCH(ROWS($U$3:V61),$U$3:$U$281,0)),"") ->  | X61: =IFERROR(INDEX($S$3:$S$281,MATCH(ROWS($U$3:U61),$U$3:$U$281,0)),"") ->  | Z61: =$V$3:INDEX($V$3:$V$281,MAX($U$3:$U$281),1) -> Saltspring Island
S62: Cornwall | T62: 0 | U62: =IF(T62=1,COUNTIF($T$3:T62,1),"") ->  | V62: =IFERROR(INDEX($S$3:$S$281,MATCH(ROWS($U$3:U62),$U$3:$U$281,0)),"") ->  | W62: =IFERROR(INDEX($S$3:$S$281,MATCH(ROWS($U$3:V62),$U$3:$U$281,0)),"") ->  | X62: =IFERROR(INDEX($S$3:$S$281,MATCH(ROWS($U$3:U62),$U$3:$U$281,0)),"") ->  | Z62: =$V$3:INDEX($V$3:$V$281,MAX($U$3:$U$281),1) -> Saltspring Island
S63: Cortes Island, Whaletown | T63: 0 | U63: =IF(T63=1,COUNTIF($T$3:T63,1),"") ->  | V63: =IFERROR(INDEX($S$3:$S$281,MATCH(ROWS($U$3:U63),$U$3:$U$281,0)),"") ->  | W63: =IFERROR(INDEX($S$3:$S$281,MATCH(ROWS($U$3:V63),$U$3:$U$281,0)),"") ->  | X63: =IFERROR(INDEX($S$3:$S$281,MATCH(ROWS($U$3:U63),$U$3:$U$281,0)),"") ->  | Z63: =$V$3:INDEX($V$3:$V$281,MAX($U$3:$U$281),1) -> Saltspring Island
S64: Courtenay - Comox | T64: 0 | U64: =IF(T64=1,COUNTIF($T$3:T64,1),"") ->  | V64: =IFERROR(INDEX($S$3:$S$281,MATCH(ROWS($U$3:U64),$U$3:$U$281,0)),"") ->  | W64: =IFERROR(INDEX($S$3:$S$281,MATCH(ROWS($U$3:V64),$U$3:$U$281,0)),"") ->  | X64: =IFERROR(INDEX($S$3:$S$281,MATCH(ROWS($U$3:U64),$U$3:$U$281,0)),"") ->  | Z64: =$V$3:INDEX($V$3:$V$281,MAX($U$3:$U$281),1) -> Saltspring Island
S65: Cranbrook | T65: 0 | U65: =IF(T65=1,COUNTIF($T$3:T65,1),"") ->  | V65: =IFERROR(INDEX($S$3:$S$281,MATCH(ROWS($U$3:U65),$U$3:$U$281,0)),"") ->  | W65: =IFERROR(INDEX($S$3:$S$281,MATCH(ROWS($U$3:V65),$U$3:$U$281,0)),"") ->  | X65: =IFERROR(INDEX($S$3:$S$281,MATCH(ROWS($U$3:U65),$U$3:$U$281,0)),"") ->  | Z65: =$V$3:INDEX($V$3:$V$281,MAX($U$3:$U$281),1) -> Saltspring Island
S66: Cree Lake | T66: 0 | U66: =IF(T66=1,COUNTIF($T$3:T66,1),"") ->  | V66: =IFERROR(INDEX($S$3:$S$281,MATCH(ROWS($U$3:U66),$U$3:$U$281,0)),"") ->  | W66: =IFERROR(INDEX($S$3:$S$281,MATCH(ROWS($U$3:V66),$U$3:$U$281,0)),"") ->  | X66: =IFERROR(INDEX($S$3:$S$281,MATCH(ROWS($U$3:U66),$U$3:$U$281,0)),"") ->  | Z66: =$V$3:INDEX($V$3:$V$281,MAX($U$3:$U$281),1) -> Saltspring Island
S67: Cross Lake | T67: 0 | U67: =IF(T67=1,COUNTIF($T$3:T67,1),"") ->  | V67: =IFERROR(INDEX($S$3:$S$281,MATCH(ROWS($U$3:U67),$U$3:$U$281,0)),"") ->  | W67: =IFERROR(INDEX($S$3:$S$281,MATCH(ROWS($U$3:V67),$U$3:$U$281,0)),"") ->  | X67: =IFERROR(INDEX($S$3:$S$281,MATCH(ROWS($U$3:U67),$U$3:$U$281,0)),"") ->  | Z67: =$V$3:INDEX($V$3:$V$281,MAX($U$3:$U$281),1) -> Saltspring Island
S68: Cypress Hills | T68: 0 | U68: =IF(T68=1,COUNTIF($T$3:T68,1),"") ->  | V68: =IFERROR(INDEX($S$3:$S$281,MATCH(ROWS($U$3:U68),$U$3:$U$281,0)),"") ->  | W68: =IFERROR(INDEX($S$3:$S$281,MATCH(ROWS($U$3:V68),$U$3:$U$281,0)),"") ->  | X68: =IFERROR(INDEX($S$3:$S$281,MATCH(ROWS($U$3:U68),$U$3:$U$281,0)),"") ->  | Z68: =$V$3:INDEX($V$3:$V$281,MAX($U$3:$U$281),1) -> Saltspring Island
S69: Dalhousie | T69: 0 | U69: =IF(T69=1,COUNTIF($T$3:T69,1),"") ->  | V69: =IFERROR(INDEX($S$3:$S$281,MATCH(ROWS($U$3:U69),$U$3:$U$281,0)),"") ->  | W69: =IFERROR(INDEX($S$3:$S$281,MATCH(ROWS($U$3:V69),$U$3:$U$281,0)),"") ->  | X69: =IFERROR(INDEX($S$3:$S$281,MATCH(ROWS($U$3:U69),$U$3:$U$281,0)),"") ->  | Z69: =$V$3:INDEX($V$3:$V$281,MAX($U$3:$U$281),1) -> Saltspring Island
S70: Dauphin | T70: 0 | U70: =IF(T70=1,COUNTIF($T$3:T70,1),"") ->  | V70: =IFERROR(INDEX($S$3:$S$281,MATCH(ROWS($U$3:U70),$U$3:$U$281,0)),"") ->  | W70: =IFERROR(INDEX($S$3:$S$281,MATCH(ROWS($U$3:V70),$U$3:$U$281,0)),"") ->  | X70: =IFERROR(INDEX($S$3:$S$281,MATCH(ROWS($U$3:U70),$U$3:$U$281,0)),"") ->  | Z70: =$V$3:INDEX($V$3:$V$281,MAX($U$3:$U$281),1) -> Saltspring Island
S71: Deer Lake | T71: 0 | U71: =IF(T71=1,COUNTIF($T$3:T71,1),"") ->  | V71: =IFERROR(INDEX($S$3:$S$281,MATCH(ROWS($U$3:U71),$U$3:$U$281,0)),"") ->  | W71: =IFERROR(INDEX($S$3:$S$281,MATCH(ROWS($U$3:V71),$U$3:$U$281,0)),"") ->  | X71: =IFERROR(INDEX($S$3:$S$281,MATCH(ROWS($U$3:U71),$U$3:$U$281,0)),"") ->  | Z71: =$V$3:INDEX($V$3:$V$281,MAX($U$3:$U$281),1) -> Saltspring Island
S72: Doaktown | T72: 0 | U72: =IF(T72=1,COUNTIF($T$3:T72,1),"") ->  | V72: =IFERROR(INDEX($S$3:$S$281,MATCH(ROWS($U$3:U72),$U$3:$U$281,0)),"") ->  | W72: =IFERROR(INDEX($S$3:$S$281,MATCH(ROWS($U$3:V72),$U$3:$U$281,0)),"") ->  | X72: =IFERROR(INDEX($S$3:$S$281,MATCH(ROWS($U$3:U72),$U$3:$U$281,0)),"") ->  | Z72: =$V$3:INDEX($V$3:$V$281,MAX($U$3:$U$281),1) -> Saltspring Island
S73: Drummondville | T73: 0 | U73: =IF(T73=1,COUNTIF($T$3:T73,1),"") ->  | V73: =IFERROR(INDEX($S$3:$S$281,MATCH(ROWS($U$3:U73),$U$3:$U$281,0)),"") ->  | W73: =IFERROR(INDEX($S$3:$S$281,MATCH(ROWS($U$3:V73),$U$3:$U$281,0)),"") ->  | X73: =IFERROR(INDEX($S$3:$S$281,MATCH(ROWS($U$3:U73),$U$3:$U$281,0)),"") ->  | Z73: =$V$3:INDEX($V$3:$V$281,MAX($U$3:$U$281),1) -> Saltspring Island
S74: Dryden | T74: 0 | U74: =IF(T74=1,COUNTIF($T$3:T74,1),"") ->  | V74: =IFERROR(INDEX($S$3:$S$281,MATCH(ROWS($U$3:U74),$U$3:$U$281,0)),"") ->  | W74: =IFERROR(INDEX($S$3:$S$281,MATCH(ROWS($U$3:V74),$U$3:$U$281,0)),"") ->  | X74: =IFERROR(INDEX($S$3:$S$281,MATCH(ROWS($U$3:U74),$U$3:$U$281,0)),"") ->  | Z74: =$V$3:INDEX($V$3:$V$281,MAX($U$3:$U$281),1) -> Saltspring Island
S75: Duncan | T75: 0 | U75: =IF(T75=1,COUNTIF($T$3:T75,1),"") ->  | V75: =IFERROR(INDEX($S$3:$S$281,MATCH(ROWS($U$3:U75),$U$3:$U$281,0)),"") ->  | W75: =IFERROR(INDEX($S$3:$S$281,MATCH(ROWS($U$3:V75),$U$3:$U$281,0)),"") ->  | X75: =IFERROR(INDEX($S$3:$S$281,MATCH(ROWS($U$3:U75),$U$3:$U$281,0)),"") ->  | Z75: =$V$3:INDEX($V$3:$V$281,MAX($U$3:$U$281),1) -> Saltspring Island
S76: Edmonton | T76: 0 | U76: =IF(T76=1,COUNTIF($T$3:T76,1),"") ->  | V76: =IFERROR(INDEX($S$3:$S$281,MATCH(ROWS($U$3:U76),$U$3:$U$281,0)),"") ->  | W76: =IFERROR(INDEX($S$3:$S$281,MATCH(ROWS($U$3:V76),$U$3:$U$281,0)),"") ->  | X76: =IFERROR(INDEX($S$3:$S$281,MATCH(ROWS($U$3:U76),$U$3:$U$281,0)),"") ->  | Z76: =$V$3:INDEX($V$3:$V$281,MAX($U$3:$U$281),1) -> Saltspring Island
S77: Edson | T77: 0 | U77: =IF(T77=1,COUNTIF($T$3:T77,1),"") ->  | V77: =IFERROR(INDEX($S$3:$S$281,MATCH(ROWS($U$3:U77),$U$3:$U$281,0)),"") ->  | W77: =IFERROR(INDEX($S$3:$S$281,MATCH(ROWS($U$3:V77),$U$3:$U$281,0)),"") ->  | X77: =IFERROR(INDEX($S$3:$S$281,MATCH(ROWS($U$3:U77),$U$3:$U$281,0)),"") ->  | Z77: =$V$3:INDEX($V$3:$V$281,MAX($U$3:$U$281),1) -> Saltspring Island
S78: Emerson | T78: 0 | U78: =IF(T78=1,COUNTIF($T$3:T78,1),"") ->  | V78: =IFERROR(INDEX($S$3:$S$281,MATCH(ROWS($U$3:U78),$U$3:$U$281,0)),"") ->  | W78: =IFERROR(INDEX($S$3:$S$281,MATCH(ROWS($U$3:V78),$U$3:$U$281,0)),"") ->  | X78: =IFERROR(INDEX($S$3:$S$281,MATCH(ROWS($U$3:U78),$U$3:$U$281,0)),"") ->  | Z78: =$V$3:INDEX($V$3:$V$281,MAX($U$3:$U$281),1) -> Saltspring Island
S79: Estevan | T79: =--ISNUMBER(IFERROR(SEARCH($K$2,S79,1),"")) -> 0 | U79: =IF(T79=1,COUNTIF($T$3:T79,1),"") ->  | V79: =IFERROR(INDEX($S$3:$S$281,MATCH(ROWS($U$3:U79),$U$3:$U$281,0)),"") ->  | W79: =IFERROR(INDEX($S$3:$S$281,MATCH(ROWS($U$3:V79),$U$3:$U$281,0)),"") ->  | X79: =IFERROR(INDEX($S$3:$S$281,MATCH(ROWS($U$3:U79),$U$3:$U$281,0)),"") ->  | Z79: =$V$3:INDEX($V$3:$V$281,MAX($U$3:$U$281),1) -> Saltspring Island
S80: Fermont | T80: 0 | U80: =IF(T80=1,COUNTIF($T$3:T80,1),"") ->  | V80: =IFERROR(INDEX($S$3:$S$281,MATCH(ROWS($U$3:U80),$U$3:$U$281,0)),"") ->  | W80: =IFERROR(INDEX($S$3:$S$281,MATCH(ROWS($U$3:V80),$U$3:$U$281,0)),"") ->  | X80: =IFERROR(INDEX($S$3:$S$281,MATCH(ROWS($U$3:U80),$U$3:$U$281,0)),"") ->  | Z80: =$V$3:INDEX($V$3:$V$281,MAX($U$3:$U$281),1) -> Saltspring Island
S81: Flin Flon | T81: 0 | U81: =IF(T81=1,COUNTIF($T$3:T81,1),"") ->  | V81: =IFERROR(INDEX($S$3:$S$281,MATCH(ROWS($U$3:U81),$U$3:$U$281,0)),"") ->  | W81: =IFERROR(INDEX($S$3:$S$281,MATCH(ROWS($U$3:V81),$U$3:$U$281,0)),"") ->  | X81: =IFERROR(INDEX($S$3:$S$281,MATCH(ROWS($U$3:U81),$U$3:$U$281,0)),"") ->  | Z81: =$V$3:INDEX($V$3:$V$281,MAX($U$3:$U$281),1) -> Saltspring Island
S82: Fort Chipewyan | T82: 0 | U82: =IF(T82=1,COUNTIF($T$3:T82,1),"") ->  | V82: =IFERROR(INDEX($S$3:$S$281,MATCH(ROWS($U$3:U82),$U$3:$U$281,0)),"") ->  | W82: =IFERROR(INDEX($S$3:$S$281,MATCH(ROWS($U$3:V82),$U$3:$U$281,0)),"") ->  | X82: =IFERROR(INDEX($S$3:$S$281,MATCH(ROWS($U$3:U82),$U$3:$U$281,0)),"") ->  | Z82: =$V$3:INDEX($V$3:$V$281,MAX($U$3:$U$281),1) -> Saltspring Island
S83: Fort Frances | T83: 0 | U83: =IF(T83=1,COUNTIF($T$3:T83,1),"") ->  | V83: =IFERROR(INDEX($S$3:$S$281,MATCH(ROWS($U$3:U83),$U$3:$U$281,0)),"") ->  | W83: =IFERROR(INDEX($S$3:$S$281,MATCH(ROWS($U$3:V83),$U$3:$U$281,0)),"") ->  | X83: =IFERROR(INDEX($S$3:$S$281,MATCH(ROWS($U$3:U83),$U$3:$U$281,0)),"") ->  | Z83: =$V$3:INDEX($V$3:$V$281,MAX($U$3:$U$281),1) -> Saltspring Island
S84: Fort McMurray | T84: 0 | U84: =IF(T84=1,COUNTIF($T$3:T84,1),"") ->  | V84: =IFERROR(INDEX($S$3:$S$281,MATCH(ROWS($U$3:U84),$U$3:$U$281,0)),"") ->  | W84: =IFERROR(INDEX($S$3:$S$281,MATCH(ROWS($U$3:V84),$U$3:$U$281,0)),"") ->  | X84: =IFERROR(INDEX($S$3:$S$281,MATCH(ROWS($U$3:U84),$U$3:$U$281,0)),"") ->  | Z84: =$V$3:INDEX($V$3:$V$281,MAX($U$3:$U$281),1) -> Saltspring Island
S85: Fort Nelson | T85: 0 | U85: =IF(T85=1,COUNTIF($T$3:T85,1),"") ->  | V85: =IFERROR(INDEX($S$3:$S$281,MATCH(ROWS($U$3:U85),$U$3:$U$281,0)),"") ->  | W85: =IFERROR(INDEX($S$3:$S$281,MATCH(ROWS($U$3:V85),$U$3:$U$281,0)),"") ->  | X85: =IFERROR(INDEX($S$3:$S$281,MATCH(ROWS($U$3:U85),$U$3:$U$281,0)),"") ->  | Z85: =$V$3:INDEX($V$3:$V$281,MAX($U$3:$U$281),1) -> Saltspring Island
S86: Fort St John | T86: 0 | U86: =IF(T86=1,COUNTIF($T$3:T86,1),"") ->  | V86: =IFERROR(INDEX($S$3:$S$281,MATCH(ROWS($U$3:U86),$U$3:$U$281,0)),"") ->  | W86: =IFERROR(INDEX($S$3:$S$281,MATCH(ROWS($U$3:V86),$U$3:$U$281,0)),"") ->  | X86: =IFERROR(INDEX($S$3:$S$281,MATCH(ROWS($U$3:U86),$U$3:$U$281,0)),"") ->  | Z86: =$V$3:INDEX($V$3:$V$281,MAX($U$3:$U$281),1) -> Saltspring Island
S87: Fredericton | T87: 0 | U87: =IF(T87=1,COUNTIF($T$3:T87,1),"") ->  | V87: =IFERROR(INDEX($S$3:$S$281,MATCH(ROWS($U$3:U87),$U$3:$U$281,0)),"") ->  | W87: =IFERROR(INDEX($S$3:$S$281,MATCH(ROWS($U$3:V87),$U$3:$U$281,0)),"") ->  | X87: =IFERROR(INDEX($S$3:$S$281,MATCH(ROWS($U$3:U87),$U$3:$U$281,0)),"") ->  | Z87: =$V$3:INDEX($V$3:$V$281,MAX($U$3:$U$281),1) -> Saltspring Island
S88: French River, Chaudiere Dam | T88: 0 | U88: =IF(T88=1,COUNTIF($T$3:T88,1),"") ->  | V88: =IFERROR(INDEX($S$3:$S$281,MATCH(ROWS($U$3:U88),$U$3:$U$281,0)),"") ->  | W88: =IFERROR(INDEX($S$3:$S$281,MATCH(ROWS($U$3:V88),$U$3:$U$281,0)),"") ->  | X88: =IFERROR(INDEX($S$3:$S$281,MATCH(ROWS($U$3:U88),$U$3:$U$281,0)),"") ->  | Z88: =$V$3:INDEX($V$3:$V$281,MAX($U$3:$U$281),1) -> Saltspring Island
S89: Fundy National Park | T89: 0 | U89: =IF(T89=1,COUNTIF($T$3:T89,1),"") ->  | V89: =IFERROR(INDEX($S$3:$S$281,MATCH(ROWS($U$3:U89),$U$3:$U$281,0)),"") ->  | W89: =IFERROR(INDEX($S$3:$S$281,MATCH(ROWS($U$3:V89),$U$3:$U$281,0)),"") ->  | X89: =IFERROR(INDEX($S$3:$S$281,MATCH(ROWS($U$3:U89),$U$3:$U$281,0)),"") ->  | Z89: =$V$3:INDEX($V$3:$V$281,MAX($U$3:$U$281),1) -> Saltspring Island
S90: Gabriola Island | T90: 0 | U90: =IF(T90=1,COUNTIF($T$3:T90,1),"") ->  | V90: =IFERROR(INDEX($S$3:$S$281,MATCH(ROWS($U$3:U90),$U$3:$U$281,0)),"") ->  | W90: =IFERROR(INDEX($S$3:$S$281,MATCH(ROWS($U$3:V90),$U$3:$U$281,0)),"") ->  | X90: =IFERROR(INDEX($S$3:$S$281,MATCH(ROWS($U$3:U90),$U$3:$U$281,0)),"") ->  | Z90: =$V$3:INDEX($V$3:$V$281,MAX($U$3:$U$281),1) -> Saltspring Island
S91: Gander | T91: 0 | U91: =IF(T91=1,COUNTIF($T$3:T91,1),"") ->  | V91: =IFERROR(INDEX($S$3:$S$281,MATCH(ROWS($U$3:U91),$U$3:$U$281,0)),"") ->  | W91: =IFERROR(INDEX($S$3:$S$281,MATCH(ROWS($U$3:V91),$U$3:$U$281,0)),"") ->  | X91: =IFERROR(INDEX($S$3:$S$281,MATCH(ROWS($U$3:U91),$U$3:$U$281,0)),"") ->  | Z91: =$V$3:INDEX($V$3:$V$281,MAX($U$3:$U$281),1) -> Saltspring Island
S92: Gaspé | T92: 0 | U92: =IF(T92=1,COUNTIF($T$3:T92,1),"") ->  | V92: =IFERROR(INDEX($S$3:$S$281,MATCH(ROWS($U$3:U92),$U$3:$U$281,0)),"") ->  | W92: =IFERROR(INDEX($S$3:$S$281,MATCH(ROWS($U$3:V92),$U$3:$U$281,0)),"") ->  | X92: =IFERROR(INDEX($S$3:$S$281,MATCH(ROWS($U$3:U92),$U$3:$U$281,0)),"") ->  | Z92: =$V$3:INDEX($V$3:$V$281,MAX($U$3:$U$281),1) -> Saltspring Island
S93: Gibsons | T93: 0 | U93: =IF(T93=1,COUNTIF($T$3:T93,1),"") ->  | V93: =IFERROR(INDEX($S$3:$S$281,MATCH(ROWS($U$3:U93),$U$3:$U$281,0)),"") ->  | W93: =IFERROR(INDEX($S$3:$S$281,MATCH(ROWS($U$3:V93),$U$3:$U$281,0)),"") ->  | X93: =IFERROR(INDEX($S$3:$S$281,MATCH(ROWS($U$3:U93),$U$3:$U$281,0)),"") ->  | Z93: =$V$3:INDEX($V$3:$V$281,MAX($U$3:$U$281),1) -> Saltspring Island
S94: Gillam | T94: 0 | U94: =IF(T94=1,COUNTIF($T$3:T94,1),"") ->  | V94: =IFERROR(INDEX($S$3:$S$281,MATCH(ROWS($U$3:U94),$U$3:$U$281,0)),"") ->  | W94: =IFERROR(INDEX($S$3:$S$281,MATCH(ROWS($U$3:V94),$U$3:$U$281,0)),"") ->  | X94: =IFERROR(INDEX($S$3:$S$281,MATCH(ROWS($U$3:U94),$U$3:$U$281,0)),"") ->  | Z94: =$V$3:INDEX($V$3:$V$281,MAX($U$3:$U$281),1) -> Saltspring Island
S95: Gimli | T95: 0 | U95: =IF(T95=1,COUNTIF($T$3:T95,1),"") ->  | V95: =IFERROR(INDEX($S$3:$S$281,MATCH(ROWS($U$3:U95),$U$3:$U$281,0)),"") ->  | W95: =IFERROR(INDEX($S$3:$S$281,MATCH(ROWS($U$3:V95),$U$3:$U$281,0)),"") ->  | X95: =IFERROR(INDEX($S$3:$S$281,MATCH(ROWS($U$3:U95),$U$3:$U$281,0)),"") ->  | Z95: =$V$3:INDEX($V$3:$V$281,MAX($U$3:$U$281),1) -> Saltspring Island
S96: Gold River | T96: 0 | U96: =IF(T96=1,COUNTIF($T$3:T96,1),"") ->  | V96: =IFERROR(INDEX($S$3:$S$281,MATCH(ROWS($U$3:U96),$U$3:$U$281,0)),"") ->  | W96: =IFERROR(INDEX($S$3:$S$281,MATCH(ROWS($U$3:V96),$U$3:$U$281,0)),"") ->  | X96: =IFERROR(INDEX($S$3:$S$281,MATCH(ROWS($U$3:U96),$U$3:$U$281,0)),"") ->  | Z96: =$V$3:INDEX($V$3:$V$281,MAX($U$3:$U$281),1) -> Saltspring Island
S97: Golden | T97: 0 | U97: =IF(T97=1,COUNTIF($T$3:T97,1),"") ->  | V97: =IFERROR(INDEX($S$3:$S$281,MATCH(ROWS($U$3:U97),$U$3:$U$281,0)),"") ->  | W97: =IFERROR(INDEX($S$3:$S$281,MATCH(ROWS($U$3:V97),$U$3:$U$281,0)),"") ->  | X97: =IFERROR(INDEX($S$3:$S$281,MATCH(ROWS($U$3:U97),$U$3:$U$281,0)),"") ->  | Z97: =$V$3:INDEX($V$3:$V$281,MAX($U$3:$U$281),1) -> Saltspring Island
S98: Good Spirit Lake | T98: 0 | U98: =IF(T98=1,COUNTIF($T$3:T98,1),"") ->  | V98: =IFERROR(INDEX($S$3:$S$281,MATCH(ROWS($U$3:U98),$U$3:$U$281,0)),"") ->  | W98: =IFERROR(INDEX($S$3:$S$281,MATCH(ROWS($U$3:V98),$U$3:$U$281,0)),"") ->  | X98: =IFERROR(INDEX($S$3:$S$281,MATCH(ROWS($U$3:U98),$U$3:$U$281,0)),"") ->  | Z98: =$V$3:INDEX($V$3:$V$281,MAX($U$3:$U$281),1) -> Saltspring Island
S99: Gore Bay | T99: 0 | U99: =IF(T99=1,COUNTIF($T$3:T99,1),"") ->  | V99: =IFERROR(INDEX($S$3:$S$281,MATCH(ROWS($U$3:U99),$U$3:$U$281,0)),"") ->  | W99: =IFERROR(INDEX($S$3:$S$281,MATCH(ROWS($U$3:V99),$U$3:$U$281,0)),"") ->  | X99: =IFERROR(INDEX($S$3:$S$281,MATCH(ROWS($U$3:U99),$U$3:$U$281,0)),"") ->  | Z99: =$V$3:INDEX($V$3:$V$281,MAX($U$3:$U$281),1) -> Saltspring Island
S100: Granby | T100: 0 | U100: =IF(T100=1,COUNTIF($T$3:T100,1),"") ->  | V100: =IFERROR(INDEX($S$3:$S$281,MATCH(ROWS($U$3:U100),$U$3:$U$281,0)),"") ->  | W100: =IFERROR(INDEX($S$3:$S$281,MATCH(ROWS($U$3:V100),$U$3:$U$281,0)),"") ->  | X100: =IFERROR(INDEX($S$3:$S$281,MATCH(ROWS($U$3:U100),$U$3:$U$281,0)),"") ->  | Z100: =$V$3:INDEX($V$3:$V$281,MAX($U$3:$U$281),1) -> Saltspring Island
S101: Grand Falls | T101: 0 | U101: =IF(T101=1,COUNTIF($T$3:T101,1),"") ->  | V101: =IFERROR(INDEX($S$3:$S$281,MATCH(ROWS($U$3:U101),$U$3:$U$281,0)),"") ->  | W101: =IFERROR(INDEX($S$3:$S$281,MATCH(ROWS($U$3:V101),$U$3:$U$281,0)),"") ->  | X101: =IFERROR(INDEX($S$3:$S$281,MATCH(ROWS($U$3:U101),$U$3:$U$281,0)),"") ->  | Z101: =$V$3:INDEX($V$3:$V$281,MAX($U$3:$U$281),1) -> Saltspring Island
S102: Grand Rapids | T102: 0 | U102: =IF(T102=1,COUNTIF($T$3:T102,1),"") ->  | V102: =IFERROR(INDEX($S$3:$S$281,MATCH(ROWS($U$3:U102),$U$3:$U$281,0)),"") ->  | W102: =IFERROR(INDEX($S$3:$S$281,MATCH(ROWS($U$3:V102),$U$3:$U$281,0)),"") ->  | X102: =IFERROR(INDEX($S$3:$S$281,MATCH(ROWS($U$3:U102),$U$3:$U$281,0)),"") ->  | Z102: =$V$3:INDEX($V$3:$V$281,MAX($U$3:$U$281),1) -> Saltspring Island
S103: Grande Prairie | T103: 0 | U103: =IF(T103=1,COUNTIF($T$3:T103,1),"") ->  | V103: =IFERROR(INDEX($S$3:$S$281,MATCH(ROWS($U$3:U103),$U$3:$U$281,0)),"") ->  | W103: =IFERROR(INDEX($S$3:$S$281,MATCH(ROWS($U$3:V103),$U$3:$U$281,0)),"") ->  | X103: =IFERROR(INDEX($S$3:$S$281,MATCH(ROWS($U$3:U103),$U$3:$U$281,0)),"") ->  | Z103: =$V$3:INDEX($V$3:$V$281,MAX($U$3:$U$281),1) -> Saltspring Island
S104: Gros Morne National Park | T104: 0 | U104: =IF(T104=1,COUNTIF($T$3:T104,1),"") ->  | V104: =IFERROR(INDEX($S$3:$S$281,MATCH(ROWS($U$3:U104),$U$3:$U$281,0)),"") ->  | W104: =IFERROR(INDEX($S$3:$S$281,MATCH(ROWS($U$3:V104),$U$3:$U$281,0)),"") ->  | X104: =IFERROR(INDEX($S$3:$S$281,MATCH(ROWS($U$3:U104),$U$3:$U$281,0)),"") ->  | Z104: =$V$3:INDEX($V$3:$V$281,MAX($U$3:$U$281),1) -> Saltspring Island
S105: Guelph | T105: 0 | U105: =IF(T105=1,COUNTIF($T$3:T105,1),"") ->  | V105: =IFERROR(INDEX($S$3:$S$281,MATCH(ROWS($U$3:U105),$U$3:$U$281,0)),"") ->  | W105: =IFERROR(INDEX($S$3:$S$281,MATCH(ROWS($U$3:V105),$U$3:$U$281,0)),"") ->  | X105: =IFERROR(INDEX($S$3:$S$281,MATCH(ROWS($U$3:U105),$U$3:$U$281,0)),"") ->  | Z105: =$V$3:INDEX($V$3:$V$281,MAX($U$3:$U$281),1) -> Saltspring Island
S106: Halifax | T106: 0 | U106: =IF(T106=1,COUNTIF($T$3:T106,1),"") ->  | V106: =IFERROR(INDEX($S$3:$S$281,MATCH(ROWS($U$3:U106),$U$3:$U$281,0)),"") ->  | W106: =IFERROR(INDEX($S$3:$S$281,MATCH(ROWS($U$3:V106),$U$3:$U$281,0)),"") ->  | X106: =IFERROR(INDEX($S$3:$S$281,MATCH(ROWS($U$3:U106),$U$3:$U$281,0)),"") ->  | Z106: =$V$3:INDEX($V$3:$V$281,MAX($U$3:$U$281),1) -> Saltspring Island
S107: Hamilton | T107: 0 | U107: =IF(T107=1,COUNTIF($T$3:T107,1),"") ->  | V107: =IFERROR(INDEX($S$3:$S$281,MATCH(ROWS($U$3:U107),$U$3:$U$281,0)),"") ->  | W107: =IFERROR(INDEX($S$3:$S$281,MATCH(ROWS($U$3:V107),$U$3:$U$281,0)),"") ->  | X107: =IFERROR(INDEX($S$3:$S$281,MATCH(ROWS($U$3:U107),$U$3:$U$281,0)),"") ->  | Z107: =$V$3:INDEX($V$3:$V$281,MAX($U$3:$U$281),1) -> Saltspring Island
S108: Happy Valley - Goose Bay | T108: 0 | U108: =IF(T108=1,COUNTIF($T$3:T108,1),"") ->  | V108: =IFERROR(INDEX($S$3:$S$281,MATCH(ROWS($U$3:U108),$U$3:$U$281,0)),"") ->  | W108: =IFERROR(INDEX($S$3:$S$281,MATCH(ROWS($U$3:V108),$U$3:$U$281,0)),"") ->  | X108: =IFERROR(INDEX($S$3:$S$281,MATCH(ROWS($U$3:U108),$U$3:$U$281,0)),"") ->  | Z108: =$V$3:INDEX($V$3:$V$281,MAX($U$3:$U$281),1) -> Saltspring Island
S109: Harbour Breton | T109: 0 | U109: =IF(T109=1,COUNTIF($T$3:T109,1),"") ->  | V109: =IFERROR(INDEX($S$3:$S$281,MATCH(ROWS($U$3:U109),$U$3:$U$281,0)),"") ->  | W109: =IFERROR(INDEX($S$3:$S$281,MATCH(ROWS($U$3:V109),$U$3:$U$281,0)),"") ->  | X109: =IFERROR(INDEX($S$3:$S$281,MATCH(ROWS($U$3:U109),$U$3:$U$281,0)),"") ->  | Z109: =$V$3:INDEX($V$3:$V$281,MAX($U$3:$U$281),1) -> Saltspring Island
S110: Harbour Grace | T110: 0 | U110: =IF(T110=1,COUNTIF($T$3:T110,1),"") ->  | V110: =IFERROR(INDEX($S$3:$S$281,MATCH(ROWS($U$3:U110),$U$3:$U$281,0)),"") ->  | W110: =IFERROR(INDEX($S$3:$S$281,MATCH(ROWS($U$3:V110),$U$3:$U$281,0)),"") ->  | X110: =IFERROR(INDEX($S$3:$S$281,MATCH(ROWS($U$3:U110),$U$3:$U$281,0)),"") ->  | Z110: =$V$3:INDEX($V$3:$V$281,MAX($U$3:$U$281),1) -> Saltspring Island
S111: High Level | T111: 0 | U111: =IF(T111=1,COUNTIF($T$3:T111,1),"") ->  | V111: =IFERROR(INDEX($S$3:$S$281,MATCH(ROWS($U$3:U111),$U$3:$U$281,0)),"") ->  | W111: =IFERROR(INDEX($S$3:$S$281,MATCH(ROWS($U$3:V111),$U$3:$U$281,0)),"") ->  | X111: =IFERROR(INDEX($S$3:$S$281,MATCH(ROWS($U$3:U111),$U$3:$U$281,0)),"") ->  | Z111: =$V$3:INDEX($V$3:$V$281,MAX($U$3:$U$281),1) -> Saltspring Island
S112: Hodgson | T112: 0 | U112: =IF(T112=1,COUNTIF($T$3:T112,1),"") ->  | V112: =IFERROR(INDEX($S$3:$S$281,MATCH(ROWS($U$3:U112),$U$3:$U$281,0)),"") ->  | W112: =IFERROR(INDEX($S$3:$S$281,MATCH(ROWS($U$3:V112),$U$3:$U$281,0)),"") ->  | X112: =IFERROR(INDEX($S$3:$S$281,MATCH(ROWS($U$3:U112),$U$3:$U$281,0)),"") ->  | Z112: =$V$3:INDEX($V$3:$V$281,MAX($U$3:$U$281),1) -> Saltspring Island
S113: Huntsville | T113: 0 | U113: =IF(T113=1,COUNTIF($T$3:T113,1),"") ->  | V113: =IFERROR(INDEX($S$3:$S$281,MATCH(ROWS($U$3:U113),$U$3:$U$281,0)),"") ->  | W113: =IFERROR(INDEX($S$3:$S$281,MATCH(ROWS($U$3:V113),$U$3:$U$281,0)),"") ->  | X113: =IFERROR(INDEX($S$3:$S$281,MATCH(ROWS($U$3:U113),$U$3:$U$281,0)),"") ->  | Z113: =$V$3:INDEX($V$3:$V$281,MAX($U$3:$U$281),1) -> Saltspring Island
S114: Iles de la Madeleine | T114: 0 | U114: =IF(T114=1,COUNTIF($T$3:T114,1),"") ->  | V114: =IFERROR(INDEX($S$3:$S$281,MATCH(ROWS($U$3:U114),$U$3:$U$281,0)),"") ->  | W114: =IFERROR(INDEX($S$3:$S$281,MATCH(ROWS($U$3:V114),$U$3:$U$281,0)),"") ->  | X114: =IFERROR(INDEX($S$3:$S$281,MATCH(ROWS($U$3:U114),$U$3:$U$281,0)),"") ->  | Z114: =$V$3:INDEX($V$3:$V$281,MAX($U$3:$U$281),1) -> Saltspring Island
S115: Ingonish Beach | T115: 0 | U115: =IF(T115=1,COUNTIF($T$3:T115,1),"") ->  | V115: =IFERROR(INDEX($S$3:$S$281,MATCH(ROWS($U$3:U115),$U$3:$U$281,0)),"") ->  | W115: =IFERROR(INDEX($S$3:$S$281,MATCH(ROWS($U$3:V115),$U$3:$U$281,0)),"") ->  | X115: =IFERROR(INDEX($S$3:$S$281,MATCH(ROWS($U$3:U115),$U$3:$U$281,0)),"") ->  | Z115: =$V$3:INDEX($V$3:$V$281,MAX($U$3:$U$281),1) -> Saltspring Island
S116: Inukjuak | T116: 0 | U116: =IF(T116=1,COUNTIF($T$3:T116,1),"") ->  | V116: =IFERROR(INDEX($S$3:$S$281,MATCH(ROWS($U$3:U116),$U$3:$U$281,0)),"") ->  | W116: =IFERROR(INDEX($S$3:$S$281,MATCH(ROWS($U$3:V116),$U$3:$U$281,0)),"") ->  | X116: =IFERROR(INDEX($S$3:$S$281,MATCH(ROWS($U$3:U116),$U$3:$U$281,0)),"") ->  | Z116: =$V$3:INDEX($V$3:$V$281,MAX($U$3:$U$281),1) -> Saltspring Island
S117: Jasper | T117: 0 | U117: =IF(T117=1,COUNTIF($T$3:T117,1),"") ->  | V117: =IFERROR(INDEX($S$3:$S$281,MATCH(ROWS($U$3:U117),$U$3:$U$281,0)),"") ->  | W117: =IFERROR(INDEX($S$3:$S$281,MATCH(ROWS($U$3:V117),$U$3:$U$281,0)),"") ->  | X117: =IFERROR(INDEX($S$3:$S$281,MATCH(ROWS($U$3:U117),$U$3:$U$281,0)),"") ->  | Z117: =$V$3:INDEX($V$3:$V$281,MAX($U$3:$U$281),1) -> Saltspring Island
S118: Joliette | T118: 0 | U118: =IF(T118=1,COUNTIF($T$3:T118,1),"") ->  | V118: =IFERROR(INDEX($S$3:$S$281,MATCH(ROWS($U$3:U118),$U$3:$U$281,0)),"") ->  | W118: =IFERROR(INDEX($S$3:$S$281,MATCH(ROWS($U$3:V118),$U$3:$U$281,0)),"") ->  | X118: =IFERROR(INDEX($S$3:$S$281,MATCH(ROWS($U$3:U118),$U$3:$U$281,0)),"") ->  | Z118: =$V$3:INDEX($V$3:$V$281,MAX($U$3:$U$281),1) -> Saltspring Island
S119: Kamloops | T119: 0 | U119: =IF(T119=1,COUNTIF($T$3:T119,1),"") ->  | V119: =IFERROR(INDEX($S$3:$S$281,MATCH(ROWS($U$3:U119),$U$3:$U$281,0)),"") ->  | W119: =IFERROR(INDEX($S$3:$S$281,MATCH(ROWS($U$3:V119),$U$3:$U$281,0)),"") ->  | X119: =IFERROR(INDEX($S$3:$S$281,MATCH(ROWS($U$3:U119),$U$3:$U$281,0)),"") ->  | Z119: =$V$3:INDEX($V$3:$V$281,MAX($U$3:$U$281),1) -> Saltspring Island
S120: Kapuskasing | T120: 0 | U120: =IF(T120=1,COUNTIF($T$3:T120,1),"") ->  | V120: =IFERROR(INDEX($S$3:$S$281,MATCH(ROWS($U$3:U120),$U$3:$U$281,0)),"") ->  | W120: =IFERROR(INDEX($S$3:$S$281,MATCH(ROWS($U$3:V120),$U$3:$U$281,0)),"") ->  | X120: =IFERROR(INDEX($S$3:$S$281,MATCH(ROWS($U$3:U120),$U$3:$U$281,0)),"") ->  | Z120: =$V$3:INDEX($V$3:$V$281,MAX($U$3:$U$281),1) -> Saltspring Island
S121: Kedgwick | T121: 0 | U121: =IF(T121=1,COUNTIF($T$3:T121,1),"") ->  | V121: =IFERROR(INDEX($S$3:$S$281,MATCH(ROWS($U$3:U121),$U$3:$U$281,0)),"") ->  | W121: =IFERROR(INDEX($S$3:$S$281,MATCH(ROWS($U$3:V121),$U$3:$U$281,0)),"") ->  | X121: =IFERROR(INDEX($S$3:$S$281,MATCH(ROWS($U$3:U121),$U$3:$U$281,0)),"") ->  | Z121: =$V$3:INDEX($V$3:$V$281,MAX($U$3:$U$281),1) -> Saltspring Island
S122: Kejimkujik National Park | T122: 0 | U122: =IF(T122=1,COUNTIF($T$3:T122,1),"") ->  | V122: =IFERROR(INDEX($S$3:$S$281,MATCH(ROWS($U$3:U122),$U$3:$U$281,0)),"") ->  | W122: =IFERROR(INDEX($S$3:$S$281,MATCH(ROWS($U$3:V122),$U$3:$U$281,0)),"") ->  | X122: =IFERROR(INDEX($S$3:$S$281,MATCH(ROWS($U$3:U122),$U$3:$U$281,0)),"") ->  | Z122: =$V$3:INDEX($V$3:$V$281,MAX($U$3:$U$281),1) -> Saltspring Island
S123: Kelowna | T123: 0 | U123: =IF(T123=1,COUNTIF($T$3:T123,1),"") ->  | V123: =IFERROR(INDEX($S$3:$S$281,MATCH(ROWS($U$3:U123),$U$3:$U$281,0)),"") ->  | W123: =IFERROR(INDEX($S$3:$S$281,MATCH(ROWS($U$3:V123),$U$3:$U$281,0)),"") ->  | X123: =IFERROR(INDEX($S$3:$S$281,MATCH(ROWS($U$3:U123),$U$3:$U$281,0)),"") ->  | Z123: =$V$3:INDEX($V$3:$V$281,MAX($U$3:$U$281),1) -> Saltspring Island
S124: Kenora | T124: 0 | U124: =IF(T124=1,COUNTIF($T$3:T124,1),"") ->  | V124: =IFERROR(INDEX($S$3:$S$281,MATCH(ROWS($U$3:U124),$U$3:$U$281,0)),"") ->  | W124: =IFERROR(INDEX($S$3:$S$281,MATCH(ROWS($U$3:V124),$U$3:$U$281,0)),"") ->  | X124: =IFERROR(INDEX($S$3:$S$281,MATCH(ROWS($U$3:U124),$U$3:$U$281,0)),"") ->  | Z124: =$V$3:INDEX($V$3:$V$281,MAX($U$3:$U$281),1) -> Saltspring Island
S125: Kentville | T125: 0 | U125: =IF(T125=1,COUNTIF($T$3:T125,1),"") ->  | V125: =IFERROR(INDEX($S$3:$S$281,MATCH(ROWS($U$3:U125),$U$3:$U$281,0)),"") ->  | W125: =IFERROR(INDEX($S$3:$S$281,MATCH(ROWS($U$3:V125),$U$3:$U$281,0)),"") ->  | X125: =IFERROR(INDEX($S$3:$S$281,MATCH(ROWS($U$3:U125),$U$3:$U$281,0)),"") ->  | Z125: =$V$3:INDEX($V$3:$V$281,MAX($U$3:$U$281),1) -> Saltspring Island
S126: Kindersley | T126: 0 | U126: =IF(T126=1,COUNTIF($T$3:T126,1),"") ->  | V126: =IFERROR(INDEX($S$3:$S$281,MATCH(ROWS($U$3:U126),$U$3:$U$281,0)),"") ->  | W126: =IFERROR(INDEX($S$3:$S$281,MATCH(ROWS($U$3:V126),$U$3:$U$281,0)),"") ->  | X126: =IFERROR(INDEX($S$3:$S$281,MATCH(ROWS($U$3:U126),$U$3:$U$281,0)),"") ->  | Z126: =$V$3:INDEX($V$3:$V$281,MAX($U$3:$U$281),1) -> Saltspring Island
S127: Kingston | T127: 0 | U127: =IF(T127=1,COUNTIF($T$3:T127,1),"") ->  | V127: =IFERROR(INDEX($S$3:$S$281,MATCH(ROWS($U$3:U127),$U$3:$U$281,0)),"") ->  | W127: =IFERROR(INDEX($S$3:$S$281,MATCH(ROWS($U$3:V127),$U$3:$U$281,0)),"") ->  | X127: =IFERROR(INDEX($S$3:$S$281,MATCH(ROWS($U$3:U127),$U$3:$U$281,0)),"") ->  | Z127: =$V$3:INDEX($V$3:$V$281,MAX($U$3:$U$281),1) -> Saltspring Island
S128: Kouchibouguac National Park | T128: 0 | U128: =IF(T128=1,COUNTIF($T$3:T128,1),"") ->  | V128: =IFERROR(INDEX($S$3:$S$281,MATCH(ROWS($U$3:U128),$U$3:$U$281,0)),"") ->  | W128: =IFERROR(INDEX($S$3:$S$281,MATCH(ROWS($U$3:V128),$U$3:$U$281,0)),"") ->  | X128: =IFERROR(INDEX($S$3:$S$281,MATCH(ROWS($U$3:U128),$U$3:$U$281,0)),"") ->  | Z128: =$V$3:INDEX($V$3:$V$281,MAX($U$3:$U$281),1) -> Saltspring Island
S129: Kuujjuaq | T129: 0 | U129: =IF(T129=1,COUNTIF($T$3:T129,1),"") ->  | V129: =IFERROR(INDEX($S$3:$S$281,MATCH(ROWS($U$3:U129),$U$3:$U$281,0)),"") ->  | W129: =IFERROR(INDEX($S$3:$S$281,MATCH(ROWS($U$3:V129),$U$3:$U$281,0)),"") ->  | X129: =IFERROR(INDEX($S$3:$S$281,MATCH(ROWS($U$3:U129),$U$3:$U$281,0)),"") ->  | Z129: =$V$3:INDEX($V$3:$V$281,MAX($U$3:$U$281),1) -> Saltspring Island
S130: Kuujjuarapik | T130: 0 | U130: =IF(T130=1,COUNTIF($T$3:T130,1),"") ->  | V130: =IFERROR(INDEX($S$3:$S$281,MATCH(ROWS($U$3:U130),$U$3:$U$281,0)),"") ->  | W130: =IFERROR(INDEX($S$3:$S$281,MATCH(ROWS($U$3:V130),$U$3:$U$281,0)),"") ->  | X130: =IFERROR(INDEX($S$3:$S$281,MATCH(ROWS($U$3:U130),$U$3:$U$281,0)),"") ->  | Z130: =$V$3:INDEX($V$3:$V$281,MAX($U$3:$U$281),1) -> Saltspring Island
S131: La Ronge | T131: 0 | U131: =IF(T131=1,COUNTIF($T$3:T131,1),"") ->  | V131: =IFERROR(INDEX($S$3:$S$281,MATCH(ROWS($U$3:U131),$U$3:$U$281,0)),"") ->  | W131: =IFERROR(INDEX($S$3:$S$281,MATCH(ROWS($U$3:V131),$U$3:$U$281,0)),"") ->  | X131: =IFERROR(INDEX($S$3:$S$281,MATCH(ROWS($U$3:U131),$U$3:$U$281,0)),"") ->  | Z131: =$V$3:INDEX($V$3:$V$281,MAX($U$3:$U$281),1) -> Saltspring Island
S132: La Tuque | T132: 0 | U132: =IF(T132=1,COUNTIF($T$3:T132,1),"") ->  | V132: =IFERROR(INDEX($S$3:$S$281,MATCH(ROWS($U$3:U132),$U$3:$U$281,0)),"") ->  | W132: =IFERROR(INDEX($S$3:$S$281,MATCH(ROWS($U$3:V132),$U$3:$U$281,0)),"") ->  | X132: =IFERROR(INDEX($S$3:$S$281,MATCH(ROWS($U$3:U132),$U$3:$U$281,0)),"") ->  | Z132: =$V$3:INDEX($V$3:$V$281,MAX($U$3:$U$281),1) -> Saltspring Island
S133: Lachute | T133: 0 | U133: =IF(T133=1,COUNTIF($T$3:T133,1),"") ->  | V133: =IFERROR(INDEX($S$3:$S$281,MATCH(ROWS($U$3:U133),$U$3:$U$281,0)),"") ->  | W133: =IFERROR(INDEX($S$3:$S$281,MATCH(ROWS($U$3:V133),$U$3:$U$281,0)),"") ->  | X133: =IFERROR(INDEX($S$3:$S$281,MATCH(ROWS($U$3:U133),$U$3:$U$281,0)),"") ->  | Z133: =$V$3:INDEX($V$3:$V$281,MAX($U$3:$U$281),1) -> Saltspring Island
S134: Last Mountain Lake | T134: 0 | U134: =IF(T134=1,COUNTIF($T$3:T134,1),"") ->  | V134: =IFERROR(INDEX($S$3:$S$281,MATCH(ROWS($U$3:U134),$U$3:$U$281,0)),"") ->  | W134: =IFERROR(INDEX($S$3:$S$281,MATCH(ROWS($U$3:V134),$U$3:$U$281,0)),"") ->  | X134: =IFERROR(INDEX($S$3:$S$281,MATCH(ROWS($U$3:U134),$U$3:$U$281,0)),"") ->  | Z134: =$V$3:INDEX($V$3:$V$281,MAX($U$3:$U$281),1) -> Saltspring Island
S135: Lethbridge | T135: 0 | U135: =IF(T135=1,COUNTIF($T$3:T135,1),"") ->  | V135: =IFERROR(INDEX($S$3:$S$281,MATCH(ROWS($U$3:U135),$U$3:$U$281,0)),"") ->  | W135: =IFERROR(INDEX($S$3:$S$281,MATCH(ROWS($U$3:V135),$U$3:$U$281,0)),"") ->  | X135: =IFERROR(INDEX($S$3:$S$281,MATCH(ROWS($U$3:U135),$U$3:$U$281,0)),"") ->  | Z135: =$V$3:INDEX($V$3:$V$281,MAX($U$3:$U$281),1) -> Saltspring Island
S136: Lillooet | T136: 0 | U136: =IF(T136=1,COUNTIF($T$3:T136,1),"") ->  | V136: =IFERROR(INDEX($S$3:$S$281,MATCH(ROWS($U$3:U136),$U$3:$U$281,0)),"") ->  | W136: =IFERROR(INDEX($S$3:$S$281,MATCH(ROWS($U$3:V136),$U$3:$U$281,0)),"") ->  | X136: =IFERROR(INDEX($S$3:$S$281,MATCH(ROWS($U$3:U136),$U$3:$U$281,0)),"") ->  | Z136: =$V$3:INDEX($V$3:$V$281,MAX($U$3:$U$281),1) -> Saltspring Island
S137: Liverpool - Milton | T137: 0 | U137: =IF(T137=1,COUNTIF($T$3:T137,1),"") ->  | V137: =IFERROR(INDEX($S$3:$S$281,MATCH(ROWS($U$3:U137),$U$3:$U$281,0)),"") ->  | W137: =IFERROR(INDEX($S$3:$S$281,MATCH(ROWS($U$3:V137),$U$3:$U$281,0)),"") ->  | X137: =IFERROR(INDEX($S$3:$S$281,MATCH(ROWS($U$3:U137),$U$3:$U$281,0)),"") ->  | Z137: =$V$3:INDEX($V$3:$V$281,MAX($U$3:$U$281),1) -> Saltspring Island
S138: Lloydminster | T138: 0 | U138: =IF(T138=1,COUNTIF($T$3:T138,1),"") ->  | V138: =IFERROR(INDEX($S$3:$S$281,MATCH(ROWS($U$3:U138),$U$3:$U$281,0)),"") ->  | W138: =IFERROR(INDEX($S$3:$S$281,MATCH(ROWS($U$3:V138),$U$3:$U$281,0)),"") ->  | X138: =IFERROR(INDEX($S$3:$S$281,MATCH(ROWS($U$3:U138),$U$3:$U$281,0)),"") ->  | Z138: =$V$3:INDEX($V$3:$V$281,MAX($U$3:$U$281),1) -> Saltspring Island
S139: Lloydminster | T139: 0 | U139: =IF(T139=1,COUNTIF($T$3:T139,1),"") ->  | V139: =IFERROR(INDEX($S$3:$S$281,MATCH(ROWS($U$3:U139),$U$3:$U$281,0)),"") ->  | W139: =IFERROR(INDEX($S$3:$S$281,MATCH(ROWS($U$3:V139),$U$3:$U$281,0)),"") ->  | X139: =IFERROR(INDEX($S$3:$S$281,MATCH(ROWS($U$3:U139),$U$3:$U$281,0)),"") ->  | Z139: =$V$3:INDEX($V$3:$V$281,MAX($U$3:$U$281),1) -> Saltspring Island
S140: London | T140: 0 | U140: =IF(T140=1,COUNTIF($T$3:T140,1),"") ->  | V140: =IFERROR(INDEX($S$3:$S$281,MATCH(ROWS($U$3:U140),$U$3:$U$281,0)),"") ->  | W140: =IFERROR(INDEX($S$3:$S$281,MATCH(ROWS($U$3:V140),$U$3:$U$281,0)),"") ->  | X140: =IFERROR(INDEX($S$3:$S$281,MATCH(ROWS($U$3:U140),$U$3:$U$281,0)),"") ->  | Z140: =$V$3:INDEX($V$3:$V$281,MAX($U$3:$U$281),1) -> Saltspring Island
S141: Long Harbour | T141: 0 | U141: =IF(T141=1,COUNTIF($T$3:T141,1),"") ->  | V141: =IFERROR(INDEX($S$3:$S$281,MATCH(ROWS($U$3:U141),$U$3:$U$281,0)),"") ->  | W141: =IFERROR(INDEX($S$3:$S$281,MATCH(ROWS($U$3:V141),$U$3:$U$281,0)),"") ->  | X141: =IFERROR(INDEX($S$3:$S$281,MATCH(ROWS($U$3:U141),$U$3:$U$281,0)),"") ->  | Z141: =$V$3:INDEX($V$3:$V$281,MAX($U$3:$U$281),1) -> Saltspring Island
S142: Long River | T142: 0 | U142: =IF(T142=1,COUNTIF($T$3:T142,1),"") ->  | V142: =IFERROR(INDEX($S$3:$S$281,MATCH(ROWS($U$3:U142),$U$3:$U$281,0)),"") ->  | W142: =IFERROR(INDEX($S$3:$S$281,MATCH(ROWS($U$3:V142),$U$3:$U$281,0)),"") ->  | X142: =IFERROR(INDEX($S$3:$S$281,MATCH(ROWS($U$3:U142),$U$3:$U$281,0)),"") ->  | Z142: =$V$3:INDEX($V$3:$V$281,MAX($U$3:$U$281),1) -> Saltspring Island
S143: Louisbourg | T143: =--ISNUMBER(IFERROR(SEARCH($K$2,S143,1),"")) -> 0 | U143: =IF(T143=1,COUNTIF($T$3:T143,1),"") ->  | V143: =IFERROR(INDEX($S$3:$S$281,MATCH(ROWS($U$3:U143),$U$3:$U$281,0)),"") ->  | W143: =IFERROR(INDEX($S$3:$S$281,MATCH(ROWS($U$3:V143),$U$3:$U$281,0)),"") ->  | X143: =IFERROR(INDEX($S$3:$S$281,MATCH(ROWS($U$3:U143),$U$3:$U$281,0)),"") ->  | Z143: =$V$3:INDEX($V$3:$V$281,MAX($U$3:$U$281),1) -> Saltspring Island
S144: Lynn Lake | T144: 0 | U144: =IF(T144=1,COUNTIF($T$3:T144,1),"") ->  | V144: =IFERROR(INDEX($S$3:$S$281,MATCH(ROWS($U$3:U144),$U$3:$U$281,0)),"") ->  | W144: =IFERROR(INDEX($S$3:$S$281,MATCH(ROWS($U$3:V144),$U$3:$U$281,0)),"") ->  | X144: =IFERROR(INDEX($S$3:$S$281,MATCH(ROWS($U$3:U144),$U$3:$U$281,0)),"") ->  | Z144: =$V$3:INDEX($V$3:$V$281,MAX($U$3:$U$281),1) -> Saltspring Island
S145: Mactaquac Provincial Park | T145: 0 | U145: =IF(T145=1,COUNTIF($T$3:T145,1),"") ->  | V145: =IFERROR(INDEX($S$3:$S$281,MATCH(ROWS($U$3:U145),$U$3:$U$281,0)),"") ->  | W145: =IFERROR(INDEX($S$3:$S$281,MATCH(ROWS($U$3:V145),$U$3:$U$281,0)),"") ->  | X145: =IFERROR(INDEX($S$3:$S$281,MATCH(ROWS($U$3:U145),$U$3:$U$281,0)),"") ->  | Z145: =$V$3:INDEX($V$3:$V$281,MAX($U$3:$U$281),1) -> Saltspring Island
S146: Makkovik | T146: 0 | U146: =IF(T146=1,COUNTIF($T$3:T146,1),"") ->  | V146: =IFERROR(INDEX($S$3:$S$281,MATCH(ROWS($U$3:U146),$U$3:$U$281,0)),"") ->  | W146: =IFERROR(INDEX($S$3:$S$281,MATCH(ROWS($U$3:V146),$U$3:$U$281,0)),"") ->  | X146: =IFERROR(INDEX($S$3:$S$281,MATCH(ROWS($U$3:U146),$U$3:$U$281,0)),"") ->  | Z146: =$V$3:INDEX($V$3:$V$281,MAX($U$3:$U$281),1) -> Saltspring Island
S147: Maniwaki | T147: 0 | U147: =IF(T147=1,COUNTIF($T$3:T147,1),"") ->  | V147: =IFERROR(INDEX($S$3:$S$281,MATCH(ROWS($U$3:U147),$U$3:$U$281,0)),"") ->  | W147: =IFERROR(INDEX($S$3:$S$281,MATCH(ROWS($U$3:V147),$U$3:$U$281,0)),"") ->  | X147: =IFERROR(INDEX($S$3:$S$281,MATCH(ROWS($U$3:U147),$U$3:$U$281,0)),"") ->  | Z147: =$V$3:INDEX($V$3:$V$281,MAX($U$3:$U$281),1) -> Saltspring Island
S148: Mary's Harbour | T148: 0 | U148: =IF(T148=1,COUNTIF($T$3:T148,1),"") ->  | V148: =IFERROR(INDEX($S$3:$S$281,MATCH(ROWS($U$3:U148),$U$3:$U$281,0)),"") ->  | W148: =IFERROR(INDEX($S$3:$S$281,MATCH(ROWS($U$3:V148),$U$3:$U$281,0)),"") ->  | X148: =IFERROR(INDEX($S$3:$S$281,MATCH(ROWS($U$3:U148),$U$3:$U$281,0)),"") ->  | Z148: =$V$3:INDEX($V$3:$V$281,MAX($U$3:$U$281),1) -> Saltspring Island
S149: Mayne Island, Village Bay | T149: 0 | U149: =IF(T149=1,COUNTIF($T$3:T149,1),"") ->  | V149: =IFERROR(INDEX($S$3:$S$281,MATCH(ROWS($U$3:U149),$U$3:$U$281,0)),"") ->  | W149: =IFERROR(INDEX($S$3:$S$281,MATCH(ROWS($U$3:V149),$U$3:$U$281,0)),"") ->  | X149: =IFERROR(INDEX($S$3:$S$281,MATCH(ROWS($U$3:U149),$U$3:$U$281,0)),"") ->  | Z149: =$V$3:INDEX($V$3:$V$281,MAX($U$3:$U$281),1) -> Saltspring Island
S150: McCreary | T150: 0 | U150: =IF(T150=1,COUNTIF($T$3:T150,1),"") ->  | V150: =IFERROR(INDEX($S$3:$S$281,MATCH(ROWS($U$3:U150),$U$3:$U$281,0)),"") ->  | W150: =IFERROR(INDEX($S$3:$S$281,MATCH(ROWS($U$3:V150),$U$3:$U$281,0)),"") ->  | X150: =IFERROR(INDEX($S$3:$S$281,MATCH(ROWS($U$3:U150),$U$3:$U$281,0)),"") ->  | Z150: =$V$3:INDEX($V$3:$V$281,MAX($U$3:$U$281),1) -> Saltspring Island
S151: Meadow Lake | T151: 0 | U151: =IF(T151=1,COUNTIF($T$3:T151,1),"") ->  | V151: =IFERROR(INDEX($S$3:$S$281,MATCH(ROWS($U$3:U151),$U$3:$U$281,0)),"") ->  | W151: =IFERROR(INDEX($S$3:$S$281,MATCH(ROWS($U$3:V151),$U$3:$U$281,0)),"") ->  | X151: =IFERROR(INDEX($S$3:$S$281,MATCH(ROWS($U$3:U151),$U$3:$U$281,0)),"") ->  | Z151: =$V$3:INDEX($V$3:$V$281,MAX($U$3:$U$281),1) -> Saltspring Island
S152: Medicine Hat | T152: 0 | U152: =IF(T152=1,COUNTIF($T$3:T152,1),"") ->  | V152: =IFERROR(INDEX($S$3:$S$281,MATCH(ROWS($U$3:U152),$U$3:$U$281,0)),"") ->  | W152: =IFERROR(INDEX($S$3:$S$281,MATCH(ROWS($U$3:V152),$U$3:$U$281,0)),"") ->  | X152: =IFERROR(INDEX($S$3:$S$281,MATCH(ROWS($U$3:U152),$U$3:$U$281,0)),"") ->  | Z152: =$V$3:INDEX($V$3:$V$281,MAX($U$3:$U$281),1) -> Saltspring Island
S153: Melfort | T153: 0 | U153: =IF(T153=1,COUNTIF($T$3:T153,1),"") ->  | V153: =IFERROR(INDEX($S$3:$S$281,MATCH(ROWS($U$3:U153),$U$3:$U$281,0)),"") ->  | W153: =IFERROR(INDEX($S$3:$S$281,MATCH(ROWS($U$3:V153),$U$3:$U$281,0)),"") ->  | X153: =IFERROR(INDEX($S$3:$S$281,MATCH(ROWS($U$3:U153),$U$3:$U$281,0)),"") ->  | Z153: =$V$3:INDEX($V$3:$V$281,MAX($U$3:$U$281),1) -> Saltspring Island
S154: Midland | T154: 0 | U154: =IF(T154=1,COUNTIF($T$3:T154,1),"") ->  | V154: =IFERROR(INDEX($S$3:$S$281,MATCH(ROWS($U$3:U154),$U$3:$U$281,0)),"") ->  | W154: =IFERROR(INDEX($S$3:$S$281,MATCH(ROWS($U$3:V154),$U$3:$U$281,0)),"") ->  | X154: =IFERROR(INDEX($S$3:$S$281,MATCH(ROWS($U$3:U154),$U$3:$U$281,0)),"") ->  | Z154: =$V$3:INDEX($V$3:$V$281,MAX($U$3:$U$281),1) -> Saltspring Island
S155: Miramichi | T155: 0 | U155: =IF(T155=1,COUNTIF($T$3:T155,1),"") ->  | V155: =IFERROR(INDEX($S$3:$S$281,MATCH(ROWS($U$3:U155),$U$3:$U$281,0)),"") ->  | W155: =IFERROR(INDEX($S$3:$S$281,MATCH(ROWS($U$3:V155),$U$3:$U$281,0)),"") ->  | X155: =IFERROR(INDEX($S$3:$S$281,MATCH(ROWS($U$3:U155),$U$3:$U$281,0)),"") ->  | Z155: =$V$3:INDEX($V$3:$V$281,MAX($U$3:$U$281),1) -> Saltspring Island
S156: Moncton | T156: 0 | U156: =IF(T156=1,COUNTIF($T$3:T156,1),"") ->  | V156: =IFERROR(INDEX($S$3:$S$281,MATCH(ROWS($U$3:U156),$U$3:$U$281,0)),"") ->  | W156: =IFERROR(INDEX($S$3:$S$281,MATCH(ROWS($U$3:V156),$U$3:$U$281,0)),"") ->  | X156: =IFERROR(INDEX($S$3:$S$281,MATCH(ROWS($U$3:U156),$U$3:$U$281,0)),"") ->  | Z156: =$V$3:INDEX($V$3:$V$281,MAX($U$3:$U$281),1) -> Saltspring Island
S157: Mont Laurier | T157: 0 | U157: =IF(T157=1,COUNTIF($T$3:T157,1),"") ->  | V157: =IFERROR(INDEX($S$3:$S$281,MATCH(ROWS($U$3:U157),$U$3:$U$281,0)),"") ->  | W157: =IFERROR(INDEX($S$3:$S$281,MATCH(ROWS($U$3:V157),$U$3:$U$281,0)),"") ->  | X157: =IFERROR(INDEX($S$3:$S$281,MATCH(ROWS($U$3:U157),$U$3:$U$281,0)),"") ->  | Z157: =$V$3:INDEX($V$3:$V$281,MAX($U$3:$U$281),1) -> Saltspring Island
S158: Monticello | T158: 0 | U158: =IF(T158=1,COUNTIF($T$3:T158,1),"") ->  | V158: =IFERROR(INDEX($S$3:$S$281,MATCH(ROWS($U$3:U158),$U$3:$U$281,0)),"") ->  | W158: =IFERROR(INDEX($S$3:$S$281,MATCH(ROWS($U$3:V158),$U$3:$U$281,0)),"") ->  | X158: =IFERROR(INDEX($S$3:$S$281,MATCH(ROWS($U$3:U158),$U$3:$U$281,0)),"") ->  | Z158: =$V$3:INDEX($V$3:$V$281,MAX($U$3:$U$281),1) -> Saltspring Island
S159: Montréal | T159: 0 | U159: =IF(T159=1,COUNTIF($T$3:T159,1),"") ->  | V159: =IFERROR(INDEX($S$3:$S$281,MATCH(ROWS($U$3:U159),$U$3:$U$281,0)),"") ->  | W159: =IFERROR(INDEX($S$3:$S$281,MATCH(ROWS($U$3:V159),$U$3:$U$281,0)),"") ->  | X159: =IFERROR(INDEX($S$3:$S$281,MATCH(ROWS($U$3:U159),$U$3:$U$281,0)),"") ->  | Z159: =$V$3:INDEX($V$3:$V$281,MAX($U$3:$U$281),1) -> Saltspring Island
S160: Moose Jaw | T160: 0 | U160: =IF(T160=1,COUNTIF($T$3:T160,1),"") ->  | V160: =IFERROR(INDEX($S$3:$S$281,MATCH(ROWS($U$3:U160),$U$3:$U$281,0)),"") ->  | W160: =IFERROR(INDEX($S$3:$S$281,MATCH(ROWS($U$3:V160),$U$3:$U$281,0)),"") ->  | X160: =IFERROR(INDEX($S$3:$S$281,MATCH(ROWS($U$3:U160),$U$3:$U$281,0)),"") ->  | Z160: =$V$3:INDEX($V$3:$V$281,MAX($U$3:$U$281),1) -> Saltspring Island
S161: Moosomin | T161: 0 | U161: =IF(T161=1,COUNTIF($T$3:T161,1),"") ->  | V161: =IFERROR(INDEX($S$3:$S$281,MATCH(ROWS($U$3:U161),$U$3:$U$281,0)),"") ->  | W161: =IFERROR(INDEX($S$3:$S$281,MATCH(ROWS($U$3:V161),$U$3:$U$281,0)),"") ->  | X161: =IFERROR(INDEX($S$3:$S$281,MATCH(ROWS($U$3:U161),$U$3:$U$281,0)),"") ->  | Z161: =$V$3:INDEX($V$3:$V$281,MAX($U$3:$U$281),1) -> Saltspring Island
S162: Moosonee | T162: 0 | U162: =IF(T162=1,COUNTIF($T$3:T162,1),"") ->  | V162: =IFERROR(INDEX($S$3:$S$281,MATCH(ROWS($U$3:U162),$U$3:$U$281,0)),"") ->  | W162: =IFERROR(INDEX($S$3:$S$281,MATCH(ROWS($U$3:V162),$U$3:$U$281,0)),"") ->  | X162: =IFERROR(INDEX($S$3:$S$281,MATCH(ROWS($U$3:U162),$U$3:$U$281,0)),"") ->  | Z162: =$V$3:INDEX($V$3:$V$281,MAX($U$3:$U$281),1) -> Saltspring Island
S163: Morden | T163: 0 | U163: =IF(T163=1,COUNTIF($T$3:T163,1),"") ->  | V163: =IFERROR(INDEX($S$3:$S$281,MATCH(ROWS($U$3:U163),$U$3:$U$281,0)),"") ->  | W163: =IFERROR(INDEX($S$3:$S$281,MATCH(ROWS($U$3:V163),$U$3:$U$281,0)),"") ->  | X163: =IFERROR(INDEX($S$3:$S$281,MATCH(ROWS($U$3:U163),$U$3:$U$281,0)),"") ->  | Z163: =$V$3:INDEX($V$3:$V$281,MAX($U$3:$U$281),1) -> Saltspring Island
S164: Mount Carleton Provincial Park | T164: 0 | U164: =IF(T164=1,COUNTIF($T$3:T164,1),"") ->  | V164: =IFERROR(INDEX($S$3:$S$281,MATCH(ROWS($U$3:U164),$U$3:$U$281,0)),"") ->  | W164: =IFERROR(INDEX($S$3:$S$281,MATCH(ROWS($U$3:V164),$U$3:$U$281,0)),"") ->  | X164: =IFERROR(INDEX($S$3:$S$281,MATCH(ROWS($U$3:U164),$U$3:$U$281,0)),"") ->  | Z164: =$V$3:INDEX($V$3:$V$281,MAX($U$3:$U$281),1) -> Saltspring Island
S165: Musgrave Harbour | T165: 0 | U165: =IF(T165=1,COUNTIF($T$3:T165,1),"") ->  | V165: =IFERROR(INDEX($S$3:$S$281,MATCH(ROWS($U$3:U165),$U$3:$U$281,0)),"") ->  | W165: =IFERROR(INDEX($S$3:$S$281,MATCH(ROWS($U$3:V165),$U$3:$U$281,0)),"") ->  | X165: =IFERROR(INDEX($S$3:$S$281,MATCH(ROWS($U$3:U165),$U$3:$U$281,0)),"") ->  | Z165: =$V$3:INDEX($V$3:$V$281,MAX($U$3:$U$281),1) -> Saltspring Island
S166: Nain | T166: 0 | U166: =IF(T166=1,COUNTIF($T$3:T166,1),"") ->  | V166: =IFERROR(INDEX($S$3:$S$281,MATCH(ROWS($U$3:U166),$U$3:$U$281,0)),"") ->  | W166: =IFERROR(INDEX($S$3:$S$281,MATCH(ROWS($U$3:V166),$U$3:$U$281,0)),"") ->  | X166: =IFERROR(INDEX($S$3:$S$281,MATCH(ROWS($U$3:U166),$U$3:$U$281,0)),"") ->  | Z166: =$V$3:INDEX($V$3:$V$281,MAX($U$3:$U$281),1) -> Saltspring Island
S167: Nanaimo | T167: 0 | U167: =IF(T167=1,COUNTIF($T$3:T167,1),"") ->  | V167: =IFERROR(INDEX($S$3:$S$281,MATCH(ROWS($U$3:U167),$U$3:$U$281,0)),"") ->  | W167: =IFERROR(INDEX($S$3:$S$281,MATCH(ROWS($U$3:V167),$U$3:$U$281,0)),"") ->  | X167: =IFERROR(INDEX($S$3:$S$281,MATCH(ROWS($U$3:U167),$U$3:$U$281,0)),"") ->  | Z167: =$V$3:INDEX($V$3:$V$281,MAX($U$3:$U$281),1) -> Saltspring Island
S168: Natashquan | T168: 0 | U168: =IF(T168=1,COUNTIF($T$3:T168,1),"") ->  | V168: =IFERROR(INDEX($S$3:$S$281,MATCH(ROWS($U$3:U168),$U$3:$U$281,0)),"") ->  | W168: =IFERROR(INDEX($S$3:$S$281,MATCH(ROWS($U$3:V168),$U$3:$U$281,0)),"") ->  | X168: =IFERROR(INDEX($S$3:$S$281,MATCH(ROWS($U$3:U168),$U$3:$U$281,0)),"") ->  | Z168: =$V$3:INDEX($V$3:$V$281,MAX($U$3:$U$281),1) -> Saltspring Island
S169: New Glasgow | T169: 0 | U169: =IF(T169=1,COUNTIF($T$3:T169,1),"") ->  | V169: =IFERROR(INDEX($S$3:$S$281,MATCH(ROWS($U$3:U169),$U$3:$U$281,0)),"") ->  | W169: =IFERROR(INDEX($S$3:$S$281,MATCH(ROWS($U$3:V169),$U$3:$U$281,0)),"") ->  | X169: =IFERROR(INDEX($S$3:$S$281,MATCH(ROWS($U$3:U169),$U$3:$U$281,0)),"") ->  | Z169: =$V$3:INDEX($V$3:$V$281,MAX($U$3:$U$281),1) -> Saltspring Island
S170: Niagara Falls | T170: 0 | U170: =IF(T170=1,COUNTIF($T$3:T170,1),"") ->  | V170: =IFERROR(INDEX($S$3:$S$281,MATCH(ROWS($U$3:U170),$U$3:$U$281,0)),"") ->  | W170: =IFERROR(INDEX($S$3:$S$281,MATCH(ROWS($U$3:V170),$U$3:$U$281,0)),"") ->  | X170: =IFERROR(INDEX($S$3:$S$281,MATCH(ROWS($U$3:U170),$U$3:$U$281,0)),"") ->  | Z170: =$V$3:INDEX($V$3:$V$281,MAX($U$3:$U$281),1) -> Saltspring Island
S171: Nipawin | T171: 0 | U171: =IF(T171=1,COUNTIF($T$3:T171,1),"") ->  | V171: =IFERROR(INDEX($S$3:$S$281,MATCH(ROWS($U$3:U171),$U$3:$U$281,0)),"") ->  | W171: =IFERROR(INDEX($S$3:$S$281,MATCH(ROWS($U$3:V171),$U$3:$U$281,0)),"") ->  | X171: =IFERROR(INDEX($S$3:$S$281,MATCH(ROWS($U$3:U171),$U$3:$U$281,0)),"") ->  | Z171: =$V$3:INDEX($V$3:$V$281,MAX($U$3:$U$281),1) -> Saltspring Island
S172: North Battleford | T172: 0 | U172: =IF(T172=1,COUNTIF($T$3:T172,1),"") ->  | V172: =IFERROR(INDEX($S$3:$S$281,MATCH(ROWS($U$3:U172),$U$3:$U$281,0)),"") ->  | W172: =IFERROR(INDEX($S$3:$S$281,MATCH(ROWS($U$3:V172),$U$3:$U$281,0)),"") ->  | X172: =IFERROR(INDEX($S$3:$S$281,MATCH(ROWS($U$3:U172),$U$3:$U$281,0)),"") ->  | Z172: =$V$3:INDEX($V$3:$V$281,MAX($U$3:$U$281),1) -> Saltspring Island
S173: North Bay | T173: 0 | U173: =IF(T173=1,COUNTIF($T$3:T173,1),"") ->  | V173: =IFERROR(INDEX($S$3:$S$281,MATCH(ROWS($U$3:U173),$U$3:$U$281,0)),"") ->  | W173: =IFERROR(INDEX($S$3:$S$281,MATCH(ROWS($U$3:V173),$U$3:$U$281,0)),"") ->  | X173: =IFERROR(INDEX($S$3:$S$281,MATCH(ROWS($U$3:U173),$U$3:$U$281,0)),"") ->  | Z173: =$V$3:INDEX($V$3:$V$281,MAX($U$3:$U$281),1) -> Saltspring Island
S174: North Vancouver, Capilano | T174: 0 | U174: =IF(T174=1,COUNTIF($T$3:T174,1),"") ->  | V174: =IFERROR(INDEX($S$3:$S$281,MATCH(ROWS($U$3:U174),$U$3:$U$281,0)),"") ->  | W174: =IFERROR(INDEX($S$3:$S$281,MATCH(ROWS($U$3:V174),$U$3:$U$281,0)),"") ->  | X174: =IFERROR(INDEX($S$3:$S$281,MATCH(ROWS($U$3:U174),$U$3:$U$281,0)),"") ->  | Z174: =$V$3:INDEX($V$3:$V$281,MAX($U$3:$U$281),1) -> Saltspring Island
S175: Norway House | T175: 0 | U175: =IF(T175=1,COUNTIF($T$3:T175,1),"") ->  | V175: =IFERROR(INDEX($S$3:$S$281,MATCH(ROWS($U$3:U175),$U$3:$U$281,0)),"") ->  | W175: =IFERROR(INDEX($S$3:$S$281,MATCH(ROWS($U$3:V175),$U$3:$U$281,0)),"") ->  | X175: =IFERROR(INDEX($S$3:$S$281,MATCH(ROWS($U$3:U175),$U$3:$U$281,0)),"") ->  | Z175: =$V$3:INDEX($V$3:$V$281,MAX($U$3:$U$281),1) -> Saltspring Island
S176: O'Leary | T176: 0 | U176: =IF(T176=1,COUNTIF($T$3:T176,1),"") ->  | V176: =IFERROR(INDEX($S$3:$S$281,MATCH(ROWS($U$3:U176),$U$3:$U$281,0)),"") ->  | W176: =IFERROR(INDEX($S$3:$S$281,MATCH(ROWS($U$3:V176),$U$3:$U$281,0)),"") ->  | X176: =IFERROR(INDEX($S$3:$S$281,MATCH(ROWS($U$3:U176),$U$3:$U$281,0)),"") ->  | Z176: =$V$3:INDEX($V$3:$V$281,MAX($U$3:$U$281),1) -> Saltspring Island
S177: Oshawa | T177: 0 | U177: =IF(T177=1,COUNTIF($T$3:T177,1),"") ->  | V177: =IFERROR(INDEX($S$3:$S$281,MATCH(ROWS($U$3:U177),$U$3:$U$281,0)),"") ->  | W177: =IFERROR(INDEX($S$3:$S$281,MATCH(ROWS($U$3:V177),$U$3:$U$281,0)),"") ->  | X177: =IFERROR(INDEX($S$3:$S$281,MATCH(ROWS($U$3:U177),$U$3:$U$281,0)),"") ->  | Z177: =$V$3:INDEX($V$3:$V$281,MAX($U$3:$U$281),1) -> Saltspring Island
S178: Ottawa | T178: 0 | U178: =IF(T178=1,COUNTIF($T$3:T178,1),"") ->  | V178: =IFERROR(INDEX($S$3:$S$281,MATCH(ROWS($U$3:U178),$U$3:$U$281,0)),"") ->  | W178: =IFERROR(INDEX($S$3:$S$281,MATCH(ROWS($U$3:V178),$U$3:$U$281,0)),"") ->  | X178: =IFERROR(INDEX($S$3:$S$281,MATCH(ROWS($U$3:U178),$U$3:$U$281,0)),"") ->  | Z178: =$V$3:INDEX($V$3:$V$281,MAX($U$3:$U$281),1) -> Saltspring Island
S179: Owen Sound | T179: 0 | U179: =IF(T179=1,COUNTIF($T$3:T179,1),"") ->  | V179: =IFERROR(INDEX($S$3:$S$281,MATCH(ROWS($U$3:U179),$U$3:$U$281,0)),"") ->  | W179: =IFERROR(INDEX($S$3:$S$281,MATCH(ROWS($U$3:V179),$U$3:$U$281,0)),"") ->  | X179: =IFERROR(INDEX($S$3:$S$281,MATCH(ROWS($U$3:U179),$U$3:$U$281,0)),"") ->  | Z179: =$V$3:INDEX($V$3:$V$281,MAX($U$3:$U$281),1) -> Saltspring Island
S180: Parrsboro | T180: 0 | U180: =IF(T180=1,COUNTIF($T$3:T180,1),"") ->  | V180: =IFERROR(INDEX($S$3:$S$281,MATCH(ROWS($U$3:U180),$U$3:$U$281,0)),"") ->  | W180: =IFERROR(INDEX($S$3:$S$281,MATCH(ROWS($U$3:V180),$U$3:$U$281,0)),"") ->  | X180: =IFERROR(INDEX($S$3:$S$281,MATCH(ROWS($U$3:U180),$U$3:$U$281,0)),"") ->  | Z180: =$V$3:INDEX($V$3:$V$281,MAX($U$3:$U$281),1) -> Saltspring Island
S181: Pembroke | T181: 0 | U181: =IF(T181=1,COUNTIF($T$3:T181,1),"") ->  | V181: =IFERROR(INDEX($S$3:$S$281,MATCH(ROWS($U$3:U181),$U$3:$U$281,0)),"") ->  | W181: =IFERROR(INDEX($S$3:$S$281,MATCH(ROWS($U$3:V181),$U$3:$U$281,0)),"") ->  | X181: =IFERROR(INDEX($S$3:$S$281,MATCH(ROWS($U$3:U181),$U$3:$U$281,0)),"") ->  | Z181: =$V$3:INDEX($V$3:$V$281,MAX($U$3:$U$281),1) -> Saltspring Island
S182: Penticton | T182: 0 | U182: =IF(T182=1,COUNTIF($T$3:T182,1),"") ->  | V182: =IFERROR(INDEX($S$3:$S$281,MATCH(ROWS($U$3:U182),$U$3:$U$281,0)),"") ->  | W182: =IFERROR(INDEX($S$3:$S$281,MATCH(ROWS($U$3:V182),$U$3:$U$281,0)),"") ->  | X182: =IFERROR(INDEX($S$3:$S$281,MATCH(ROWS($U$3:U182),$U$3:$U$281,0)),"") ->  | Z182: =$V$3:INDEX($V$3:$V$281,MAX($U$3:$U$281),1) -> Saltspring Island
S183: Peterborough | T183: 0 | U183: =IF(T183=1,COUNTIF($T$3:T183,1),"") ->  | V183: =IFERROR(INDEX($S$3:$S$281,MATCH(ROWS($U$3:U183),$U$3:$U$281,0)),"") ->  | W183: =IFERROR(INDEX($S$3:$S$281,MATCH(ROWS($U$3:V183),$U$3:$U$281,0)),"") ->  | X183: =IFERROR(INDEX($S$3:$S$281,MATCH(ROWS($U$3:U183),$U$3:$U$281,0)),"") ->  | Z183: =$V$3:INDEX($V$3:$V$281,MAX($U$3:$U$281),1) -> Saltspring Island
S184: Pictou | T184: 0 | U184: =IF(T184=1,COUNTIF($T$3:T184,1),"") ->  | V184: =IFERROR(INDEX($S$3:$S$281,MATCH(ROWS($U$3:U184),$U$3:$U$281,0)),"") ->  | W184: =IFERROR(INDEX($S$3:$S$281,MATCH(ROWS($U$3:V184),$U$3:$U$281,0)),"") ->  | X184: =IFERROR(INDEX($S$3:$S$281,MATCH(ROWS($U$3:U184),$U$3:$U$281,0)),"") ->  | Z184: =$V$3:INDEX($V$3:$V$281,MAX($U$3:$U$281),1) -> Saltspring Island
S185: Point Pelee National Park | T185: 0 | U185: =IF(T185=1,COUNTIF($T$3:T185,1),"") ->  | V185: =IFERROR(INDEX($S$3:$S$281,MATCH(ROWS($U$3:U185),$U$3:$U$281,0)),"") ->  | W185: =IFERROR(INDEX($S$3:$S$281,MATCH(ROWS($U$3:V185),$U$3:$U$281,0)),"") ->  | X185: =IFERROR(INDEX($S$3:$S$281,MATCH(ROWS($U$3:U185),$U$3:$U$281,0)),"") ->  | Z185: =$V$3:INDEX($V$3:$V$281,MAX($U$3:$U$281),1) -> Saltspring Island
S186: Port Alberni | T186: 0 | U186: =IF(T186=1,COUNTIF($T$3:T186,1),"") ->  | V186: =IFERROR(INDEX($S$3:$S$281,MATCH(ROWS($U$3:U186),$U$3:$U$281,0)),"") ->  | W186: =IFERROR(INDEX($S$3:$S$281,MATCH(ROWS($U$3:V186),$U$3:$U$281,0)),"") ->  | X186: =IFERROR(INDEX($S$3:$S$281,MATCH(ROWS($U$3:U186),$U$3:$U$281,0)),"") ->  | Z186: =$V$3:INDEX($V$3:$V$281,MAX($U$3:$U$281),1) -> Saltspring Island
S187: Port Hardy | T187: 0 | U187: =IF(T187=1,COUNTIF($T$3:T187,1),"") ->  | V187: =IFERROR(INDEX($S$3:$S$281,MATCH(ROWS($U$3:U187),$U$3:$U$281,0)),"") ->  | W187: =IFERROR(INDEX($S$3:$S$281,MATCH(ROWS($U$3:V187),$U$3:$U$281,0)),"") ->  | X187: =IFERROR(INDEX($S$3:$S$281,MATCH(ROWS($U$3:U187),$U$3:$U$281,0)),"") ->  | Z187: =$V$3:INDEX($V$3:$V$281,MAX($U$3:$U$281),1) -> Saltspring Island
S188: Port Hawkesbury | T188: 0 | U188: =IF(T188=1,COUNTIF($T$3:T188,1),"") ->  | V188: =IFERROR(INDEX($S$3:$S$281,MATCH(ROWS($U$3:U188),$U$3:$U$281,0)),"") ->  | W188: =IFERROR(INDEX($S$3:$S$281,MATCH(ROWS($U$3:V188),$U$3:$U$281,0)),"") ->  | X188: =IFERROR(INDEX($S$3:$S$281,MATCH(ROWS($U$3:U188),$U$3:$U$281,0)),"") ->  | Z188: =$V$3:INDEX($V$3:$V$281,MAX($U$3:$U$281),1) -> Saltspring Island
S189: Port Renfrew | T189: 0 | U189: =IF(T189=1,COUNTIF($T$3:T189,1),"") ->  | V189: =IFERROR(INDEX($S$3:$S$281,MATCH(ROWS($U$3:U189),$U$3:$U$281,0)),"") ->  | W189: =IFERROR(INDEX($S$3:$S$281,MATCH(ROWS($U$3:V189),$U$3:$U$281,0)),"") ->  | X189: =IFERROR(INDEX($S$3:$S$281,MATCH(ROWS($U$3:U189),$U$3:$U$281,0)),"") ->  | Z189: =$V$3:INDEX($V$3:$V$281,MAX($U$3:$U$281),1) -> Saltspring Island
S190: Port Saunders | T190: 0 | U190: =IF(T190=1,COUNTIF($T$3:T190,1),"") ->  | V190: =IFERROR(INDEX($S$3:$S$281,MATCH(ROWS($U$3:U190),$U$3:$U$281,0)),"") ->  | W190: =IFERROR(INDEX($S$3:$S$281,MATCH(ROWS($U$3:V190),$U$3:$U$281,0)),"") ->  | X190: =IFERROR(INDEX($S$3:$S$281,MATCH(ROWS($U$3:U190),$U$3:$U$281,0)),"") ->  | Z190: =$V$3:INDEX($V$3:$V$281,MAX($U$3:$U$281),1) -> Saltspring Island
S191: Portage La Prairie | T191: 0 | U191: =IF(T191=1,COUNTIF($T$3:T191,1),"") ->  | V191: =IFERROR(INDEX($S$3:$S$281,MATCH(ROWS($U$3:U191),$U$3:$U$281,0)),"") ->  | W191: =IFERROR(INDEX($S$3:$S$281,MATCH(ROWS($U$3:V191),$U$3:$U$281,0)),"") ->  | X191: =IFERROR(INDEX($S$3:$S$281,MATCH(ROWS($U$3:U191),$U$3:$U$281,0)),"") ->  | Z191: =$V$3:INDEX($V$3:$V$281,MAX($U$3:$U$281),1) -> Saltspring Island
S192: Powell River | T192: 0 | U192: =IF(T192=1,COUNTIF($T$3:T192,1),"") ->  | V192: =IFERROR(INDEX($S$3:$S$281,MATCH(ROWS($U$3:U192),$U$3:$U$281,0)),"") ->  | W192: =IFERROR(INDEX($S$3:$S$281,MATCH(ROWS($U$3:V192),$U$3:$U$281,0)),"") ->  | X192: =IFERROR(INDEX($S$3:$S$281,MATCH(ROWS($U$3:U192),$U$3:$U$281,0)),"") ->  | Z192: =$V$3:INDEX($V$3:$V$281,MAX($U$3:$U$281),1) -> Saltspring Island
S193: Prince Albert | T193: 0 | U193: =IF(T193=1,COUNTIF($T$3:T193,1),"") ->  | V193: =IFERROR(INDEX($S$3:$S$281,MATCH(ROWS($U$3:U193),$U$3:$U$281,0)),"") ->  | W193: =IFERROR(INDEX($S$3:$S$281,MATCH(ROWS($U$3:V193),$U$3:$U$281,0)),"") ->  | X193: =IFERROR(INDEX($S$3:$S$281,MATCH(ROWS($U$3:U193),$U$3:$U$281,0)),"") ->  | Z193: =$V$3:INDEX($V$3:$V$281,MAX($U$3:$U$281),1) -> Saltspring Island
S194: Prince George | T194: 0 | U194: =IF(T194=1,COUNTIF($T$3:T194,1),"") ->  | V194: =IFERROR(INDEX($S$3:$S$281,MATCH(ROWS($U$3:U194),$U$3:$U$281,0)),"") ->  | W194: =IFERROR(INDEX($S$3:$S$281,MATCH(ROWS($U$3:V194),$U$3:$U$281,0)),"") ->  | X194: =IFERROR(INDEX($S$3:$S$281,MATCH(ROWS($U$3:U194),$U$3:$U$281,0)),"") ->  | Z194: =$V$3:INDEX($V$3:$V$281,MAX($U$3:$U$281),1) -> Saltspring Island
S195: Prince Rupert | T195: 0 | U195: =IF(T195=1,COUNTIF($T$3:T195,1),"") ->  | V195: =IFERROR(INDEX($S$3:$S$281,MATCH(ROWS($U$3:U195),$U$3:$U$281,0)),"") ->  | W195: =IFERROR(INDEX($S$3:$S$281,MATCH(ROWS($U$3:V195),$U$3:$U$281,0)),"") ->  | X195: =IFERROR(INDEX($S$3:$S$281,MATCH(ROWS($U$3:U195),$U$3:$U$281,0)),"") ->  | Z195: =$V$3:INDEX($V$3:$V$281,MAX($U$3:$U$281),1) -> Saltspring Island
S196: Pugwash | T196: 0 | U196: =IF(T196=1,COUNTIF($T$3:T196,1),"") ->  | V196: =IFERROR(INDEX($S$3:$S$281,MATCH(ROWS($U$3:U196),$U$3:$U$281,0)),"") ->  | W196: =IFERROR(INDEX($S$3:$S$281,MATCH(ROWS($U$3:V196),$U$3:$U$281,0)),"") ->  | X196: =IFERROR(INDEX($S$3:$S$281,MATCH(ROWS($U$3:U196),$U$3:$U$281,0)),"") ->  | Z196: =$V$3:INDEX($V$3:$V$281,MAX($U$3:$U$281),1) -> Saltspring Island
S197: Qu'Appelle Valley | T197: 0 | U197: =IF(T197=1,COUNTIF($T$3:T197,1),"") ->  | V197: =IFERROR(INDEX($S$3:$S$281,MATCH(ROWS($U$3:U197),$U$3:$U$281,0)),"") ->  | W197: =IFERROR(INDEX($S$3:$S$281,MATCH(ROWS($U$3:V197),$U$3:$U$281,0)),"") ->  | X197: =IFERROR(INDEX($S$3:$S$281,MATCH(ROWS($U$3:U197),$U$3:$U$281,0)),"") ->  | Z197: =$V$3:INDEX($V$3:$V$281,MAX($U$3:$U$281),1) -> Saltspring Island
S198: Québec City | T198: 0 | U198: =IF(T198=1,COUNTIF($T$3:T198,1),"") ->  | V198: =IFERROR(INDEX($S$3:$S$281,MATCH(ROWS($U$3:U198),$U$3:$U$281,0)),"") ->  | W198: =IFERROR(INDEX($S$3:$S$281,MATCH(ROWS($U$3:V198),$U$3:$U$281,0)),"") ->  | X198: =IFERROR(INDEX($S$3:$S$281,MATCH(ROWS($U$3:U198),$U$3:$U$281,0)),"") ->  | Z198: =$V$3:INDEX($V$3:$V$281,MAX($U$3:$U$281),1) -> Saltspring Island
S199: Radisson | T199: 0 | U199: =IF(T199=1,COUNTIF($T$3:T199,1),"") ->  | V199: =IFERROR(INDEX($S$3:$S$281,MATCH(ROWS($U$3:U199),$U$3:$U$281,0)),"") ->  | W199: =IFERROR(INDEX($S$3:$S$281,MATCH(ROWS($U$3:V199),$U$3:$U$281,0)),"") ->  | X199: =IFERROR(INDEX($S$3:$S$281,MATCH(ROWS($U$3:U199),$U$3:$U$281,0)),"") ->  | Z199: =$V$3:INDEX($V$3:$V$281,MAX($U$3:$U$281),1) -> Saltspring Island
S200: Red Deer | T200: 0 | U200: =IF(T200=1,COUNTIF($T$3:T200,1),"") ->  | V200: =IFERROR(INDEX($S$3:$S$281,MATCH(ROWS($U$3:U200),$U$3:$U$281,0)),"") ->  | W200: =IFERROR(INDEX($S$3:$S$281,MATCH(ROWS($U$3:V200),$U$3:$U$281,0)),"") ->  | X200: =IFERROR(INDEX($S$3:$S$281,MATCH(ROWS($U$3:U200),$U$3:$U$281,0)),"") ->  | Z200: =$V$3:INDEX($V$3:$V$281,MAX($U$3:$U$281),1) -> Saltspring Island
S201: Red Lake | T201: 0 | U201: =IF(T201=1,COUNTIF($T$3:T201,1),"") ->  | V201: =IFERROR(INDEX($S$3:$S$281,MATCH(ROWS($U$3:U201),$U$3:$U$281,0)),"") ->  | W201: =IFERROR(INDEX($S$3:$S$281,MATCH(ROWS($U$3:V201),$U$3:$U$281,0)),"") ->  | X201: =IFERROR(INDEX($S$3:$S$281,MATCH(ROWS($U$3:U201),$U$3:$U$281,0)),"") ->  | Z201: =$V$3:INDEX($V$3:$V$281,MAX($U$3:$U$281),1) -> Saltspring Island
S202: Regina | T202: 0 | U202: =IF(T202=1,COUNTIF($T$3:T202,1),"") ->  | V202: =IFERROR(INDEX($S$3:$S$281,MATCH(ROWS($U$3:U202),$U$3:$U$281,0)),"") ->  | W202: =IFERROR(INDEX($S$3:$S$281,MATCH(ROWS($U$3:V202),$U$3:$U$281,0)),"") ->  | X202: =IFERROR(INDEX($S$3:$S$281,MATCH(ROWS($U$3:U202),$U$3:$U$281,0)),"") ->  | Z202: =$V$3:INDEX($V$3:$V$281,MAX($U$3:$U$281),1) -> Saltspring Island
... 79 more rows

Sheet Rainfall Data (hidden)
A3: Place | B3: JAN | C3: FEB | D3: MAR | E3: APR | F3: MAY | G3: JUN | H3: JUL | I3: AUG | J3: SEPT | K3: OCT | L3: NOV | M3: DEC
A4: Abbotsford | B4: 212 | C4: 132 | D4: 149 | E4: 118 | F4: 100 | G4: 75 | H4: 43 | I4: 46 | J4: 75 | K4: 153 | L4: 248 | M4: 187
A5: Alberton | B5: 96 | C5: 74 | D5: 81 | E5: 80 | F5: 93 | G5: 82 | H5: 86 | I5: 80 | J5: 92 | K5: 96 | L5: 99 | M5: 94
A6: Alliston | B6: 93 | C6: 79 | D6: 75 | E6: 96 | F6: 83 | G6: 94 | H6: 89 | I6: 75 | J6: 128 | K6: 127 | L6: 123 | M6: 117
A7: Amherst - Nappan | B7: 106 | C7: 83 | D7: 105 | E7: 92 | F7: 101 | G7: 83 | H7: 89 | I7: 74 | J7: 102 | K7: 103 | L7: 111 | M7: 107
A8: Amos | B8: 56 | C8: 36 | D8: 50 | E8: 65 | F8: 87 | G8: 94 | H8: 112 | I8: 98 | J8: 107 | K8: 87 | L8: 79 | M8: 58
A9: Annapolis Royal | B9: 114 | C9: 85 | D9: 94 | E9: 95 | F9: 86 | G9: 74 | H9: 69 | I9: 69 | J9: 110 | K9: 120 | L9: 125 | M9: 113
A10: Atikokan | B10: 35 | C10: 25 | D10: 33 | E10: 50 | F10: 77 | G10: 104 | H10: 118 | I10: 88 | J10: 100 | K10: 76 | L10: 45 | M10: 36
A11: Atlin | B11: 46 | C11: 25 | D11: 17 | E11: 9 | F11: 18 | G11: 30 | H11: 33 | I11: 34 | J11: 42 | K11: 37 | L11: 36 | M11: 36
A12: Baddeck | B12: 155 | C12: 126 | D12: 129 | E12: 126 | F12: 104 | G12: 105 | H12: 97 | I12: 107 | J12: 128 | K12: 137 | L12: 155 | M12: 166
A13: Baie Verte | B13: 104 | C13: 87 | D13: 75 | E13: 74 | F13: 79 | G13: 108 | H13: 86 | I13: 115 | J13: 92 | K13: 112 | L13: 88 | M13: 96
A14: Baie-Comeau | B14: 83 | C14: 65 | D14: 68 | E14: 80 | F14: 91 | G14: 89 | H14: 93 | I14: 75 | J14: 86 | K14: 95 | L14: 96 | M14: 79
A15: Baltic | B15: 116 | C15: 91 | D15: 96 | E15: 93 | F15: 93 | G15: 101 | H15: 87 | I15: 104 | J15: 115 | K15: 122 | L15: 126 | M15: 129
A16: Banff | B16: 20 | C16: 17 | D16: 21 | E16: 34 | F16: 62 | G16: 68 | H16: 68 | I16: 62 | J16: 39 | K16: 32 | L16: 26 | M16: 21
A17: Bangor | B17: 120 | C17: 99 | D17: 99 | E17: 94 | F17: 96 | G17: 94 | H17: 82 | I17: 96 | J17: 112 | K17: 120 | L17: 129 | M17: 141
A18: Barkerville | B18: 96 | C18: 61 | D18: 66 | E18: 58 | F18: 78 | G18: 102 | H18: 100 | I18: 81 | J18: 82 | K18: 92 | L18: 111 | M18: 95
A19: Barrie | B19: 83 | C19: 62 | D19: 58 | E19: 62 | F19: 82 | G19: 85 | H19: 77 | I19: 90 | J19: 94 | K19: 78 | L19: 89 | M19: 74
A20: Bathurst | B20: 98 | C20: 68 | D20: 73 | E20: 91 | F20: 77 | G20: 92 | H20: 96 | I20: 118 | J20: 72 | K20: 84 | L20: 107 | M20: 95
A21: Bella Coola | B21: 157 | C21: 88 | D21: 76 | E21: 56 | F21: 48 | G21: 51 | H21: 42 | I21: 60 | J21: 90 | K21: 195 | L21: 205 | M21: 131
A22: Belleville | B22: 67 | C22: 58 | D22: 62 | E22: 76 | F22: 81 | G22: 74 | H22: 65 | I22: 75 | J22: 92 | K22: 85 | L22: 96 | M22: 79
A23: Big Trout Lake | B23: 22 | C23: 19 | D23: 31 | E23: 33 | F23: 40 | G23: 80 | H23: 85 | I23: 89 | J23: 90 | K23: 50 | L23: 55 | M23: 28
A24: Blanc-Sablon | B24: 97 | C24: 84 | D24: 80 | E24: 50 | F24: 69 | G24: 92 | H24: 102 | I24: 96 | J24: 89 | K24: 88 | L24: 75 | M24: 100
A25: Bonavista | B25: 101 | C25: 104 | D25: 103 | E25: 83 | F25: 76 | G25: 90 | H25: 82 | I25: 79 | J25: 108 | K25: 115 | L25: 105 | M25: 107
A26: Brandon | B26: 18 | C26: 13 | D26: 25 | E26: 26 | F26: 59 | G26: 81 | H26: 73 | I26: 66 | J26: 44 | K26: 30 | L26: 19 | M26: 21
A27: Brantford | B27: 55 | C27: 51 | D27: 59 | E27: 69 | F27: 81 | G27: 76 | H27: 95 | I27: 75 | J27: 87 | K27: 70 | L27: 84 | M27: 65
A28: Bridgewater | B28: 144 | C28: 120 | D28: 156 | E28: 127 | F28: 128 | G28: 104 | H28: 97 | I28: 100 | J28: 111 | K28: 137 | L28: 165 | M28: 148
A29: Brooks | B29: 13 | C29: 9 | D29: 19 | E29: 22 | F29: 35 | G29: 74 | H29: 26 | I29: 38 | J29: 29 | K29: 11 | L29: 13 | M29: 12
A30: Buctouche | B30: 104 | C30: 88 | D30: 93 | E30: 86 | F30: 101 | G30: 95 | H30: 99 | I30: 85 | J30: 86 | K30: 95 | L30: 103 | M30: 101
A31: Buffalo Narrows | B31: 21 | C31: 19 | D31: 17 | E31: 26 | F31: 40 | G31: 62 | H31: 80 | I31: 62 | J31: 44 | K31: 32 | L31: 25 | M31: 22
A32: Burgeo | B32: 156 | C32: 124 | D32: 110 | E32: 138 | F32: 127 | G32: 155 | H32: 138 | I32: 129 | J32: 144 | K32: 155 | L32: 164 | M32: 146
A33: Calgary | B33: 9 | C33: 9 | D33: 18 | E33: 25 | F33: 57 | G33: 94 | H33: 66 | I33: 57 | J33: 45 | K33: 15 | L33: 13 | M33: 10
A34: Campbell River | B34: 217 | C34: 149 | D34: 140 | E34: 92 | F34: 68 | G34: 63 | H34: 39 | I34: 45 | J34: 55 | K34: 162 | L34: 232 | M34: 226
A35: Camrose | B35: 23 | C35: 14 | D35: 23 | E35: 29 | F35: 41 | G35: 74 | H35: 86 | I35: 52 | J35: 40 | K35: 24 | L35: 19 | M35: 15
A36: Caplan | B36: 80 | C36: 56 | D36: 60 | E36: 64 | F36: 92 | G36: 87 | H36: 100 | I36: 95 | J36: 79 | K36: 88 | L36: 86 | M36: 70
A37: Cardston | B37: 21 | C37: 19 | D37: 37 | E37: 41 | F37: 81 | G37: 91 | H37: 45 | I37: 44 | J37: 53 | K37: 32 | L37: 30 | M37: 21
A38: Cartwright | B38: 86 | C38: 91 | D38: 92 | E38: 75 | F38: 68 | G38: 99 | H38: 101 | I38: 94 | J38: 89 | K38: 102 | L38: 85 | M38: 92
A39: Castlegar | B39: 76 | C39: 51 | D39: 63 | E39: 59 | F39: 70 | G39: 72 | H39: 48 | I39: 30 | J39: 42 | K39: 51 | L39: 97 | M39: 90
A40: Channel-Port-Aux-Basques | B40: 152 | C40: 125 | D40: 108 | E40: 139 | F40: 119 | G40: 127 | H40: 113 | I40: 119 | J40: 125 | K40: 145 | L40: 151 | M40: 172
A41: Chapleau | B41: 52 | C41: 43 | D41: 47 | E41: 53 | F41: 70 | G41: 80 | H41: 82 | I41: 76 | J41: 95 | K41: 83 | L41: 64 | M41: 64
A42: Charlottetown | B42: 101 | C42: 83 | D42: 86 | E42: 84 | F42: 91 | G42: 99 | H42: 80 | I42: 96 | J42: 96 | K42: 112 | L42: 113 | M42: 118
A43: Chatham-Kent | B43: 63 | C43: 54 | D43: 60 | E43: 80 | F43: 80 | G43: 78 | H43: 85 | I43: 79 | J43: 89 | K43: 71 | L43: 77 | M43: 67
A44: Cheticamp | B44: 143 | C44: 108 | D44: 103 | E44: 88 | F44: 85 | G44: 96 | H44: 90 | I44: 114 | J44: 124 | K44: 130 | L44: 141 | M44: 153
A45: Chilliwack | B45: 233 | C45: 126 | D45: 155 | E45: 116 | F45: 93 | G45: 92 | H45: 48 | I45: 57 | J45: 75 | K45: 178 | L45: 284 | M45: 210
A46: Churchill | B46: 19 | C46: 17 | D46: 18 | E46: 24 | F46: 30 | G46: 44 | H46: 60 | I46: 69 | J46: 70 | K46: 48 | L46: 35 | M46: 18
A47: Churchill Falls | B47: 53 | C47: 44 | D47: 55 | E47: 64 | F47: 61 | G47: 80 | H47: 112 | I47: 93 | J47: 111 | K47: 82 | L47: 78 | M47: 54
A48: Cold Lake | B48: 16 | C48: 11 | D48: 17 | E48: 31 | F48: 41 | G48: 73 | H48: 79 | I48: 57 | J48: 39 | K48: 20 | L48: 19 | M48: 18
A49: Collins Bay | B49: 21 | C49: 21 | D49: 27 | E49: 22 | F49: 49 | G49: 50 | H49: 77 | I49: 92 | J49: 60 | K49: 47 | L49: 36 | M49: 26
A50: Come By Chance | B50: 130 | C50: 117 | D50: 109 | E50: 96 | F50: 95 | G50: 132 | H50: 93 | I50: 89 | J50: 118 | K50: 131 | L50: 120 | M50: 110
A51: Corner Brook | B51: 145 | C51: 106 | D51: 93 | E51: 80 | F51: 86 | G51: 87 | H51: 92 | I51: 107 | J51: 106 | K51: 112 | L51: 122 | M51: 149
A52: Cornwall | B52: 76 | C52: 60 | D52: 62 | E52: 81 | F52: 88 | G52: 97 | H52: 99 | I52: 89 | J52: 98 | K52: 93 | L52: 92 | M52: 76
A53: Cortes Island, Whaletown | B53: 184 | C53: 131 | D53: 107 | E53: 100 | F53: 73 | G53: 70 | H53: 49 | I53: 55 | J53: 61 | K53: 155 | L53: 224 | M53: 181
A54: Courtenay - Comox | B54: 172 | C54: 114 | D54: 106 | E54: 65 | F54: 46 | G54: 43 | H54: 27 | I54: 29 | J54: 42 | K54: 123 | L54: 201 | M54: 188
A55: Cranbrook | B55: 26 | C55: 19 | D55: 22 | E55: 25 | F55: 46 | G55: 62 | H55: 38 | I55: 28 | J55: 31 | K55: 20 | L55: 35 | M55: 33
A56: Cree Lake | B56: 18 | C56: 16 | D56: 16 | E56: 24 | F56: 31 | G56: 67 | H56: 84 | I56: 67 | J56: 45 | K56: 35 | L56: 29 | M56: 17
A57: Cross Lake | B57: 16 | C57: 18 | D57: 16 | E57: 19 | F57: 42 | G57: 68 | H57: 77 | I57: 70 | J57: 60 | K57: 34 | L57: 25 | M57: 23
A58: Cypress Hills | B58: 28 | C58: 22 | D58: 35 | E58: 46 | F58: 62 | G58: 122 | H58: 40 | I58: 39 | J58: 49 | K58: 26 | L58: 21 | M58: 31
A59: Dalhousie | B59: 84 | C59: 67 | D59: 77 | E59: 72 | F59: 85 | G59: 85 | H59: 102 | I59: 90 | J59: 79 | K59: 84 | L59: 92 | M59: 80
A60: Dauphin | B60: 14 | C60: 11 | D60: 24 | E60: 30 | F60: 55 | G60: 82 | H60: 73 | I60: 61 | J60: 58 | K60: 35 | L60: 21 | M60: 19
A61: Deer Lake | B61: 114 | C61: 84 | D61: 73 | E61: 70 | F61: 77 | G61: 81 | H61: 95 | I61: 110 | J61: 100 | K61: 89 | L61: 91 | M61: 111
A62: Doaktown | B62: 106 | C62: 77 | D62: 90 | E62: 83 | F62: 113 | G62: 95 | H62: 106 | I62: 94 | J62: 100 | K62: 101 | L62: 112 | M62: 97
A63: Drummondville | B63: 86 | C63: 72 | D63: 70 | E63: 80 | F63: 94 | G63: 102 | H63: 106 | I63: 106 | J63: 95 | K63: 102 | L63: 104 | M63: 98
A64: Dryden | B64: 27 | C64: 20 | D64: 30 | E64: 40 | F64: 73 | G64: 115 | H64: 103 | I64: 84 | J64: 89 | K64: 64 | L64: 47 | M64: 29
A65: Duncan | B65: 277 | C65: 146 | D65: 154 | E65: 81 | F65: 56 | G65: 41 | H65: 23 | I65: 35 | J65: 41 | K65: 153 | L65: 247 | M65: 254
A66: Edmonton | B66: 22 | C66: 12 | D66: 16 | E66: 29 | F66: 46 | G66: 77 | H66: 94 | I66: 62 | J66: 43 | K66: 22 | L66: 18 | M66: 15
A67: Edson | B67: 27 | C67: 12 | D67: 18 | E67: 23 | F67: 54 | G67: 94 | H67: 108 | I67: 75 | J67: 64 | K67: 25 | L67: 20 | M67: 18
A68: Emerson | B68: 27 | C68: 21 | D68: 25 | E68: 29 | F68: 58 | G68: 90 | H68: 94 | I68: 74 | J68: 57 | K68: 47 | L68: 37 | M68: 33
A69: Estevan | B69: 18 | C69: 14 | D69: 22 | E69: 24 | F69: 56 | G69: 75 | H69: 67 | I69: 52 | J69: 36 | K69: 28 | L69: 17 | M69: 17
A70: Fermont | B70: 48 | C70: 31 | D70: 43 | E70: 41 | F70: 47 | G70: 79 | H70: 118 | I70: 101 | J70: 104 | K70: 63 | L70: 58 | M70: 51
A71: Flin Flon | B71: 18 | C71: 15 | D71: 19 | E71: 28 | F71: 41 | G71: 67 | H71: 83 | I71: 67 | J71: 64 | K71: 38 | L71: 26 | M71: 22
A72: Fort Chipewyan | B72: 15 | C72: 14 | D72: 16 | E72: 16 | F72: 27 | G72: 44 | H72: 67 | I72: 50 | J72: 44 | K72: 29 | L72: 24 | M72: 18
A73: Fort Frances | B73: 35 | C73: 22 | D73: 26 | E73: 41 | F73: 78 | G73: 119 | H73: 97 | I73: 92 | J73: 83 | K73: 57 | L73: 46 | M73: 32
A74: Fort McMurray | B74: 18 | C74: 13 | D74: 17 | E74: 21 | F74: 36 | G74: 73 | H74: 81 | I74: 57 | J74: 40 | K74: 26 | L74: 20 | M74: 16
A75: Fort Nelson | B75: 21 | C75: 15 | D75: 19 | E75: 19 | F75: 49 | G75: 63 | H75: 78 | I75: 71 | J75: 40 | K75: 33 | L75: 26 | M75: 18
A76: Fort St John | B76: 25 | C76: 19 | D76: 24 | E76: 20 | F76: 38 | G76: 66 | H76: 75 | I76: 51 | J76: 45 | K76: 31 | L76: 29 | M76: 22
A77: Fredericton | B77: 95 | C77: 73 | D77: 93 | E77: 86 | F77: 96 | G77: 82 | H77: 88 | I77: 86 | J77: 88 | K77: 89 | L77: 106 | M77: 95
A78: French River, Chaudiere Dam | B78: 75 | C78: 61 | D78: 59 | E78: 67 | F78: 90 | G78: 74 | H78: 80 | I78: 79 | J78: 106 | K78: 100 | L78: 87 | M78: 80
A79: Fundy National Park | B79: 145 | C79: 108 | D79: 146 | E79: 121 | F79: 127 | G79: 110 | H79: 99 | I79: 94 | J79: 123 | K79: 133 | L79: 159 | M79: 147
A80: Gabriola Island | B80: 147 | C80: 96 | D80: 92 | E80: 63 | F80: 48 | G80: 43 | H80: 24 | I80: 27 | J80: 34 | K80: 86 | L80: 157 | M80: 141
A81: Gander | B81: 112 | C81: 105 | D81: 113 | E81: 95 | F81: 90 | G81: 88 | H81: 95 | I81: 104 | J81: 115 | K81: 114 | L81: 113 | M81: 127
A82: Gaspé | B82: 88 | C82: 65 | D82: 98 | E82: 90 | F82: 89 | G82: 80 | H82: 100 | I82: 94 | J82: 82 | K82: 121 | L82: 111 | M82: 117
A83: Gibsons | B83: 183 | C83: 110 | D83: 125 | E83: 104 | F83: 91 | G83: 67 | H83: 41 | I83: 49 | J83: 60 | K83: 152 | L83: 213 | M83: 174
A84: Gillam | B84: 20 | C84: 19 | D84: 23 | E84: 22 | F84: 43 | G84: 56 | H84: 79 | I84: 76 | J84: 57 | K84: 42 | L84: 38 | M84: 23
A85: Gimli | B85: 20 | C85: 14 | D85: 31 | E85: 28 | F85: 42 | G85: 104 | H85: 78 | I85: 57 | J85: 58 | K85: 47 | L85: 28 | M85: 20
A86: Gold River | B86: 424 | C86: 286 | D86: 266 | E86: 187 | F86: 120 | G86: 91 | H86: 56 | I86: 71 | J86: 109 | K86: 359 | L86: 491 | M86: 391
A87: Golden | B87: 46 | C87: 24 | D87: 24 | E87: 24 | F87: 34 | G87: 50 | H87: 51 | I87: 45 | J87: 38 | K87: 35 | L87: 51 | M87: 44
A88: Good Spirit Lake | B88: 15 | C88: 13 | D88: 24 | E88: 26 | F88: 60 | G88: 86 | H88: 78 | I88: 66 | J88: 47 | K88: 27 | L88: 19 | M88: 22
A89: Gore Bay | B89: 45 | C89: 30 | D89: 63 | E89: 67 | F89: 61 | G89: 65 | H89: 48 | I89: 65 | J89: 88 | K89: 107 | L89: 94 | M89: 70
A90: Granby | B90: 97 | C90: 73 | D90: 87 | E90: 90 | F90: 97 | G90: 116 | H90: 118 | I90: 123 | J90: 105 | K90: 103 | L90: 105 | M90: 102
A91: Grand Falls | B91: 94 | C91: 94 | D91: 91 | E91: 84 | F91: 78 | G91: 89 | H91: 89 | I91: 107 | J91: 96 | K91: 94 | L91: 94 | M91: 90
A92: Grand Rapids | B92: 18 | C92: 13 | D92: 21 | E92: 26 | F92: 52 | G92: 77 | H92: 71 | I92: 66 | J92: 59 | K92: 38 | L92: 26 | M92: 22
A93: Grande Prairie | B93: 30 | C93: 16 | D93: 17 | E93: 20 | F93: 41 | G93: 76 | H93: 76 | I93: 56 | J93: 43 | K93: 26 | L93: 25 | M93: 19
A94: Gros Morne National Park | B94: 237 | C94: 138 | D94: 93 | E94: 81 | F94: 85 | G94: 123 | H94: 96 | I94: 133 | J94: 127 | K94: 159 | L94: 156 | M94: 200
A95: Guelph | B95: 52 | C95: 58 | D95: 67 | E95: 74 | F95: 80 | G95: 79 | H95: 96 | I95: 93 | J95: 90 | K95: 72 | L95: 91 | M95: 81
A96: Halifax | B96: 140 | C96: 110 | D96: 132 | E96: 118 | F96: 119 | G96: 112 | H96: 110 | I96: 96 | J96: 109 | K96: 124 | L96: 151 | M96: 145
A97: Hamilton | B97: 57 | C97: 57 | D97: 64 | E97: 73 | F97: 85 | G97: 73 | H97: 83 | I97: 90 | J97: 81 | K97: 72 | L97: 91 | M97: 72
A98: Happy Valley - Goose Bay | B98: 65 | C98: 57 | D98: 65 | E98: 64 | F98: 69 | G98: 91 | H98: 121 | I98: 99 | J98: 91 | K98: 81 | L98: 72 | M98: 64
A99: Harbour Breton | B99: 112 | C99: 120 | D99: 102 | E99: 125 | F99: 117 | G99: 138 | H99: 119 | I99: 93 | J99: 140 | K99: 147 | L99: 150 | M99: 121
A100: Harbour Grace | B100: 124 | C100: 124 | D100: 115 | E100: 94 | F100: 85 | G100: 121 | H100: 89 | I100: 89 | J100: 135 | K100: 138 | L100: 112 | M100: 103
A101: High Level | B101: 20 | C101: 18 | D101: 18 | E101: 15 | F101: 36 | G101: 51 | H101: 66 | I101: 43 | J101: 32 | K101: 31 | L101: 25 | M101: 19
A102: Hodgson | B102: 36 | C102: 23 | D102: 35 | E102: 29 | F102: 62 | G102: 87 | H102: 69 | I102: 67 | J102: 59 | K102: 47 | L102: 37 | M102: 43
A103: Huntsville | B103: 93 | C103: 72 | D103: 68 | E103: 61 | F103: 89 | G103: 78 | H103: 83 | I103: 81 | J103: 111 | K103: 105 | L103: 99 | M103: 94
A104: Iles de la Madeleine | B104: 97 | C104: 74 | D104: 76 | E104: 74 | F104: 86 | G104: 76 | H104: 76 | I104: 85 | J104: 96 | K104: 94 | L104: 109 | M104: 94
A105: Ingonish Beach | B105: 186 | C105: 140 | D105: 154 | E105: 169 | F105: 109 | G105: 91 | H105: 93 | I105: 114 | J105: 144 | K105: 176 | L105: 190 | M105: 188
A106: Inukjuak | B106: 14 | C106: 13 | D106: 17 | E106: 22 | F106: 29 | G106: 41 | H106: 53 | I106: 58 | J106: 82 | K106: 57 | L106: 46 | M106: 27
A107: Jasper | B107: 23 | C107: 14 | D107: 17 | E107: 20 | F107: 31 | G107: 51 | H107: 64 | I107: 64 | J107: 34 | K107: 30 | L107: 24 | M107: 20
A108: Joliette | B108: 78 | C108: 61 | D108: 66 | E108: 83 | F108: 84 | G108: 107 | H108: 90 | I108: 90 | J108: 95 | K108: 92 | L108: 96 | M108: 78
A109: Kamloops | B109: 21 | C109: 12 | D109: 13 | E109: 14 | F109: 27 | G109: 37 | H109: 31 | I109: 24 | J109: 29 | K109: 19 | L109: 23 | M109: 25
A110: Kapuskasing | B110: 48 | C110: 36 | D110: 48 | E110: 55 | F110: 69 | G110: 80 | H110: 102 | I110: 77 | J110: 101 | K110: 86 | L110: 71 | M110: 56
A111: Kedgwick | B111: 72 | C111: 59 | D111: 50 | E111: 61 | F111: 84 | G111: 106 | H111: 122 | I111: 103 | J111: 86 | K111: 95 | L111: 80 | M111: 73
A112: Kejimkujik National Park | B112: 136 | C112: 102 | D112: 125 | E112: 124 | F112: 99 | G112: 102 | H112: 98 | I112: 90 | J112: 83 | K112: 97 | L112: 152 | M112: 140
A113: Kelowna | B113: 30 | C113: 20 | D113: 21 | E113: 24 | F113: 31 | G113: 40 | H113: 33 | I113: 26 | J113: 27 | K113: 24 | L113: 35 | M113: 32
A114: Kenora | B114: 26 | C114: 19 | D114: 28 | E114: 36 | F114: 81 | G114: 119 | H114: 103 | I114: 84 | J114: 86 | K114: 63 | L114: 42 | M114: 28
A115: Kentville | B115: 116 | C115: 101 | D115: 110 | E115: 93 | F115: 102 | G115: 82 | H115: 84 | I115: 77 | J115: 84 | K115: 89 | L115: 122 | M115: 122
A116: Kindersley | B116: 11 | C116: 7 | D116: 12 | E116: 23 | F116: 40 | G116: 67 | H116: 56 | I116: 44 | J116: 29 | K116: 13 | L116: 11 | M116: 12
A117: Kingston | B117: 65 | C117: 65 | D117: 69 | E117: 87 | F117: 77 | G117: 72 | H117: 64 | I117: 94 | J117: 90 | K117: 92 | L117: 100 | M117: 84
A118: Kouchibouguac National Park | B118: 138 | C118: 99 | D118: 123 | E118: 107 | F118: 112 | G118: 91 | H118: 110 | I118: 87 | J118: 84 | K118: 100 | L118: 121 | M118: 125
A119: Kuujjuaq | B119: 32 | C119: 29 | D119: 32 | E119: 27 | F119: 29 | G119: 50 | H119: 60 | I119: 71 | J119: 74 | K119: 55 | L119: 48 | M119: 36
A120: Kuujjuarapik | B120: 28 | C120: 23 | D120: 23 | E120: 24 | F120: 33 | G120: 60 | H120: 76 | I120: 92 | J120: 109 | K120: 82 | L120: 66 | M120: 46
A121: La Ronge | B121: 19 | C121: 15 | D121: 21 | E121: 36 | F121: 44 | G121: 67 | H121: 81 | I121: 61 | J121: 56 | K121: 37 | L121: 28 | M121: 23
A122: La Tuque | B122: 58 | C122: 46 | D122: 55 | E122: 55 | F122: 84 | G122: 94 | H122: 130 | I122: 94 | J122: 95 | K122: 82 | L122: 74 | M122: 53
A123: Lachute | B123: 91 | C123: 70 | D123: 73 | E123: 88 | F123: 96 | G123: 115 | H123: 100 | I123: 104 | J123: 108 | K123: 110 | L123: 106 | M123: 90
A124: Last Mountain Lake | B124: 17 | C124: 10 | D124: 18 | E124: 26 | F124: 43 | G124: 75 | H124: 54 | I124: 51 | J124: 33 | K124: 21 | L124: 15 | M124: 18
A125: Lethbridge | B125: 13 | C125: 12 | D125: 23 | E125: 28 | F125: 50 | G125: 82 | H125: 43 | I125: 37 | J125: 41 | K125: 20 | L125: 18 | M125: 13
A126: Lillooet | B126: 38 | C126: 20 | D126: 17 | E126: 19 | F126: 26 | G126: 24 | H126: 36 | I126: 26 | J126: 24 | K126: 34 | L126: 44 | M126: 42
A127: Liverpool - Milton | B127: 159 | C127: 137 | D127: 165 | E127: 146 | F127: 136 | G127: 109 | H127: 98 | I127: 89 | J127: 122 | K127: 128 | L127: 180 | M127: 176
A128: Lloydminster | B128: 16 | C128: 10 | D128: 14 | E128: 26 | F128: 45 | G128: 71 | H128: 75 | I128: 60 | J128: 42 | K128: 18 | L128: 18 | M128: 14
A129: Lloydminster | B129: 21 | C129: 14 | D129: 20 | E129: 31 | F129: 38 | G129: 63 | H129: 71 | I129: 50 | J129: 33 | K129: 18 | L129: 29 | M129: 24
A130: London | B130: 74 | C130: 65 | D130: 72 | E130: 83 | F130: 90 | G130: 92 | H130: 83 | I130: 83 | J130: 103 | K130: 81 | L130: 98 | M130: 87
A131: Long Harbour | B131: 130 | C131: 118 | D131: 116 | E131: 112 | F131: 92 | G131: 121 | H131: 102 | I131: 97 | J131: 126 | K131: 135 | L131: 127 | M131: 117
A132: Long River | B132: 84 | C132: 64 | D132: 69 | E132: 75 | F132: 98 | G132: 92 | H132: 82 | I132: 91 | J132: 101 | K132: 103 | L132: 105 | M132: 93
A133: Louisbourg | B133: 147 | C133: 138 | D133: 144 | E133: 148 | F133: 128 | G133: 113 | H133: 108 | I133: 108 | J133: 133 | K133: 158 | L133: 169 | M133: 153
A134: Lynn Lake | B134: 20 | C134: 16 | D134: 20 | E134: 24 | F134: 37 | G134: 62 | H134: 85 | I134: 69 | J134: 61 | K134: 38 | L134: 27 | M134: 19
A135: Mactaquac Provincial Park | B135: 101 | C135: 64 | D135: 90 | E135: 86 | F135: 100 | G135: 87 | H135: 98 | I135: 85 | J135: 92 | K135: 97 | L135: 101 | M135: 99
A136: Makkovik | B136: 73 | C136: 75 | D136: 73 | E136: 62 | F136: 52 | G136: 94 | H136: 101 | I136: 98 | J136: 92 | K136: 92 | L136: 84 | M136: 84
A137: Maniwaki | B137: 55 | C137: 52 | D137: 66 | E137: 65 | F137: 85 | G137: 83 | H137: 79 | I137: 111 | J137: 77 | K137: 93 | L137: 82 | M137: 64
A138: Mary's Harbour | B138: 69 | C138: 81 | D138: 67 | E138: 51 | F138: 73 | G138: 95 | H138: 86 | I138: 89 | J138: 68 | K138: 93 | L138: 84 | M138: 87
A139: Mayne Island, Village Bay | B139: 130 | C139: 88 | D139: 75 | E139: 55 | F139: 44 | G139: 37 | H139: 21 | I139: 24 | J139: 28 | K139: 80 | L139: 135 | M139: 125
A140: McCreary | B140: 21 | C140: 18 | D140: 34 | E140: 30 | F140: 63 | G140: 88 | H140: 74 | I140: 62 | J140: 58 | K140: 43 | L140: 26 | M140: 23
A141: Meadow Lake | B141: 16 | C141: 10 | D141: 14 | E141: 25 | F141: 44 | G141: 66 | H141: 75 | I141: 63 | J141: 41 | K141: 23 | L141: 19 | M141: 18
A142: Medicine Hat | B142: 13 | C142: 8 | D142: 19 | E142: 20 | F142: 44 | G142: 65 | H142: 36 | I142: 34 | J142: 37 | K142: 19 | L142: 15 | M142: 12
A143: Melfort | B143: 15 | C143: 10 | D143: 17 | E143: 27 | F143: 43 | G143: 54 | H143: 77 | I143: 52 | J143: 39 | K143: 28 | L143: 17 | M143: 18
A144: Midland | B144: 103 | C144: 64 | D144: 56 | E144: 70 | F144: 84 | G144: 81 | H144: 78 | I144: 78 | J144: 95 | K144: 94 | L144: 104 | M144: 95
A145: Miramichi | B145: 87 | C145: 71 | D145: 91 | E145: 85 | F145: 99 | G145: 86 | H145: 100 | I145: 93 | J145: 84 | K145: 90 | L145: 101 | M145: 85
A146: Moncton | B146: 98 | C146: 84 | D146: 106 | E146: 92 | F146: 102 | G146: 88 | H146: 85 | I146: 77 | J146: 94 | K146: 106 | L146: 94 | M146: 100
A147: Mont Laurier | B147: 69 | C147: 54 | D147: 62 | E147: 71 | F147: 90 | G147: 93 | H147: 101 | I147: 100 | J147: 93 | K147: 98 | L147: 89 | M147: 77
A148: Monticello | B148: 101 | C148: 82 | D148: 87 | E148: 87 | F148: 90 | G148: 91 | H148: 79 | I148: 89 | J148: 108 | K148: 115 | L148: 124 | M148: 118
A149: Montréal | B149: 77 | C149: 63 | D149: 69 | E149: 82 | F149: 81 | G149: 87 | H149: 89 | I149: 94 | J149: 83 | K149: 91 | L149: 96 | M149: 87
A150: Moose Jaw | B150: 17 | C150: 11 | D150: 20 | E150: 18 | F150: 48 | G150: 59 | H150: 63 | I150: 39 | J150: 38 | K150: 20 | L150: 17 | M150: 17
A151: Moosomin | B151: 21 | C151: 15 | D151: 26 | E151: 24 | F151: 66 | G151: 90 | H151: 78 | I151: 64 | J151: 56 | K151: 35 | L151: 20 | M151: 19
A152: Moosonee | B152: 33 | C152: 29 | D152: 35 | E152: 38 | F152: 55 | G152: 72 | H152: 97 | I152: 78 | J152: 95 | K152: 75 | L152: 56 | M152: 42
A153: Morden | B153: 19 | C153: 19 | D153: 22 | E153: 35 | F153: 58 | G153: 93 | H153: 79 | I153: 71 | J153: 45 | K153: 50 | L153: 30 | M153: 20
A154: Mount Carleton Provincial Park | B154: 99 | C154: 68 | D154: 77 | E154: 76 | F154: 93 | G154: 105 | H154: 119 | I154: 104 | J154: 97 | K154: 95 | L154: 97 | M154: 91
A155: Musgrave Harbour | B155: 88 | C155: 82 | D155: 76 | E155: 74 | F155: 73 | G155: 75 | H155: 82 | I155: 93 | J155: 110 | K155: 100 | L155: 93 | M155: 98
A156: Nain | B156: 84 | C156: 71 | D156: 74 | E156: 71 | F156: 57 | G156: 83 | H156: 99 | I156: 71 | J156: 82 | K156: 74 | L156: 78 | M156: 82
A157: Nanaimo | B157: 188 | C157: 126 | D157: 113 | E157: 67 | F157: 54 | G157: 43 | H157: 25 | I157: 28 | J157: 36 | K157: 102 | L157: 197 | M157: 184
A158: Natashquan | B158: 91 | C158: 70 | D158: 90 | E158: 80 | F158: 86 | G158: 88 | H158: 105 | I158: 92 | J158: 95 | K158: 104 | L158: 103 | M158: 94
A159: New Glasgow | B159: 120 | C159: 87 | D159: 96 | E159: 97 | F159: 102 | G159: 98 | H159: 79 | I159: 88 | J159: 107 | K159: 123 | L159: 129 | M159: 133
A160: Niagara Falls | B160: 64 | C160: 64 | D160: 68 | E160: 75 | F160: 83 | G160: 85 | H160: 84 | I160: 78 | J160: 88 | K160: 84 | L160: 102 | M160: 87
A161: Nipawin | B161: 15 | C161: 12 | D161: 15 | E161: 25 | F161: 43 | G161: 74 | H161: 83 | I161: 57 | J161: 41 | K161: 28 | L161: 16 | M161: 18
A162: North Battleford | B162: 16 | C162: 10 | D162: 14 | E162: 26 | F162: 33 | G162: 65 | H162: 74 | I162: 58 | J162: 34 | K162: 16 | L162: 16 | M162: 14
A163: North Bay | B163: 69 | C163: 57 | D163: 65 | E163: 72 | F163: 96 | G163: 98 | H163: 99 | I163: 91 | J163: 115 | K163: 107 | L163: 98 | M163: 78
A164: North Vancouver, Capilano | B164: 330 | C164: 279 | D164: 218 | E164: 207 | F164: 132 | G164: 124 | H164: 61 | I164: 72 | J164: 98 | K164: 248 | L164: 437 | M164: 316
A165: Norway House | B165: 21 | C165: 23 | D165: 24 | E165: 25 | F165: 50 | G165: 70 | H165: 80 | I165: 75 | J165: 61 | K165: 47 | L165: 29 | M165: 27
A166: O'Leary | B166: 99 | C166: 82 | D166: 89 | E166: 86 | F166: 103 | G166: 85 | H166: 96 | I166: 88 | J166: 102 | K166: 100 | L166: 112 | M166: 107
A167: Oshawa | B167: 66 | C167: 57 | D167: 54 | E167: 73 | F167: 79 | G167: 74 | H167: 73 | I167: 77 | J167: 94 | K167: 70 | L167: 85 | M167: 71
A168: Ottawa | B168: 63 | C168: 50 | D168: 57 | E168: 71 | F168: 87 | G168: 93 | H168: 84 | I168: 84 | J168: 93 | K168: 86 | L168: 83 | M168: 70
A169: Owen Sound | B169: 129 | C169: 86 | D169: 78 | E169: 71 | F169: 84 | G169: 73 | H169: 70 | I169: 79 | J169: 106 | K169: 98 | L169: 110 | M169: 130
A170: Parrsboro | B170: 115 | C170: 89 | D170: 115 | E170: 104 | F170: 105 | G170: 102 | H170: 90 | I170: 86 | J170: 113 | K170: 109 | L170: 120 | M170: 122
A171: Pembroke | B171: 48 | C171: 42 | D171: 56 | E171: 60 | F171: 76 | G171: 70 | H171: 75 | I171: 83 | J171: 84 | K171: 77 | L171: 69 | M171: 59
A172: Penticton | B172: 27 | C172: 20 | D172: 24 | E172: 26 | F172: 39 | G172: 46 | H172: 29 | I172: 28 | J172: 25 | K172: 26 | L172: 28 | M172: 29
A173: Peterborough | B173: 55 | C173: 61 | D173: 54 | E173: 70 | F173: 83 | G173: 73 | H173: 61 | I173: 96 | J173: 84 | K173: 77 | L173: 83 | M173: 74
A174: Pictou | B174: 110 | C174: 95 | D174: 100 | E174: 94 | F174: 84 | G174: 90 | H174: 77 | I174: 81 | J174: 118 | K174: 129 | L174: 135 | M174: 121
A175: Point Pelee National Park | B175: 57 | C175: 59 | D175: 70 | E175: 76 | F175: 77 | G175: 80 | H175: 84 | I175: 86 | J175: 93 | K175: 70 | L175: 95 | M175: 77
A176: Port Alberni | B176: 291 | C176: 255 | D176: 190 | E176: 127 | F176: 79 | G176: 55 | H176: 26 | I176: 38 | J176: 49 | K176: 204 | L176: 317 | M176: 276
A177: Port Hardy | B177: 247 | C177: 160 | D177: 160 | E177: 125 | F177: 79 | G177: 81 | H177: 54 | I177: 73 | J177: 110 | K177: 257 | L177: 312 | M177: 251
A178: Port Hawkesbury | B178: 121 | C178: 116 | D178: 113 | E178: 106 | F178: 98 | G178: 97 | H178: 96 | I178: 82 | J178: 117 | K178: 157 | L178: 147 | M178: 134
A179: Port Renfrew | B179: 556 | C179: 377 | D179: 362 | E179: 259 | F179: 155 | G179: 108 | H179: 51 | I179: 82 | J179: 124 | K179: 371 | L179: 580 | M179: 481
A180: Port Saunders | B180: 127 | C180: 93 | D180: 79 | E180: 57 | F180: 79 | G180: 105 | H180: 107 | I180: 99 | J180: 115 | K180: 97 | L180: 82 | M180: 107
A181: Portage La Prairie | B181: 23 | C181: 15 | D181: 26 | E181: 25 | F181: 43 | G181: 82 | H181: 80 | I181: 74 | J181: 57 | K181: 46 | L181: 29 | M181: 26
A182: Powell River | B182: 159 | C182: 109 | D182: 111 | E182: 83 | F182: 77 | G182: 68 | H182: 37 | I182: 45 | J182: 55 | K182: 126 | L182: 178 | M182: 158
A183: Prince Albert | B183: 16 | C183: 12 | D183: 18 | E183: 27 | F183: 45 | G183: 69 | H183: 77 | I183: 62 | J183: 43 | K183: 26 | L183: 17 | M183: 17
A184: Prince George | B184: 54 | C184: 29 | D184: 27 | E184: 33 | F184: 42 | G184: 61 | H184: 59 | I184: 46 | J184: 54 | K184: 60 | L184: 48 | M184: 44
A185: Prince Rupert | B185: 328 | C185: 221 | D185: 235 | E185: 211 | F185: 160 | G185: 127 | H185: 127 | I185: 177 | J185: 297 | K185: 432 | L185: 375 | M185: 371
A186: Pugwash | B186: 88 | C186: 65 | D186: 77 | E186: 82 | F186: 95 | G186: 82 | H186: 73 | I186: 78 | J186: 98 | K186: 104 | L186: 100 | M186: 96
A187: Qu'Appelle Valley | B187: 16 | C187: 11 | D187: 23 | E187: 27 | F187: 61 | G187: 83 | H187: 75 | I187: 58 | J187: 38 | K187: 26 | L187: 18 | M187: 19
A188: Québec City | B188: 87 | C188: 75 | D188: 76 | E188: 84 | F188: 107 | G188: 111 | H188: 125 | I188: 104 | J188: 116 | K188: 98 | L188: 102 | M188: 100
A189: Radisson | B189: 31 | C189: 22 | D189: 29 | E189: 33 | F189: 39 | G189: 65 | H189: 79 | I189: 91 | J189: 111 | K189: 87 | L189: 68 | M189: 43
A190: Red Deer | B190: 22 | C190: 13 | D190: 21 | E190: 21 | F190: 56 | G190: 89 | H190: 97 | I190: 63 | J190: 51 | K190: 21 | L190: 18 | M190: 14
A191: Red Lake | B191: 27 | C191: 17 | D191: 28 | E191: 34 | F191: 73 | G191: 99 | H191: 103 | I191: 88 | J191: 83 | K191: 60 | L191: 43 | M191: 30
A192: Regina | B192: 15 | C192: 9 | D192: 20 | E192: 24 | F192: 51 | G192: 71 | H192: 67 | I192: 45 | J192: 33 | K192: 25 | L192: 14 | M192: 16
A193: Revelstoke | B193: 108 | C193: 80 | D193: 62 | E193: 67 | F193: 58 | G193: 75 | H193: 72 | I193: 67 | J193: 55 | K193: 84 | L193: 118 | M193: 104
A194: Rimouski | B194: 71 | C194: 65 | D194: 60 | E194: 65 | F194: 85 | G194: 85 | H194: 91 | I194: 86 | J194: 88 | K194: 92 | L194: 84 | M194: 88
A195: Roberval | B195: 54 | C195: 44 | D195: 52 | E195: 63 | F195: 74 | G195: 83 | H195: 106 | I195: 86 | J195: 84 | K195: 71 | L195: 84 | M195: 64
A196: Rocky Harbour | B196: 136 | C196: 106 | D196: 87 | E196: 69 | F196: 74 | G196: 118 | H196: 80 | I196: 117 | J196: 105 | K196: 123 | L196: 120 | M196: 137
A197: Rocky Mountain House | B197: 19 | C197: 15 | D197: 18 | E197: 24 | F197: 65 | G197: 87 | H197: 115 | I197: 67 | J197: 74 | K197: 26 | L197: 17 | M197: 16
A198: Sable Island | B198: 145 | C198: 113 | D198: 130 | E198: 115 | F198: 101 | G198: 116 | H198: 101 | I198: 122 | J198: 130 | K198: 145 | L198: 151 | M198: 145
A199: Sackville | B199: 103 | C199: 75 | D199: 93 | E199: 89 | F199: 108 | G199: 94 | H199: 87 | I199: 82 | J199: 107 | K199: 106 | L199: 108 | M199: 95
A200: Saguenay | B200: 58 | C200: 51 | D200: 52 | E200: 62 | F200: 81 | G200: 88 | H200: 112 | I200: 91 | J200: 103 | K200: 85 | L200: 78 | M200: 70
A201: Saint John | B201: 124 | C201: 91 | D201: 108 | E201: 105 | F201: 110 | G201: 101 | H201: 88 | I201: 82 | J201: 106 | K201: 116 | L201: 134 | M201: 130
A202: Saint Leonard | B202: 91 | C202: 68 | D202: 78 | E202: 77 | F202: 87 | G202: 98 | H202: 119 | I202: 101 | J202: 95 | K202: 100 | L202: 98 | M202: 91
... 69 more rows

Sheet Rainfall Data (2) (hidden)
A3: Place | B3: JAN | C3: FEB | D3: MAR | E3: APR | F3: MAY | G3: JUN | H3: JUL | I3: AUG | J3: SEPT | K3: OCT | L3: NOV | M3: DEC
A4: Abbotsford | B4: 212 | C4: 132 | D4: 149 | E4: 118 | F4: 100 | G4: 75 | H4: 43 | I4: 46 | J4: 75 | K4: 153 | L4: 248 | M4: 187
A5: Atlin | B5: 46 | C5: 25 | D5: 17 | E5: 9 | F5: 18 | G5: 30 | H5: 33 | I5: 34 | J5: 42 | K5: 37 | L5: 36 | M5: 36
A6: Barkerville | B6: 96 | C6: 61 | D6: 66 | E6: 58 | F6: 78 | G6: 102 | H6: 100 | I6: 81 | J6: 82 | K6: 92 | L6: 111 | M6: 95
A7: Bella Coola | B7: 157 | C7: 88 | D7: 76 | E7: 56 | F7: 48 | G7: 51 | H7: 42 | I7: 60 | J7: 90 | K7: 195 | L7: 205 | M7: 131
A8: Campbell River | B8: 217 | C8: 149 | D8: 140 | E8: 92 | F8: 68 | G8: 63 | H8: 39 | I8: 45 | J8: 55 | K8: 162 | L8: 232 | M8: 226
A9: Castlegar | B9: 76 | C9: 51 | D9: 63 | E9: 59 | F9: 70 | G9: 72 | H9: 48 | I9: 30 | J9: 42 | K9: 51 | L9: 97 | M9: 90
A10: Chilliwack | B10: 233 | C10: 126 | D10: 155 | E10: 116 | F10: 93 | G10: 92 | H10: 48 | I10: 57 | J10: 75 | K10: 178 | L10: 284 | M10: 210
A11: Cortes Island, Whaletown | B11: 184 | C11: 131 | D11: 107 | E11: 100 | F11: 73 | G11: 70 | H11: 49 | I11: 55 | J11: 61 | K11: 155 | L11: 224 | M11: 181
A12: Courtenay - Comox | B12: 172 | C12: 114 | D12: 106 | E12: 65 | F12: 46 | G12: 43 | H12: 27 | I12: 29 | J12: 42 | K12: 123 | L12: 201 | M12: 188
A13: Cranbrook | B13: 26 | C13: 19 | D13: 22 | E13: 25 | F13: 46 | G13: 62 | H13: 38 | I13: 28 | J13: 31 | K13: 20 | L13: 35 | M13: 33
A14: Duncan | B14: 277 | C14: 146 | D14: 154 | E14: 81 | F14: 56 | G14: 41 | H14: 23 | I14: 35 | J14: 41 | K14: 153 | L14: 247 | M14: 254
A15: Fort Nelson | B15: 21 | C15: 15 | D15: 19 | E15: 19 | F15: 49 | G15: 63 | H15: 78 | I15: 71 | J15: 40 | K15: 33 | L15: 26 | M15: 18
A16: Fort St John | B16: 25 | C16: 19 | D16: 24 | E16: 20 | F16: 38 | G16: 66 | H16: 75 | I16: 51 | J16: 45 | K16: 31 | L16: 29 | M16: 22
A17: Gabriola Island | B17: 147 | C17: 96 | D17: 92 | E17: 63 | F17: 48 | G17: 43 | H17: 24 | I17: 27 | J17: 34 | K17: 86 | L17: 157 | M17: 141
A18: Gibsons | B18: 183 | C18: 110 | D18: 125 | E18: 104 | F18: 91 | G18: 67 | H18: 41 | I18: 49 | J18: 60 | K18: 152 | L18: 213 | M18: 174
A19: Gold River | B19: 424 | C19: 286 | D19: 266 | E19: 187 | F19: 120 | G19: 91 | H19: 56 | I19: 71 | J19: 109 | K19: 359 | L19: 491 | M19: 391
A20: Golden | B20: 46 | C20: 24 | D20: 24 | E20: 24 | F20: 34 | G20: 50 | H20: 51 | I20: 45 | J20: 38 | K20: 35 | L20: 51 | M20: 44
A21: Kamloops | B21: 21 | C21: 12 | D21: 13 | E21: 14 | F21: 27 | G21: 37 | H21: 31 | I21: 24 | J21: 29 | K21: 19 | L21: 23 | M21: 25
A22: Kelowna | B22: 30 | C22: 20 | D22: 21 | E22: 24 | F22: 31 | G22: 40 | H22: 33 | I22: 26 | J22: 27 | K22: 24 | L22: 35 | M22: 32
A23: Lillooet | B23: 38 | C23: 20 | D23: 17 | E23: 19 | F23: 26 | G23: 24 | H23: 36 | I23: 26 | J23: 24 | K23: 34 | L23: 44 | M23: 42
A24: Mayne Island, Village Bay | B24: 130 | C24: 88 | D24: 75 | E24: 55 | F24: 44 | G24: 37 | H24: 21 | I24: 24 | J24: 28 | K24: 80 | L24: 135 | M24: 125
A25: Nanaimo | B25: 188 | C25: 126 | D25: 113 | E25: 67 | F25: 54 | G25: 43 | H25: 25 | I25: 28 | J25: 36 | K25: 102 | L25: 197 | M25: 184
A26: North Vancouver, Capilano | B26: 330 | C26: 279 | D26: 218 | E26: 207 | F26: 132 | G26: 124 | H26: 61 | I26: 72 | J26: 98 | K26: 248 | L26: 437 | M26: 316
A27: Penticton | B27: 27 | C27: 20 | D27: 24 | E27: 26 | F27: 39 | G27: 46 | H27: 29 | I27: 28 | J27: 25 | K27: 26 | L27: 28 | M27: 29
A28: Port Alberni | B28: 291 | C28: 255 | D28: 190 | E28: 127 | F28: 79 | G28: 55 | H28: 26 | I28: 38 | J28: 49 | K28: 204 | L28: 317 | M28: 276
A29: Port Hardy | B29: 247 | C29: 160 | D29: 160 | E29: 125 | F29: 79 | G29: 81 | H29: 54 | I29: 73 | J29: 110 | K29: 257 | L29: 312 | M29: 251
A30: Port Renfrew | B30: 556 | C30: 377 | D30: 362 | E30: 259 | F30: 155 | G30: 108 | H30: 51 | I30: 82 | J30: 124 | K30: 371 | L30: 580 | M30: 481
A31: Powell River | B31: 159 | C31: 109 | D31: 111 | E31: 83 | F31: 77 | G31: 68 | H31: 37 | I31: 45 | J31: 55 | K31: 126 | L31: 178 | M31: 158
A32: Prince George | B32: 54 | C32: 29 | D32: 27 | E32: 33 | F32: 42 | G32: 61 | H32: 59 | I32: 46 | J32: 54 | K32: 60 | L32: 48 | M32: 44
A33: Prince Rupert | B33: 328 | C33: 221 | D33: 235 | E33: 211 | F33: 160 | G33: 127 | H33: 127 | I33: 177 | J33: 297 | K33: 432 | L33: 375 | M33: 371
A34: Revelstoke | B34: 108 | C34: 80 | D34: 62 | E34: 67 | F34: 58 | G34: 75 | H34: 72 | I34: 67 | J34: 55 | K34: 84 | L34: 118 | M34: 104
A35: Saltspring Island | B35: 162 | C35: 99 | D35: 89 | E35: 57 | F35: 43 | G35: 37 | H35: 23 | I35: 28 | J35: 33 | K35: 94 | L35: 168 | M35: 154
A36: Sandspit, Haida Gwaii | B36: 191 | C36: 131 | D36: 117 | E36: 98 | F36: 66 | G36: 52 | H36: 48 | I36: 62 | J36: 83 | K36: 170 | L36: 194 | M36: 196
A37: Sidney | B37: 143 | C37: 89 | D37: 78 | E37: 48 | F37: 38 | G37: 31 | H37: 18 | I37: 24 | J37: 31 | K37: 88 | L37: 153 | M37: 142
A38: Smithers | B38: 43 | C38: 23 | D38: 21 | E38: 24 | F38: 38 | G38: 55 | H38: 46 | I38: 44 | J38: 54 | K38: 65 | L38: 55 | M38: 42
A39: Sparwood | B39: 54 | C39: 41 | D39: 44 | E39: 41 | F39: 60 | G39: 69 | H39: 47 | I39: 35 | J39: 47 | K39: 49 | L39: 72 | M39: 53
A40: Tofino | B40: 487 | C40: 336 | D40: 330 | E40: 270 | F40: 153 | G40: 130 | H40: 71 | I40: 88 | J40: 133 | K40: 342 | L40: 492 | M40: 440
A41: Vancouver | B41: 223 | C41: 111 | D41: 125 | E41: 102 | F41: 75 | G41: 68 | H41: 43 | I41: 48 | J41: 59 | K41: 157 | L41: 238 | M41: 207
A42: Vernon | B42: 33 | C42: 25 | D42: 29 | E42: 32 | F42: 42 | G42: 49 | H42: 42 | I42: 28 | J42: 37 | K42: 27 | L42: 44 | M42: 38
A43: Victoria | B43: 103 | C43: 74 | D43: 50 | E43: 39 | F43: 36 | G43: 27 | H43: 17 | I43: 22 | J43: 25 | K43: 74 | L43: 138 | M43: 102
A44: Whistler | B44: 176 | C44: 105 | D44: 98 | E44: 76 | F44: 67 | G44: 59 | H44: 45 | I44: 47 | J44: 55 | K44: 155 | L44: 192 | M44: 154
A45: Williams Lake | B45: 33 | C45: 19 | D45: 18 | E45: 22 | F45: 39 | G45: 59 | H45: 53 | I45: 46 | J45: 42 | K45: 41 | L45: 42 | M45: 38
A46: Brooks | B46: 13 | C46: 9 | D46: 19 | E46: 22 | F46: 35 | G46: 74 | H46: 26 | I46: 38 | J46: 29 | K46: 11 | L46: 13 | M46: 12
A47: Cardston | B47: 21 | C47: 19 | D47: 37 | E47: 41 | F47: 81 | G47: 91 | H47: 45 | I47: 44 | J47: 53 | K47: 32 | L47: 30 | M47: 21
A48: Lethbridge | B48: 13 | C48: 12 | D48: 23 | E48: 28 | F48: 50 | G48: 82 | H48: 43 | I48: 37 | J48: 41 | K48: 20 | L48: 18 | M48: 13
A49: Medicine Hat | B49: 13 | C49: 8 | D49: 19 | E49: 20 | F49: 44 | G49: 65 | H49: 36 | I49: 34 | J49: 37 | K49: 19 | L49: 15 | M49: 12
A50: Taber | B50: 17 | C50: 14 | D50: 24 | E50: 32 | F50: 48 | G50: 91 | H50: 29 | I50: 39 | J50: 37 | K50: 19 | L50: 17 | M50: 15
A51: Waterton Village | B51: 52 | C51: 32 | D51: 38 | E51: 52 | F51: 70 | G51: 115 | H51: 19 | I51: 41 | J51: 58 | K51: 41 | L51: 47 | M51: 30
A52: Banff | B52: 20 | C52: 17 | D52: 21 | E52: 34 | F52: 62 | G52: 68 | H52: 68 | I52: 62 | J52: 39 | K52: 32 | L52: 26 | M52: 21
A53: Calgary | B53: 9 | C53: 9 | D53: 18 | E53: 25 | F53: 57 | G53: 94 | H53: 66 | I53: 57 | J53: 45 | K53: 15 | L53: 13 | M53: 10
A54: Camrose | B54: 23 | C54: 14 | D54: 23 | E54: 29 | F54: 41 | G54: 74 | H54: 86 | I54: 52 | J54: 40 | K54: 24 | L54: 19 | M54: 15
A55: Edmonton | B55: 22 | C55: 12 | D55: 16 | E55: 29 | F55: 46 | G55: 77 | H55: 94 | I55: 62 | J55: 43 | K55: 22 | L55: 18 | M55: 15
A56: Edson | B56: 27 | C56: 12 | D56: 18 | E56: 23 | F56: 54 | G56: 94 | H56: 108 | I56: 75 | J56: 64 | K56: 25 | L56: 20 | M56: 18
A57: Jasper | B57: 23 | C57: 14 | D57: 17 | E57: 20 | F57: 31 | G57: 51 | H57: 64 | I57: 64 | J57: 34 | K57: 30 | L57: 24 | M57: 20
A58: Lloydminster | B58: 16 | C58: 10 | D58: 14 | E58: 26 | F58: 45 | G58: 71 | H58: 75 | I58: 60 | J58: 42 | K58: 18 | L58: 18 | M58: 14
A59: Red Deer | B59: 22 | C59: 13 | D59: 21 | E59: 21 | F59: 56 | G59: 89 | H59: 97 | I59: 63 | J59: 51 | K59: 21 | L59: 18 | M59: 14
A60: Rocky Mountain House | B60: 19 | C60: 15 | D60: 18 | E60: 24 | F60: 65 | G60: 87 | H60: 115 | I60: 67 | J60: 74 | K60: 26 | L60: 17 | M60: 16
A61: Cold Lake | B61: 16 | C61: 11 | D61: 17 | E61: 31 | F61: 41 | G61: 73 | H61: 79 | I61: 57 | J61: 39 | K61: 20 | L61: 19 | M61: 18
A62: Fort Chipewyan | B62: 15 | C62: 14 | D62: 16 | E62: 16 | F62: 27 | G62: 44 | H62: 67 | I62: 50 | J62: 44 | K62: 29 | L62: 24 | M62: 18
A63: Fort McMurray | B63: 18 | C63: 13 | D63: 17 | E63: 21 | F63: 36 | G63: 73 | H63: 81 | I63: 57 | J63: 40 | K63: 26 | L63: 20 | M63: 16
A64: Grande Prairie | B64: 30 | C64: 16 | D64: 17 | E64: 20 | F64: 41 | G64: 76 | H64: 76 | I64: 56 | J64: 43 | K64: 26 | L64: 25 | M64: 19
A65: High Level | B65: 20 | C65: 18 | D65: 18 | E65: 15 | F65: 36 | G65: 51 | H65: 66 | I65: 43 | J65: 32 | K65: 31 | L65: 25 | M65: 19
A66: Slave Lake | B66: 16 | C66: 10 | D66: 16 | E66: 22 | F66: 43 | G66: 78 | H66: 71 | I66: 60 | J66: 42 | K66: 25 | L66: 16 | M66: 12
A67: Emerson | B67: 27 | C67: 21 | D67: 25 | E67: 29 | F67: 58 | G67: 90 | H67: 94 | I67: 74 | J67: 57 | K67: 47 | L67: 37 | M67: 33
A68: Gimli | B68: 20 | C68: 14 | D68: 31 | E68: 28 | F68: 42 | G68: 104 | H68: 78 | I68: 57 | J68: 58 | K68: 47 | L68: 28 | M68: 20
A69: Hodgson | B69: 36 | C69: 23 | D69: 35 | E69: 29 | F69: 62 | G69: 87 | H69: 69 | I69: 67 | J69: 59 | K69: 47 | L69: 37 | M69: 43
A70: Morden | B70: 19 | C70: 19 | D70: 22 | E70: 35 | F70: 58 | G70: 93 | H70: 79 | I70: 71 | J70: 45 | K70: 50 | L70: 30 | M70: 20
A71: Portage La Prairie | B71: 23 | C71: 15 | D71: 26 | E71: 25 | F71: 43 | G71: 82 | H71: 80 | I71: 74 | J71: 57 | K71: 46 | L71: 29 | M71: 26
A72: Selkirk | B72: 14 | C72: 9 | D72: 23 | E72: 22 | F72: 60 | G72: 96 | H72: 87 | I72: 81 | J72: 55 | K72: 39 | L72: 20 | M72: 14
A73: Steinbach | B73: 22 | C73: 14 | D73: 22 | E73: 31 | F73: 69 | G73: 100 | H73: 93 | I73: 74 | J73: 57 | K73: 46 | L73: 28 | M73: 24
A74: Winnipeg | B74: 20 | C74: 14 | D74: 24 | E74: 30 | F74: 57 | G74: 90 | H74: 80 | I74: 77 | J74: 46 | K74: 38 | L74: 25 | M74: 21
A75: Brandon | B75: 18 | C75: 13 | D75: 25 | E75: 26 | F75: 59 | G75: 81 | H75: 73 | I75: 66 | J75: 44 | K75: 30 | L75: 19 | M75: 21
A76: Dauphin | B76: 14 | C76: 11 | D76: 24 | E76: 30 | F76: 55 | G76: 82 | H76: 73 | I76: 61 | J76: 58 | K76: 35 | L76: 21 | M76: 19
A77: McCreary | B77: 21 | C77: 18 | D77: 34 | E77: 30 | F77: 63 | G77: 88 | H77: 74 | I77: 62 | J77: 58 | K77: 43 | L77: 26 | M77: 23
A78: Swan River | B78: 22 | C78: 16 | D78: 24 | E78: 35 | F78: 54 | G78: 85 | H78: 96 | I78: 77 | J78: 53 | K78: 34 | L78: 25 | M78: 24
A79: Turtle Mountain Park | B79: 19 | C79: 15 | D79: 25 | E79: 26 | F79: 61 | G79: 86 | H79: 82 | I79: 67 | J79: 41 | K79: 37 | L79: 24 | M79: 21
A80: Churchill | B80: 19 | C80: 17 | D80: 18 | E80: 24 | F80: 30 | G80: 44 | H80: 60 | I80: 69 | J80: 70 | K80: 48 | L80: 35 | M80: 18
A81: Cross Lake | B81: 16 | C81: 18 | D81: 16 | E81: 19 | F81: 42 | G81: 68 | H81: 77 | I81: 70 | J81: 60 | K81: 34 | L81: 25 | M81: 23
A82: Flin Flon | B82: 18 | C82: 15 | D82: 19 | E82: 28 | F82: 41 | G82: 67 | H82: 83 | I82: 67 | J82: 64 | K82: 38 | L82: 26 | M82: 22
A83: Gillam | B83: 20 | C83: 19 | D83: 23 | E83: 22 | F83: 43 | G83: 56 | H83: 79 | I83: 76 | J83: 57 | K83: 42 | L83: 38 | M83: 23
A84: Grand Rapids | B84: 18 | C84: 13 | D84: 21 | E84: 26 | F84: 52 | G84: 77 | H84: 71 | I84: 66 | J84: 59 | K84: 38 | L84: 26 | M84: 22
A85: Lynn Lake | B85: 20 | C85: 16 | D85: 20 | E85: 24 | F85: 37 | G85: 62 | H85: 85 | I85: 69 | J85: 61 | K85: 38 | L85: 27 | M85: 19
A86: Norway House | B86: 21 | C86: 23 | D86: 24 | E86: 25 | F86: 50 | G86: 70 | H86: 80 | I86: 75 | J86: 61 | K86: 47 | L86: 29 | M86: 27
A87: The Pas | B87: 17 | C87: 13 | D87: 18 | E87: 24 | F87: 40 | G87: 66 | H87: 69 | I87: 67 | J87: 57 | K87: 38 | L87: 21 | M87: 20
A88: Thompson | B88: 19 | C88: 16 | D88: 23 | E88: 29 | F88: 47 | G88: 68 | H88: 81 | I88: 71 | J88: 62 | K88: 37 | L88: 33 | M88: 23
A89: Fredericton | B89: 95 | C89: 73 | D89: 93 | E89: 86 | F89: 96 | G89: 82 | H89: 88 | I89: 86 | J89: 88 | K89: 89 | L89: 106 | M89: 95
A90: Mactaquac Provincial Park | B90: 101 | C90: 64 | D90: 90 | E90: 86 | F90: 100 | G90: 87 | H90: 98 | I90: 85 | J90: 92 | K90: 97 | L90: 101 | M90: 99
A91: Saint John | B91: 124 | C91: 91 | D91: 108 | E91: 105 | F91: 110 | G91: 101 | H91: 88 | I91: 82 | J91: 106 | K91: 116 | L91: 134 | M91: 130
A92: Saint Leonard | B92: 91 | C92: 68 | D92: 78 | E92: 77 | F92: 87 | G92: 98 | H92: 119 | I92: 101 | J92: 95 | K92: 100 | L92: 98 | M92: 91
A93: Sussex | B93: 109 | C93: 85 | D93: 115 | E93: 90 | F93: 103 | G93: 88 | H93: 84 | I93: 74 | J93: 100 | K93: 106 | L93: 110 | M93: 106
A94: Wiggins Point | B94: 99 | C94: 71 | D94: 84 | E94: 89 | F94: 108 | G94: 89 | H94: 80 | I94: 89 | J94: 80 | K94: 94 | L94: 112 | M94: 92
A95: Woodstock | B95: 104 | C95: 72 | D95: 91 | E95: 80 | F95: 94 | G95: 91 | H95: 100 | I95: 101 | J95: 96 | K95: 95 | L95: 103 | M95: 103
A96: Buctouche | B96: 104 | C96: 88 | D96: 93 | E96: 86 | F96: 101 | G96: 95 | H96: 99 | I96: 85 | J96: 86 | K96: 95 | L96: 103 | M96: 101
A97: Doaktown | B97: 106 | C97: 77 | D97: 90 | E97: 83 | F97: 113 | G97: 95 | H97: 106 | I97: 94 | J97: 100 | K97: 101 | L97: 112 | M97: 97
A98: Fundy National Park | B98: 145 | C98: 108 | D98: 146 | E98: 121 | F98: 127 | G98: 110 | H98: 99 | I98: 94 | J98: 123 | K98: 133 | L98: 159 | M98: 147
A99: Kouchibouguac National Park | B99: 138 | C99: 99 | D99: 123 | E99: 107 | F99: 112 | G99: 91 | H99: 110 | I99: 87 | J99: 84 | K99: 100 | L99: 121 | M99: 125
A100: Moncton | B100: 98 | C100: 84 | D100: 106 | E100: 92 | F100: 102 | G100: 88 | H100: 85 | I100: 77 | J100: 94 | K100: 106 | L100: 94 | M100: 100
A101: Sackville | B101: 103 | C101: 75 | D101: 93 | E101: 89 | F101: 108 | G101: 94 | H101: 87 | I101: 82 | J101: 107 | K101: 106 | L101: 108 | M101: 95
A102: Bathurst | B102: 98 | C102: 68 | D102: 73 | E102: 91 | F102: 77 | G102: 92 | H102: 96 | I102: 118 | J102: 72 | K102: 84 | L102: 107 | M102: 95
A103: Dalhousie | B103: 84 | C103: 67 | D103: 77 | E103: 72 | F103: 85 | G103: 85 | H103: 102 | I103: 90 | J103: 79 | K103: 84 | L103: 92 | M103: 80
A104: Kedgwick | B104: 72 | C104: 59 | D104: 50 | E104: 61 | F104: 84 | G104: 106 | H104: 122 | I104: 103 | J104: 86 | K104: 95 | L104: 80 | M104: 73
A105: Miramichi | B105: 87 | C105: 71 | D105: 91 | E105: 85 | F105: 99 | G105: 86 | H105: 100 | I105: 93 | J105: 84 | K105: 90 | L105: 101 | M105: 85
A106: Mount Carleton Provincial Park | B106: 99 | C106: 68 | D106: 77 | E106: 76 | F106: 93 | G106: 105 | H106: 119 | I106: 104 | J106: 97 | K106: 95 | L106: 97 | M106: 91
A107: Upsalquitch Lake | B107: 86 | C107: 49 | D107: 85 | E107: 88 | F107: 101 | G107: 104 | H107: 131 | I107: 106 | J107: 101 | K107: 107 | L107: 74 | M107: 69
A108: Come By Chance | B108: 130 | C108: 117 | D108: 109 | E108: 96 | F108: 95 | G108: 132 | H108: 93 | I108: 89 | J108: 118 | K108: 131 | L108: 120 | M108: 110
A109: Harbour Grace | B109: 124 | C109: 124 | D109: 115 | E109: 94 | F109: 85 | G109: 121 | H109: 89 | I109: 89 | J109: 135 | K109: 138 | L109: 112 | M109: 103
A110: Long Harbour | B110: 130 | C110: 118 | D110: 116 | E110: 112 | F110: 92 | G110: 121 | H110: 102 | I110: 97 | J110: 126 | K110: 135 | L110: 127 | M110: 117
A111: St John's | B111: 149 | C111: 130 | D111: 142 | E111: 123 | F111: 103 | G111: 98 | H111: 92 | I111: 100 | J111: 130 | K111: 156 | L111: 148 | M111: 165
A112: St Shotts | B112: 138 | C112: 114 | D112: 129 | E112: 115 | F112: 111 | G112: 139 | H112: 137 | I112: 113 | J112: 127 | K112: 143 | L112: 146 | M112: 140
A113: Bonavista | B113: 101 | C113: 104 | D113: 103 | E113: 83 | F113: 76 | G113: 90 | H113: 82 | I113: 79 | J113: 108 | K113: 115 | L113: 105 | M113: 107
A114: St Lawrence | B114: 145 | C114: 141 | D114: 126 | E114: 122 | F114: 125 | G114: 146 | H114: 115 | I114: 94 | J114: 172 | K114: 157 | L114: 158 | M114: 142
A115: Terra Nova National Park | B115: 111 | C115: 118 | D115: 103 | E115: 91 | F115: 82 | G115: 103 | H115: 98 | I115: 88 | J115: 119 | K115: 105 | L115: 97 | M115: 116
A116: Baie Verte | B116: 104 | C116: 87 | D116: 75 | E116: 74 | F116: 79 | G116: 108 | H116: 86 | I116: 115 | J116: 92 | K116: 112 | L116: 88 | M116: 96
A117: Burgeo | B117: 156 | C117: 124 | D117: 110 | E117: 138 | F117: 127 | G117: 155 | H117: 138 | I117: 129 | J117: 144 | K117: 155 | L117: 164 | M117: 146
A118: Gander | B118: 112 | C118: 105 | D118: 113 | E118: 95 | F118: 90 | G118: 88 | H118: 95 | I118: 104 | J118: 115 | K118: 114 | L118: 113 | M118: 127
A119: Grand Falls | B119: 94 | C119: 94 | D119: 91 | E119: 84 | F119: 78 | G119: 89 | H119: 89 | I119: 107 | J119: 96 | K119: 94 | L119: 94 | M119: 90
A120: Harbour Breton | B120: 112 | C120: 120 | D120: 102 | E120: 125 | F120: 117 | G120: 138 | H120: 119 | I120: 93 | J120: 140 | K120: 147 | L120: 150 | M120: 121
A121: Musgrave Harbour | B121: 88 | C121: 82 | D121: 76 | E121: 74 | F121: 73 | G121: 75 | H121: 82 | I121: 93 | J121: 110 | K121: 100 | L121: 93 | M121: 98
A122: Springdale | B122: 79 | C122: 65 | D122: 57 | E122: 61 | F122: 73 | G122: 100 | H122: 92 | I122: 106 | J122: 90 | K122: 88 | L122: 70 | M122: 71
A123: Channel-Port-Aux-Basques | B123: 152 | C123: 125 | D123: 108 | E123: 139 | F123: 119 | G123: 127 | H123: 113 | I123: 119 | J123: 125 | K123: 145 | L123: 151 | M123: 172
A124: Corner Brook | B124: 145 | C124: 106 | D124: 93 | E124: 80 | F124: 86 | G124: 87 | H124: 92 | I124: 107 | J124: 106 | K124: 112 | L124: 122 | M124: 149
A125: Deer Lake | B125: 114 | C125: 84 | D125: 73 | E125: 70 | F125: 77 | G125: 81 | H125: 95 | I125: 110 | J125: 100 | K125: 89 | L125: 91 | M125: 111
A126: Gros Morne National Park | B126: 237 | C126: 138 | D126: 93 | E126: 81 | F126: 85 | G126: 123 | H126: 96 | I126: 133 | J126: 127 | K126: 159 | L126: 156 | M126: 200
A127: Port Saunders | B127: 127 | C127: 93 | D127: 79 | E127: 57 | F127: 79 | G127: 105 | H127: 107 | I127: 99 | J127: 115 | K127: 97 | L127: 82 | M127: 107
A128: Rocky Harbour | B128: 136 | C128: 106 | D128: 87 | E128: 69 | F128: 74 | G128: 118 | H128: 80 | I128: 117 | J128: 105 | K128: 123 | L128: 120 | M128: 137
A129: St Anthony | B129: 114 | C129: 95 | D129: 98 | E129: 82 | F129: 83 | G129: 123 | H129: 106 | I129: 108 | J129: 120 | K129: 125 | L129: 116 | M129: 138
A130: Stephenville | B130: 125 | C130: 105 | D130: 86 | E130: 78 | F130: 97 | G130: 104 | H130: 118 | I130: 130 | J130: 128 | K130: 127 | L130: 118 | M130: 123
A131: Cartwright | B131: 86 | C131: 91 | D131: 92 | E131: 75 | F131: 68 | G131: 99 | H131: 101 | I131: 94 | J131: 89 | K131: 102 | L131: 85 | M131: 92
A132: Churchill Falls | B132: 53 | C132: 44 | D132: 55 | E132: 64 | F132: 61 | G132: 80 | H132: 112 | I132: 93 | J132: 111 | K132: 82 | L132: 78 | M132: 54
A133: Happy Valley - Goose Bay | B133: 65 | C133: 57 | D133: 65 | E133: 64 | F133: 69 | G133: 91 | H133: 121 | I133: 99 | J133: 91 | K133: 81 | L133: 72 | M133: 64
A134: Makkovik | B134: 73 | C134: 75 | D134: 73 | E134: 62 | F134: 52 | G134: 94 | H134: 101 | I134: 98 | J134: 92 | K134: 92 | L134: 84 | M134: 84
A135: Mary's Harbour | B135: 69 | C135: 81 | D135: 67 | E135: 51 | F135: 73 | G135: 95 | H135: 86 | I135: 89 | J135: 68 | K135: 93 | L135: 84 | M135: 87
A136: Nain | B136: 84 | C136: 71 | D136: 74 | E136: 71 | F136: 57 | G136: 83 | H136: 99 | I136: 71 | J136: 82 | K136: 74 | L136: 78 | M136: 82
A137: Wabush Lake | B137: 49 | C137: 40 | D137: 54 | E137: 49 | F137: 53 | G137: 83 | H137: 114 | I137: 103 | J137: 97 | K137: 76 | L137: 71 | M137: 50
A138: Baddeck | B138: 155 | C138: 126 | D138: 129 | E138: 126 | F138: 104 | G138: 105 | H138: 97 | I138: 107 | J138: 128 | K138: 137 | L138: 155 | M138: 166
A139: Cheticamp | B139: 143 | C139: 108 | D139: 103 | E139: 88 | F139: 85 | G139: 96 | H139: 90 | I139: 114 | J139: 124 | K139: 130 | L139: 141 | M139: 153
A140: Ingonish Beach | B140: 186 | C140: 140 | D140: 154 | E140: 169 | F140: 109 | G140: 91 | H140: 93 | I140: 114 | J140: 144 | K140: 176 | L140: 190 | M140: 188
A141: Louisbourg | B141: 147 | C141: 138 | D141: 144 | E141: 148 | F141: 128 | G141: 113 | H141: 108 | I141: 108 | J141: 133 | K141: 158 | L141: 169 | M141: 153
A142: Port Hawkesbury | B142: 121 | C142: 116 | D142: 113 | E142: 106 | F142: 98 | G142: 97 | H142: 96 | I142: 82 | J142: 117 | K142: 157 | L142: 147 | M142: 134
A143: Sydney | B143: 153 | C143: 128 | D143: 130 | E143: 133 | F143: 103 | G143: 97 | H143: 88 | I143: 100 | J143: 119 | K143: 143 | L143: 156 | M143: 167
A144: Pictou | B144: 110 | C144: 95 | D144: 100 | E144: 94 | F144: 84 | G144: 90 | H144: 77 | I144: 81 | J144: 118 | K144: 129 | L144: 135 | M144: 121
A145: Pugwash | B145: 88 | C145: 65 | D145: 77 | E145: 82 | F145: 95 | G145: 82 | H145: 73 | I145: 78 | J145: 98 | K145: 104 | L145: 100 | M145: 96
A146: Sable Island | B146: 145 | C146: 113 | D146: 130 | E146: 115 | F146: 101 | G146: 116 | H146: 101 | I146: 122 | J146: 130 | K146: 145 | L146: 151 | M146: 145
A147: Stillwater - Sherbrooke | B147: 131 | C147: 115 | D147: 130 | E147: 112 | F147: 119 | G147: 113 | H147: 96 | I147: 110 | J147: 138 | K147: 139 | L147: 165 | M147: 156
A148: Bridgewater | B148: 144 | C148: 120 | D148: 156 | E148: 127 | F148: 128 | G148: 104 | H148: 97 | I148: 100 | J148: 111 | K148: 137 | L148: 165 | M148: 148
A149: Halifax | B149: 140 | C149: 110 | D149: 132 | E149: 118 | F149: 119 | G149: 112 | H149: 110 | I149: 96 | J149: 109 | K149: 124 | L149: 151 | M149: 145
A150: Liverpool - Milton | B150: 159 | C150: 137 | D150: 165 | E150: 146 | F150: 136 | G150: 109 | H150: 98 | I150: 89 | J150: 122 | K150: 128 | L150: 180 | M150: 176
A151: Yarmouth | B151: 127 | C151: 102 | D151: 116 | E151: 101 | F151: 101 | G151: 95 | H151: 88 | I151: 84 | J151: 95 | K151: 112 | L151: 139 | M151: 132
A152: Amherst - Nappan | B152: 106 | C152: 83 | D152: 105 | E152: 92 | F152: 101 | G152: 83 | H152: 89 | I152: 74 | J152: 102 | K152: 103 | L152: 111 | M152: 107
A153: Annapolis Royal | B153: 114 | C153: 85 | D153: 94 | E153: 95 | F153: 86 | G153: 74 | H153: 69 | I153: 69 | J153: 110 | K153: 120 | L153: 125 | M153: 113
A154: Kejimkujik National Park | B154: 136 | C154: 102 | D154: 125 | E154: 124 | F154: 99 | G154: 102 | H154: 98 | I154: 90 | J154: 83 | K154: 97 | L154: 152 | M154: 140
A155: Kentville | B155: 116 | C155: 101 | D155: 110 | E155: 93 | F155: 102 | G155: 82 | H155: 84 | I155: 77 | J155: 84 | K155: 89 | L155: 122 | M155: 122
A156: Parrsboro | B156: 115 | C156: 89 | D156: 115 | E156: 104 | F156: 105 | G156: 102 | H156: 90 | I156: 86 | J156: 113 | K156: 109 | L156: 120 | M156: 122
A157: Truro | B157: 115 | C157: 90 | D157: 104 | E157: 85 | F157: 94 | G157: 93 | H157: 85 | I157: 80 | J157: 103 | K157: 105 | L157: 115 | M157: 114
A158: Belleville | B158: 67 | C158: 58 | D158: 62 | E158: 76 | F158: 81 | G158: 74 | H158: 65 | I158: 75 | J158: 92 | K158: 85 | L158: 96 | M158: 79
A159: Cornwall | B159: 76 | C159: 60 | D159: 62 | E159: 81 | F159: 88 | G159: 97 | H159: 99 | I159: 89 | J159: 98 | K159: 93 | L159: 92 | M159: 76
A160: Kingston | B160: 65 | C160: 65 | D160: 69 | E160: 87 | F160: 77 | G160: 72 | H160: 64 | I160: 94 | J160: 90 | K160: 92 | L160: 100 | M160: 84
A161: Ottawa | B161: 63 | C161: 50 | D161: 57 | E161: 71 | F161: 87 | G161: 93 | H161: 84 | I161: 84 | J161: 93 | K161: 86 | L161: 83 | M161: 70
A162: Pembroke | B162: 48 | C162: 42 | D162: 56 | E162: 60 | F162: 76 | G162: 70 | H162: 75 | I162: 83 | J162: 84 | K162: 77 | L162: 69 | M162: 59
A163: Barrie | B163: 83 | C163: 62 | D163: 58 | E163: 62 | F163: 82 | G163: 85 | H163: 77 | I163: 90 | J163: 94 | K163: 78 | L163: 89 | M163: 74
A164: Brantford | B164: 55 | C164: 51 | D164: 59 | E164: 69 | F164: 81 | G164: 76 | H164: 95 | I164: 75 | J164: 87 | K164: 70 | L164: 84 | M164: 65
A165: French River, Chaudiere Dam | B165: 75 | C165: 61 | D165: 59 | E165: 67 | F165: 90 | G165: 74 | H165: 80 | I165: 79 | J165: 106 | K165: 100 | L165: 87 | M165: 80
A166: Hamilton | B166: 57 | C166: 57 | D166: 64 | E166: 73 | F166: 85 | G166: 73 | H166: 83 | I166: 90 | J166: 81 | K166: 72 | L166: 91 | M166: 72
A167: Huntsville | B167: 93 | C167: 72 | D167: 68 | E167: 61 | F167: 89 | G167: 78 | H167: 83 | I167: 81 | J167: 111 | K167: 105 | L167: 99 | M167: 94
A168: Midland | B168: 103 | C168: 64 | D168: 56 | E168: 70 | F168: 84 | G168: 81 | H168: 78 | I168: 78 | J168: 95 | K168: 94 | L168: 104 | M168: 95
A169: Niagara Falls | B169: 64 | C169: 64 | D169: 68 | E169: 75 | F169: 83 | G169: 85 | H169: 84 | I169: 78 | J169: 88 | K169: 84 | L169: 102 | M169: 87
A170: Oshawa | B170: 66 | C170: 57 | D170: 54 | E170: 73 | F170: 79 | G170: 74 | H170: 73 | I170: 77 | J170: 94 | K170: 70 | L170: 85 | M170: 71
A171: Peterborough | B171: 55 | C171: 61 | D171: 54 | E171: 70 | F171: 83 | G171: 73 | H171: 61 | I171: 96 | J171: 84 | K171: 77 | L171: 83 | M171: 74
A172: St Catharines | B172: 65 | C172: 55 | D172: 62 | E172: 77 | F172: 77 | G172: 86 | H172: 78 | I172: 70 | J172: 91 | K172: 67 | L172: 82 | M172: 71
A173: Toronto | B173: 62 | C173: 55 | D173: 54 | E173: 68 | F173: 82 | G173: 71 | H173: 64 | I173: 81 | J173: 85 | K173: 64 | L173: 84 | M173: 61
A174: Chatham-Kent | B174: 63 | C174: 54 | D174: 60 | E174: 80 | F174: 80 | G174: 78 | H174: 85 | I174: 79 | J174: 89 | K174: 71 | L174: 77 | M174: 67
A175: Guelph | B175: 52 | C175: 58 | D175: 67 | E175: 74 | F175: 80 | G175: 79 | H175: 96 | I175: 93 | J175: 90 | K175: 72 | L175: 91 | M175: 81
A176: London | B176: 74 | C176: 65 | D176: 72 | E176: 83 | F176: 90 | G176: 92 | H176: 83 | I176: 83 | J176: 103 | K176: 81 | L176: 98 | M176: 87
A177: Owen Sound | B177: 129 | C177: 86 | D177: 78 | E177: 71 | F177: 84 | G177: 73 | H177: 70 | I177: 79 | J177: 106 | K177: 98 | L177: 110 | M177: 130
A178: Point Pelee National Park | B178: 57 | C178: 59 | D178: 70 | E178: 76 | F178: 77 | G178: 80 | H178: 84 | I178: 86 | J178: 93 | K178: 70 | L178: 95 | M178: 77
A179: Sarnia | B179: 52 | C179: 51 | D179: 57 | E179: 72 | F179: 80 | G179: 83 | H179: 78 | I179: 79 | J179: 105 | K179: 76 | L179: 82 | M179: 64
A180: Waterloo | B180: 65 | C180: 55 | D180: 61 | E180: 75 | F180: 82 | G180: 82 | H180: 99 | I180: 84 | J180: 88 | K180: 67 | L180: 87 | M180: 71
A181: Windsor | B181: 62 | C181: 62 | D181: 70 | E181: 83 | F181: 89 | G181: 86 | H181: 89 | I181: 73 | J181: 94 | K181: 73 | L181: 80 | M181: 74
A182: Chapleau | B182: 52 | C182: 43 | D182: 47 | E182: 53 | F182: 70 | G182: 80 | H182: 82 | I182: 76 | J182: 95 | K182: 83 | L182: 64 | M182: 64
A183: Gore Bay | B183: 45 | C183: 30 | D183: 63 | E183: 67 | F183: 61 | G183: 65 | H183: 48 | I183: 65 | J183: 88 | K183: 107 | L183: 94 | M183: 70
A184: Kapuskasing | B184: 48 | C184: 36 | D184: 48 | E184: 55 | F184: 69 | G184: 80 | H184: 102 | I184: 77 | J184: 101 | K184: 86 | L184: 71 | M184: 56
A185: Moosonee | B185: 33 | C185: 29 | D185: 35 | E185: 38 | F185: 55 | G185: 72 | H185: 97 | I185: 78 | J185: 95 | K185: 75 | L185: 56 | M185: 42
A186: North Bay | B186: 69 | C186: 57 | D186: 65 | E186: 72 | F186: 96 | G186: 98 | H186: 99 | I186: 91 | J186: 115 | K186: 107 | L186: 98 | M186: 78
A187: Sault Ste Marie | B187: 64 | C187: 43 | D187: 56 | E187: 65 | F187: 66 | G187: 74 | H187: 72 | I187: 83 | J187: 102 | K187: 102 | L187: 92 | M187: 77
A188: South Baymouth | B188: 78 | C188: 50 | D188: 64 | E188: 69 | F188: 72 | G188: 59 | H188: 51 | I188: 74 | J188: 95 | K188: 112 | L188: 92 | M188: 94
A189: Sudbury | B189: 62 | C189: 51 | D189: 60 | E189: 66 | F189: 83 | G189: 80 | H189: 77 | I189: 85 | J189: 101 | K189: 91 | L189: 78 | M189: 67
A190: Timmins | B190: 52 | C190: 41 | D190: 55 | E190: 56 | F190: 67 | G190: 83 | H190: 91 | I190: 82 | J190: 85 | K190: 82 | L190: 76 | M190: 64
A191: Wawa | B191: 56 | C191: 47 | D191: 54 | E191: 67 | F191: 78 | G191: 82 | H191: 96 | I191: 93 | J191: 122 | K191: 118 | L191: 86 | M191: 73
A192: Atikokan | B192: 35 | C192: 25 | D192: 33 | E192: 50 | F192: 77 | G192: 104 | H192: 118 | I192: 88 | J192: 100 | K192: 76 | L192: 45 | M192: 36
A193: Big Trout Lake | B193: 22 | C193: 19 | D193: 31 | E193: 33 | F193: 40 | G193: 80 | H193: 85 | I193: 89 | J193: 90 | K193: 50 | L193: 55 | M193: 28
A194: Dryden | B194: 27 | C194: 20 | D194: 30 | E194: 40 | F194: 73 | G194: 115 | H194: 103 | I194: 84 | J194: 89 | K194: 64 | L194: 47 | M194: 29
A195: Fort Frances | B195: 35 | C195: 22 | D195: 26 | E195: 41 | F195: 78 | G195: 119 | H195: 97 | I195: 92 | J195: 83 | K195: 57 | L195: 46 | M195: 32
A196: Kenora | B196: 26 | C196: 19 | D196: 28 | E196: 36 | F196: 81 | G196: 119 | H196: 103 | I196: 84 | J196: 86 | K196: 63 | L196: 42 | M196: 28
A197: Red Lake | B197: 27 | C197: 17 | D197: 28 | E197: 34 | F197: 73 | G197: 99 | H197: 103 | I197: 88 | J197: 83 | K197: 60 | L197: 43 | M197: 30
A198: Thunder Bay | B198: 26 | C198: 20 | D198: 31 | E198: 53 | F198: 67 | G198: 84 | H198: 87 | I198: 89 | J198: 73 | K198: 64 | L198: 53 | M198: 35
A199: Alberton | B199: 96 | C199: 74 | D199: 81 | E199: 80 | F199: 93 | G199: 82 | H199: 86 | I199: 80 | J199: 92 | K199: 96 | L199: 99 | M199: 94
A200: O'Leary | B200: 99 | C200: 82 | D200: 89 | E200: 86 | F200: 103 | G200: 85 | H200: 96 | I200: 88 | J200: 102 | K200: 100 | L200: 112 | M200: 107
A201: Summerside | B201: 96 | C201: 75 | D201: 79 | E201: 84 | F201: 98 | G201: 91 | H201: 74 | I201: 93 | J201: 97 | K201: 88 | L201: 98 | M201: 100
A202: Tignish | B202: 113 | C202: 82 | D202: 74 | E202: 77 | F202: 93 | G202: 88 | H202: 89 | I202: 88 | J202: 78 | K202: 99 | L202: 116 | M202: 109
... 69 more rows
